Workbook

Sheet Information
B2: Grouping Calculation Information
C3: Standard Deviation | N3: Quantiles
C4: Level of Intensity | D4: 2 | F4: 3 | H4: 4 | J4: 5 | N4: Level of Intensity | O4: 2 | Q4: 3 | S4: 4 | U4: 5
D5: Min | E5: Max | F5: Min | G5: Max | H5: Min | I5: Max | J5: Min | K5: Max | O5: Min | P5: Max | Q5: Min | R5: Max | S5: Min | T5: Max | U5: Min | V5: Max
C6: A Size | D6: Min | E6: Mean | F6: Min | G6: Mean - 1SD | H6: Min | I6: Mean - 1SD | J6: Min | K6: Mean - 1SD | N6: A Size | O6: Min | P6: Median | Q6: Min | R6: 33rd Percentile | S6: Min | T6: 25th Percentile | U6: Min | V6: 20th Percentile
C8: B Size | D8: Mean + 1 | E8: Max | F8: Mean - 1SD + 1 | G8: Mean + 1SD | H8: Mean - 1SD + 1 | I8: Mean | J8: Mean - 1SD + 1 | K8: Mean - 0.5*SD | N8: B Size | O8: Median + 1 | P8: Max | Q8: 33rd Percentile + 1 | R8: 66th Percentile | S8: 25th Percentile + 1 | T8: Median | U8: 20th Percentile + 1 | V8: 40th Percentile
C10: C Size | F10: Mean + 1SD + 1 | G10: Max | H10: Mean + 1 | I10: Mean + 1SD | J10: Mean - 0.5*SD + 1 | K10: Mean + 0.5*SD | N10: C Size | Q10: 66th Percentile + 1 | R10: Max | S10: Median + 1 | T10: 75th Percentile | U10: 40th Percentile + 1 | V10: 60th Percentile
C12: D Size | H12: Mean + 1SD + 1 | I12: Max | J12: Mean + 0.5*SD + 1 | K12: Mean + 1SD | N12: D Size | S12: 75th Percentile + 1 | T12: Max | U12: 60th Percentile + 1 | V12: 80th Percentile
C14: E Size | J14: Mean + 1SD + 1 | K14: Max | N14: E Size | U14: 80th Percentile + 1 | V14: Max
C17: Equal Interval
C18: Level of Intensity | D18: 2 | F18: 3 | H18: 4 | J18: 5
D19: Min | E19: Max | F19: Min | G19: Max | H19: Min | I19: Max | J19: Min | K19: Max
C20: A Size | D20: Min | E20: Min + (max - min)/2 | F20: Min | G20: Min + (Max - Min)/3 | H20: Min | I20: Min + (Max - Min)/4 | J20: Min | K20: Min + (Max - Min)/5
C22: B Size | D22: Min + (max - min)/2 + 1 | E22: Max | F22: Min + (Max - Min)/3 + 1 | G22: Min + 2*(max - min)/3 | H22: Min + (Max - Min)/4 + 1 | I22: Min + (Max - Min)/2 | J22: Min + (Max - Min)/5 + 1 | K22: Min + 2*(Max - Min)/5
C24: C Size | F24: Min + 2*(Max - Min)/3 + 1 | G24: Max | H24: Min + (Max - Min)/2 + 1 | I24: Min + 3*(Max - Min)/4 | J24: Min + 2*(Max - Min)/5 + 1 | K24: Min + 3*(Max - Min)/5
C26: D Size | H26: Min + 3*(Max - Min)/4 + 1 | I26: Max | J26: Min + 3*(Max - Min)/5 + 1 | K26: Min + 4*(Max - Min)/5
C28: E Size | J28: Min + 4*(Max - Min)/5 + 1 | K28: Max

Sheet Data
B2: Datapoint Index | C2: Data | E2: Levels of Intensity | F2: 3 | H2: Enter the data you want to group in column C under the shaded area, then select the number of groups you would like to assign in cell 'F2' ('Levels of intensity').
B3: =IF(C3="","",B2+1) ->  | C3: 3
B4: =IF(#REF!="","",B3+1) ->  | C4: 411
B5: =IF(C5="","",B4+1) ->  | C5: 4
C6: 2
C7: 339 | N7: Group | O7: Min Value | P7: Max Value | AE7: Group | AF7: Min Value | AG7: Max Value
C8: 45 | N8: a | O8: =IFERROR(INDEX('Std. Dev'!$K$4:$L$26,MATCH(1,(Data!$F$2='Std. Dev'!$M$4:$M$26)*(Data!$N8='Std. Dev'!$N$4:$N$26),0),MATCH(Data!O$7,'Std. Dev'!$K$3:$L$3,0)),"") -> 2 | P8: =IFERROR(INDEX('Std. Dev'!$K$4:$L$26,MATCH(1,(Data!$F$2='Std. Dev'!$M$4:$M$26)*(Data!$N8='Std. Dev'!$N$4:$N$26),0),MATCH(Data!P$7,'Std. Dev'!$K$3:$L$3,0)),"") -> 101.8161859 | AE8: a | AF8: =IFERROR(INDEX(Quantiles!$K$4:$L$26,MATCH(1,(Data!$F$2=Quantiles!$M$4:$M$26)*(Data!$AE8=Quantiles!$N$4:$N$26),0),MATCH(Data!AF$7,Quantiles!$K$3:$L$3,0)),"") -> 2 | AG8: =IFERROR(INDEX(Quantiles!$K$4:$L$26,MATCH(1,(Data!$F$2=Quantiles!$M$4:$M$26)*(Data!$AE8=Quantiles!$N$4:$N$26),0),MATCH(Data!AG$7,Quantiles!$K$3:$L$3,0)),"") -> 158.18
C9: 310 | N9: b | O9: =IFERROR(INDEX('Std. Dev'!$K$4:$L$26,MATCH(1,(Data!$F$2='Std. Dev'!$M$4:$M$26)*(Data!$N9='Std. Dev'!$N$4:$N$26),0),MATCH(Data!O$7,'Std. Dev'!$K$3:$L$3,0)),"") -> 102.8161859 | P9: =IFERROR(INDEX('Std. Dev'!$K$4:$L$26,MATCH(1,(Data!$F$2='Std. Dev'!$M$4:$M$26)*(Data!$N9='Std. Dev'!$N$4:$N$26),0),MATCH(Data!P$7,'Std. Dev'!$K$3:$L$3,0)),"") -> 381.9013934 | AE9: b | AF9: =IFERROR(INDEX(Quantiles!$K$4:$L$26,MATCH(1,(Data!$F$2=Quantiles!$M$4:$M$26)*(Data!$AE9=Quantiles!$N$4:$N$26),0),MATCH(Data!AF$7,Quantiles!$K$3:$L$3,0)),"") -> 159.18 | AG9: =IFERROR(INDEX(Quantiles!$K$4:$L$26,MATCH(1,(Data!$F$2=Quantiles!$M$4:$M$26)*(Data!$AE9=Quantiles!$N$4:$N$26),0),MATCH(Data!AG$7,Quantiles!$K$3:$L$3,0)),"") -> 319.72
C10: 55 | N10: c | O10: =IFERROR(INDEX('Std. Dev'!$K$4:$L$26,MATCH(1,(Data!$F$2='Std. Dev'!$M$4:$M$26)*(Data!$N10='Std. Dev'!$N$4:$N$26),0),MATCH(Data!O$7,'Std. Dev'!$K$3:$L$3,0)),"") -> 382.9013934 | P10: =IFERROR(INDEX('Std. Dev'!$K$4:$L$26,MATCH(1,(Data!$F$2='Std. Dev'!$M$4:$M$26)*(Data!$N10='Std. Dev'!$N$4:$N$26),0),MATCH(Data!P$7,'Std. Dev'!$K$3:$L$3,0)),"") -> 498 | AE10: c | AF10: =IFERROR(INDEX(Quantiles!$K$4:$L$26,MATCH(1,(Data!$F$2=Quantiles!$M$4:$M$26)*(Data!$AE10=Quantiles!$N$4:$N$26),0),MATCH(Data!AF$7,Quantiles!$K$3:$L$3,0)),"") -> 320.72 | AG10: =IFERROR(INDEX(Quantiles!$K$4:$L$26,MATCH(1,(Data!$F$2=Quantiles!$M$4:$M$26)*(Data!$AE10=Quantiles!$N$4:$N$26),0),MATCH(Data!AG$7,Quantiles!$K$3:$L$3,0)),"") -> 498
C11: 14 | N11: d | O11: =IFERROR(INDEX('Std. Dev'!$K$4:$L$26,MATCH(1,(Data!$F$2='Std. Dev'!$M$4:$M$26)*(Data!$N11='Std. Dev'!$N$4:$N$26),0),MATCH(Data!O$7,'Std. Dev'!$K$3:$L$3,0)),"") ->  | P11: =IFERROR(INDEX('Std. Dev'!$K$4:$L$26,MATCH(1,(Data!$F$2='Std. Dev'!$M$4:$M$26)*(Data!$N11='Std. Dev'!$N$4:$N$26),0),MATCH(Data!P$7,'Std. Dev'!$K$3:$L$3,0)),"") ->  | AE11: d | AF11: =IFERROR(INDEX(Quantiles!$K$4:$L$26,MATCH(1,(Data!$F$2=Quantiles!$M$4:$M$26)*(Data!$AE11=Quantiles!$N$4:$N$26),0),MATCH(Data!AF$7,Quantiles!$K$3:$L$3,0)),"") ->  | AG11: =IFERROR(INDEX(Quantiles!$K$4:$L$26,MATCH(1,(Data!$F$2=Quantiles!$M$4:$M$26)*(Data!$AE11=Quantiles!$N$4:$N$26),0),MATCH(Data!AG$7,Quantiles!$K$3:$L$3,0)),"") -> 
C12: 441 | N12: e | O12: =IFERROR(INDEX('Std. Dev'!$K$4:$L$26,MATCH(1,(Data!$F$2='Std. Dev'!$M$4:$M$26)*(Data!$N12='Std. Dev'!$N$4:$N$26),0),MATCH(Data!O$7,'Std. Dev'!$K$3:$L$3,0)),"") ->  | P12: =IFERROR(INDEX('Std. Dev'!$K$4:$L$26,MATCH(1,(Data!$F$2='Std. Dev'!$M$4:$M$26)*(Data!$N12='Std. Dev'!$N$4:$N$26),0),MATCH(Data!P$7,'Std. Dev'!$K$3:$L$3,0)),"") ->  | AE12: e | AF12: =IFERROR(INDEX(Quantiles!$K$4:$L$26,MATCH(1,(Data!$F$2=Quantiles!$M$4:$M$26)*(Data!$AE12=Quantiles!$N$4:$N$26),0),MATCH(Data!AF$7,Quantiles!$K$3:$L$3,0)),"") ->  | AG12: =IFERROR(INDEX(Quantiles!$K$4:$L$26,MATCH(1,(Data!$F$2=Quantiles!$M$4:$M$26)*(Data!$AE12=Quantiles!$N$4:$N$26),0),MATCH(Data!AG$7,Quantiles!$K$3:$L$3,0)),"") -> 
C13: 54
C14: 490
C15: 416
C16: 297
C17: 29
C18: 102
C19: 395
C20: 30
C21: 256
C22: 167
C23: 104 | N23: Group | O23: Min Value | P23: Max Value | AE23: Group | AF23: Min Value | AG23: Max Value
C24: 15 | N24: a | O24: =IFERROR(INDEX('Equal Interval'!$K$4:$L$26,MATCH(1,(Data!$F$2='Equal Interval'!$M$4:$M$26)*(Data!$N24='Equal Interval'!$N$4:$N$26),0),MATCH(Data!O$23,'Equal Interval'!$K$3:$L$3,0)),"") -> 2 | P24: =IFERROR(INDEX('Equal Interval'!$K$4:$L$26,MATCH(1,(Data!$F$2='Equal Interval'!$M$4:$M$26)*(Data!$N24='Equal Interval'!$N$4:$N$26),0),MATCH(Data!P$23,'Equal Interval'!$K$3:$L$3,0)),"") -> 167.3333333 | AE24: a | AF24: =IFERROR(INDEX(Jenks!$K$4:$L$26,MATCH(1,(Data!$F$2=Jenks!$M$4:$M$26)*(Data!$AE24=Jenks!$N$4:$N$26),0),MATCH(Data!AF$7,Jenks!$K$3:$L$3,0)),"") -> 2 | AG24: =IFERROR(INDEX(Jenks!$K$4:$L$26,MATCH(1,(Data!$F$2=Jenks!$M$4:$M$26)*(Data!$AE24=Jenks!$N$4:$N$26),0),MATCH(Data!AG$7,Jenks!$K$3:$L$3,0)),"") -> 161
C25: 347 | N25: b | O25: =IFERROR(INDEX('Equal Interval'!$K$4:$L$26,MATCH(1,(Data!$F$2='Equal Interval'!$M$4:$M$26)*(Data!$N25='Equal Interval'!$N$4:$N$26),0),MATCH(Data!O$23,'Equal Interval'!$K$3:$L$3,0)),"") -> 168.3333333 | P25: =IFERROR(INDEX('Equal Interval'!$K$4:$L$26,MATCH(1,(Data!$F$2='Equal Interval'!$M$4:$M$26)*(Data!$N25='Equal Interval'!$N$4:$N$26),0),MATCH(Data!P$23,'Equal Interval'!$K$3:$L$3,0)),"") -> 332.6666667 | AE25: b | AF25: =IFERROR(INDEX(Jenks!$K$4:$L$26,MATCH(1,(Data!$F$2=Jenks!$M$4:$M$26)*(Data!$AE25=Jenks!$N$4:$N$26),0),MATCH(Data!AF$7,Jenks!$K$3:$L$3,0)),"") -> 165 | AG25: =IFERROR(INDEX(Jenks!$K$4:$L$26,MATCH(1,(Data!$F$2=Jenks!$M$4:$M$26)*(Data!$AE25=Jenks!$N$4:$N$26),0),MATCH(Data!AG$7,Jenks!$K$3:$L$3,0)),"") -> 321
C26: 353 | N26: c | O26: =IFERROR(INDEX('Equal Interval'!$K$4:$L$26,MATCH(1,(Data!$F$2='Equal Interval'!$M$4:$M$26)*(Data!$N26='Equal Interval'!$N$4:$N$26),0),MATCH(Data!O$23,'Equal Interval'!$K$3:$L$3,0)),"") -> 333.6666667 | P26: =IFERROR(INDEX('Equal Interval'!$K$4:$L$26,MATCH(1,(Data!$F$2='Equal Interval'!$M$4:$M$26)*(Data!$N26='Equal Interval'!$N$4:$N$26),0),MATCH(Data!P$23,'Equal Interval'!$K$3:$L$3,0)),"") -> 498 | AE26: c | AF26: =IFERROR(INDEX(Jenks!$K$4:$L$26,MATCH(1,(Data!$F$2=Jenks!$M$4:$M$26)*(Data!$AE26=Jenks!$N$4:$N$26),0),MATCH(Data!AF$7,Jenks!$K$3:$L$3,0)),"") -> 324 | AG26: =IFERROR(INDEX(Jenks!$K$4:$L$26,MATCH(1,(Data!$F$2=Jenks!$M$4:$M$26)*(Data!$AE26=Jenks!$N$4:$N$26),0),MATCH(Data!AG$7,Jenks!$K$3:$L$3,0)),"") -> 498
C27: 382 | N27: d | O27: =IFERROR(INDEX('Equal Interval'!$K$4:$L$26,MATCH(1,(Data!$F$2='Equal Interval'!$M$4:$M$26)*(Data!$N27='Equal Interval'!$N$4:$N$26),0),MATCH(Data!O$23,'Equal Interval'!$K$3:$L$3,0)),"") ->  | P27: =IFERROR(INDEX('Equal Interval'!$K$4:$L$26,MATCH(1,(Data!$F$2='Equal Interval'!$M$4:$M$26)*(Data!$N27='Equal Interval'!$N$4:$N$26),0),MATCH(Data!P$23,'Equal Interval'!$K$3:$L$3,0)),"") ->  | AE27: d | AF27: =IFERROR(INDEX(Jenks!$K$4:$L$26,MATCH(1,(Data!$F$2=Jenks!$M$4:$M$26)*(Data!$AE27=Jenks!$N$4:$N$26),0),MATCH(Data!AF$7,Jenks!$K$3:$L$3,0)),"") ->  | AG27: =IFERROR(INDEX(Jenks!$K$4:$L$26,MATCH(1,(Data!$F$2=Jenks!$M$4:$M$26)*(Data!$AE27=Jenks!$N$4:$N$26),0),MATCH(Data!AG$7,Jenks!$K$3:$L$3,0)),"") -> 
C28: 168 | N28: e | O28: =IFERROR(INDEX('Equal Interval'!$K$4:$L$26,MATCH(1,(Data!$F$2='Equal Interval'!$M$4:$M$26)*(Data!$N28='Equal Interval'!$N$4:$N$26),0),MATCH(Data!O$23,'Equal Interval'!$K$3:$L$3,0)),"") ->  | P28: =IFERROR(INDEX('Equal Interval'!$K$4:$L$26,MATCH(1,(Data!$F$2='Equal Interval'!$M$4:$M$26)*(Data!$N28='Equal Interval'!$N$4:$N$26),0),MATCH(Data!P$23,'Equal Interval'!$K$3:$L$3,0)),"") ->  | AE28: e | AF28: =IFERROR(INDEX(Jenks!$K$4:$L$26,MATCH(1,(Data!$F$2=Jenks!$M$4:$M$26)*(Data!$AE28=Jenks!$N$4:$N$26),0),MATCH(Data!AF$7,Jenks!$K$3:$L$3,0)),"") ->  | AG28: =IFERROR(INDEX(Jenks!$K$4:$L$26,MATCH(1,(Data!$F$2=Jenks!$M$4:$M$26)*(Data!$AE28=Jenks!$N$4:$N$26),0),MATCH(Data!AG$7,Jenks!$K$3:$L$3,0)),"") -> 
C29: 170
C30: 129 | AE30: Estimated run time
C31: 329 | AE31: =ROUNDUP((INDEX('Jenks iteration table'!$B$2:$F$839,MATCH(Freq_Data_Count,'Jenks iteration table'!$A$2:$A$839,0),MATCH(Data!$F$2,'Jenks iteration table'!$B$1:$F$1,0))*0.00021967906432393)/60,2)&" minutes" -> 0.12 minutes
C32: 405
C33: 362 | AF33: Refresh
C34: 156
C35: 39
C36: 399
B37: =IF(C37="","",B36+1) ->  | C37: 275
C38: 378
C39: 469
C40: 179
C41: 78
C42: 375
C43: 286
C44: 29
C45: 392
C46: 99
C47: 294
C48: 123
C49: 61
C50: 110
C51: 238
C52: 154
C53: 100
C54: 389
C55: 62
C56: 292
C57: 39
C58: 6
C59: 277
C60: 269
C61: 350
C62: 203
C63: 165
C64: 391
C65: 166
C66: 459
C67: 489
C68: 141
B69: =IF(C69="","",B68+1) ->  | C69: 218
C70: 258
C71: 89
C72: 169
C73: 63
C74: 204
C75: 171
C76: 50
C77: 45
C78: 295
C79: 25
C80: 303
C81: 326
C82: 498
C83: 313
C84: 406
C85: 488
C86: 380
C87: 123
C88: 53
C89: 252
C90: 365
C91: 488
C92: 305
C93: 475
C94: 208
C95: 241
C96: 140
C97: 335
C98: 156
C99: 178
C100: 376
B101: =IF(C101="","",B100+1) ->  | C101: 87
C102: 141
C103: 423
C104: 329
C105: 264
C106: 29
C107: 330
C108: 161
C109: 337
C110: 17
C111: 403
C112: 227
C113: 85
C114: 94
C115: 453
C116: 150
C117: 260
C118: 480
C119: 308
C120: 166
C121: 128
C122: 476
C123: 381
C124: 69
C125: 217
C126: 84
C127: 467
C128: 439
C129: 489
C130: 249
B131: =IF(#REF!="","",B130+1) ->  | C131: 125
B132: =IF(#REF!="","",B131+1) ->  | C132: 301
B133: =IF(#REF!="","",B132+1) ->  | C133: 476
B134: =IF(#REF!="","",B133+1) ->  | C134: 267
B135: =IF(#REF!="","",B134+1) ->  | C135: 383
B136: =IF(#REF!="","",B135+1) ->  | C136: 181
B137: =IF(#REF!="","",B136+1) ->  | C137: 270
B138: =IF(#REF!="","",B137+1) ->  | C138: 178
B139: =IF(#REF!="","",B138+1) ->  | C139: 354
B140: =IF(#REF!="","",B139+1) ->  | C140: 85
B141: =IF(#REF!="","",B140+1) ->  | C141: 280
B142: =IF(#REF!="","",B141+1) ->  | C142: 139
B143: =IF(#REF!="","",B142+1) ->  | C143: 187
B144: =IF(#REF!="","",B143+1) ->  | C144: 147
B145: =IF(#REF!="","",B144+1) ->  | C145: 171
B146: =IF(#REF!="","",B145+1) ->  | C146: 47
B147: =IF(#REF!="","",B146+1) ->  | C147: 226
B148: =IF(#REF!="","",B147+1) ->  | C148: 106
C149: 30
C150: 257
C151: 222
C152: 449
C153: 265
C154: 177
C155: 158
C156: 88
C157: 334
C158: 34
C159: 187
C160: 328
C161: 213
C162: 79
C163: 106
C164: 156
C165: 278
C166: 241
C167: 408
C168: 327
C169: 494
C170: 98
C171: 291
C172: 351
C173: 362
C174: 22
C175: 90
C176: 455
C177: 155
C178: 289
C179: 239
C180: 89
C181: 108
C182: 338
C183: 267
C184: 145
C185: 428
C186: 345
C187: 97
C188: 295
C189: 417
C190: 289
C191: 179
C192: 137
C193: 161
C194: 461
C195: 82
C196: 102
C197: 332
C198: 111
C199: 49
C200: 296
C201: 337
... 453 more rows

Sheet Jenks iteration table (hidden)
A1: Datapoints\Groups | B1: 1 | C1: 2 | D1: 3 | E1: 4 | F1: 5
A2: 1 | B2: 1 | C2: 0 | D2: 0 | E2: 0 | F2: 0
A3: 2 | B3: 1 | C3: 1 | D3: 0 | E3: 0 | F3: 0
A4: 3 | B4: 1 | C4: 2 | D4: 1 | E4: 0 | F4: 0
A5: 4 | B5: 1 | C5: 3 | D5: 3 | E5: 1 | F5: 0
A6: 5 | B6: 1 | C6: 4 | D6: 6 | E6: 4 | F6: 1
A7: 6 | B7: 1 | C7: 5 | D7: 10 | E7: 10 | F7: 5
A8: 7 | B8: 1 | C8: 6 | D8: 15 | E8: 20 | F8: 15
A9: 8 | B9: 1 | C9: 7 | D9: 21 | E9: 35 | F9: 35
A10: 9 | B10: 1 | C10: 8 | D10: 28 | E10: 56 | F10: 70
A11: 10 | B11: 1 | C11: 9 | D11: 36 | E11: 84 | F11: 126
A12: 11 | B12: 1 | C12: 10 | D12: 45 | E12: 120 | F12: 210
A13: 12 | B13: 1 | C13: 11 | D13: 55 | E13: 165 | F13: 330
A14: 13 | B14: 1 | C14: 12 | D14: 66 | E14: 220 | F14: 495
A15: 14 | B15: 1 | C15: 13 | D15: 78 | E15: 286 | F15: 715
A16: 15 | B16: 1 | C16: 14 | D16: 91 | E16: 364 | F16: 1001
A17: 16 | B17: 1 | C17: 15 | D17: 105 | E17: 455 | F17: 1365
A18: 17 | B18: 1 | C18: 16 | D18: 120 | E18: 560 | F18: 1820
A19: 18 | B19: 1 | C19: 17 | D19: 136 | E19: 680 | F19: 2380
A20: 19 | B20: 1 | C20: 18 | D20: 153 | E20: 816 | F20: 3060
A21: 20 | B21: 1 | C21: 19 | D21: 171 | E21: 969 | F21: 3876
A22: 21 | B22: 1 | C22: 20 | D22: 190 | E22: 1140 | F22: 4845
A23: 22 | B23: 1 | C23: 21 | D23: 210 | E23: 1330 | F23: 5985
A24: 23 | B24: 1 | C24: 22 | D24: 231 | E24: 1540 | F24: 7315
A25: 24 | B25: 1 | C25: 23 | D25: 253 | E25: 1771 | F25: 8855
A26: 25 | B26: 1 | C26: 24 | D26: 276 | E26: 2024 | F26: 10626
A27: 26 | B27: 1 | C27: 25 | D27: 300 | E27: 2300 | F27: 12650
A28: 27 | B28: 1 | C28: 26 | D28: 325 | E28: 2600 | F28: 14950
A29: 28 | B29: 1 | C29: 27 | D29: 351 | E29: 2925 | F29: 17550
A30: 29 | B30: 1 | C30: 28 | D30: 378 | E30: 3276 | F30: 20475
A31: 30 | B31: 1 | C31: 29 | D31: 406 | E31: 3654 | F31: 23751
A32: 31 | B32: 1 | C32: 30 | D32: 435 | E32: 4060 | F32: 27405
A33: 32 | B33: 1 | C33: 31 | D33: 465 | E33: 4495 | F33: 31465
A34: 33 | B34: 1 | C34: 32 | D34: 496 | E34: 4960 | F34: 35960
A35: 34 | B35: 1 | C35: 33 | D35: 528 | E35: 5456 | F35: 40920
A36: 35 | B36: 1 | C36: 34 | D36: 561 | E36: 5984 | F36: 46376
A37: 36 | B37: 1 | C37: 35 | D37: 595 | E37: 6545 | F37: 52360
A38: 37 | B38: 1 | C38: 36 | D38: 630 | E38: 7140 | F38: 58905
A39: 38 | B39: 1 | C39: 37 | D39: 666 | E39: 7770 | F39: 66045
A40: 39 | B40: 1 | C40: 38 | D40: 703 | E40: 8436 | F40: 73815
A41: 40 | B41: 1 | C41: 39 | D41: 741 | E41: 9139 | F41: 82251
A42: 41 | B42: 1 | C42: 40 | D42: 780 | E42: 9880 | F42: 91390
A43: 42 | B43: 1 | C43: 41 | D43: 820 | E43: 10660 | F43: 101270
A44: 43 | B44: 1 | C44: 42 | D44: 861 | E44: 11480 | F44: 111930
A45: 44 | B45: 1 | C45: 43 | D45: 903 | E45: 12341 | F45: 123410
A46: 45 | B46: 1 | C46: 44 | D46: 946 | E46: 13244 | F46: 135751
A47: 46 | B47: 1 | C47: 45 | D47: 990 | E47: 14190 | F47: 148995
A48: 47 | B48: 1 | C48: 46 | D48: 1035 | E48: 15180 | F48: 163185
A49: 48 | B49: 1 | C49: 47 | D49: 1081 | E49: 16215 | F49: 178365
A50: 49 | B50: 1 | C50: 48 | D50: 1128 | E50: 17296 | F50: 194580
A51: 50 | B51: 1 | C51: 49 | D51: 1176 | E51: 18424 | F51: 211876
A52: 51 | B52: 1 | C52: 50 | D52: 1225 | E52: 19600 | F52: 230300
A53: 52 | B53: 1 | C53: 51 | D53: 1275 | E53: 20825 | F53: 249900
A54: 53 | B54: 1 | C54: 52 | D54: 1326 | E54: 22100 | F54: 270725
A55: 54 | B55: 1 | C55: 53 | D55: 1378 | E55: 23426 | F55: 292825
A56: 55 | B56: 1 | C56: 54 | D56: 1431 | E56: 24804 | F56: 316251
A57: 56 | B57: 1 | C57: 55 | D57: 1485 | E57: 26235 | F57: 341055
A58: 57 | B58: 1 | C58: 56 | D58: 1540 | E58: 27720 | F58: 367290
A59: 58 | B59: 1 | C59: 57 | D59: 1596 | E59: 29260 | F59: 395010
A60: 59 | B60: 1 | C60: 58 | D60: 1653 | E60: 30856 | F60: 424270
A61: 60 | B61: 1 | C61: 59 | D61: 1711 | E61: 32509 | F61: 455126
A62: 61 | B62: 1 | C62: 60 | D62: 1770 | E62: 34220 | F62: 487635
A63: 62 | B63: 1 | C63: 61 | D63: 1830 | E63: 35990 | F63: 521855
A64: 63 | B64: 1 | C64: 62 | D64: 1891 | E64: 37820 | F64: 557845
A65: 64 | B65: 1 | C65: 63 | D65: 1953 | E65: 39711 | F65: 595665
A66: 65 | B66: 1 | C66: 64 | D66: 2016 | E66: 41664 | F66: 635376
A67: 66 | B67: 1 | C67: 65 | D67: 2080 | E67: 43680 | F67: 677040
A68: 67 | B68: 1 | C68: 66 | D68: 2145 | E68: 45760 | F68: 720720
A69: 68 | B69: 1 | C69: 67 | D69: 2211 | E69: 47905 | F69: 766480
A70: 69 | B70: 1 | C70: 68 | D70: 2278 | E70: 50116 | F70: 814385
A71: 70 | B71: 1 | C71: 69 | D71: 2346 | E71: 52394 | F71: 864501
A72: 71 | B72: 1 | C72: 70 | D72: 2415 | E72: 54740 | F72: 916895
A73: 72 | B73: 1 | C73: 71 | D73: 2485 | E73: 57155 | F73: 971635
A74: 73 | B74: 1 | C74: 72 | D74: 2556 | E74: 59640 | F74: 1028790
A75: 74 | B75: 1 | C75: 73 | D75: 2628 | E75: 62196 | F75: 1088430
A76: 75 | B76: 1 | C76: 74 | D76: 2701 | E76: 64824 | F76: 1150626
A77: 76 | B77: 1 | C77: 75 | D77: 2775 | E77: 67525 | F77: 1215450
A78: 77 | B78: 1 | C78: 76 | D78: 2850 | E78: 70300 | F78: 1282975
A79: 78 | B79: 1 | C79: 77 | D79: 2926 | E79: 73150 | F79: 1353275
A80: 79 | B80: 1 | C80: 78 | D80: 3003 | E80: 76076 | F80: 1426425
A81: 80 | B81: 1 | C81: 79 | D81: 3081 | E81: 79079 | F81: 1502501
A82: 81 | B82: 1 | C82: 80 | D82: 3160 | E82: 82160 | F82: 1581580
A83: 82 | B83: 1 | C83: 81 | D83: 3240 | E83: 85320 | F83: 1663740
A84: 83 | B84: 1 | C84: 82 | D84: 3321 | E84: 88560 | F84: 1749060
A85: 84 | B85: 1 | C85: 83 | D85: 3403 | E85: 91881 | F85: 1837620
A86: 85 | B86: 1 | C86: 84 | D86: 3486 | E86: 95284 | F86: 1929501
A87: 86 | B87: 1 | C87: 85 | D87: 3570 | E87: 98770 | F87: 2024785
A88: 87 | B88: 1 | C88: 86 | D88: 3655 | E88: 102340 | F88: 2123555
A89: 88 | B89: 1 | C89: 87 | D89: 3741 | E89: 105995 | F89: 2225895
A90: 89 | B90: 1 | C90: 88 | D90: 3828 | E90: 109736 | F90: 2331890
A91: 90 | B91: 1 | C91: 89 | D91: 3916 | E91: 113564 | F91: 2441626
A92: 91 | B92: 1 | C92: 90 | D92: 4005 | E92: 117480 | F92: 2555190
A93: 92 | B93: 1 | C93: 91 | D93: 4095 | E93: 121485 | F93: 2672670
A94: 93 | B94: 1 | C94: 92 | D94: 4186 | E94: 125580 | F94: 2794155
A95: 94 | B95: 1 | C95: 93 | D95: 4278 | E95: 129766 | F95: 2919735
A96: 95 | B96: 1 | C96: 94 | D96: 4371 | E96: 134044 | F96: 3049501
A97: 96 | B97: 1 | C97: 95 | D97: 4465 | E97: 138415 | F97: 3183545
A98: 97 | B98: 1 | C98: 96 | D98: 4560 | E98: 142880 | F98: 3321960
A99: 98 | B99: 1 | C99: 97 | D99: 4656 | E99: 147440 | F99: 3464840
A100: 99 | B100: 1 | C100: 98 | D100: 4753 | E100: 152096 | F100: 3612280
A101: 100 | B101: 1 | C101: 99 | D101: 4851 | E101: 156849 | F101: 3764376
A102: 101 | B102: 1 | C102: 100 | D102: 4950 | E102: 161700 | F102: 3921225
A103: 102 | B103: 1 | C103: 101 | D103: 5050 | E103: 166650 | F103: 4082925
A104: 103 | B104: 1 | C104: 102 | D104: 5151 | E104: 171700 | F104: 4249575
A105: 104 | B105: 1 | C105: 103 | D105: 5253 | E105: 176851 | F105: 4421275
A106: 105 | B106: 1 | C106: 104 | D106: 5356 | E106: 182104 | F106: 4598126
A107: 106 | B107: 1 | C107: 105 | D107: 5460 | E107: 187460 | F107: 4780230
A108: 107 | B108: 1 | C108: 106 | D108: 5565 | E108: 192920 | F108: 4967690
A109: 108 | B109: 1 | C109: 107 | D109: 5671 | E109: 198485 | F109: 5160610
A110: 109 | B110: 1 | C110: 108 | D110: 5778 | E110: 204156 | F110: 5359095
A111: 110 | B111: 1 | C111: 109 | D111: 5886 | E111: 209934 | F111: 5563251
A112: 111 | B112: 1 | C112: 110 | D112: 5995 | E112: 215820 | F112: 5773185
A113: 112 | B113: 1 | C113: 111 | D113: 6105 | E113: 221815 | F113: 5989005
A114: 113 | B114: 1 | C114: 112 | D114: 6216 | E114: 227920 | F114: 6210820
A115: 114 | B115: 1 | C115: 113 | D115: 6328 | E115: 234136 | F115: 6438740
A116: 115 | B116: 1 | C116: 114 | D116: 6441 | E116: 240464 | F116: 6672876
A117: 116 | B117: 1 | C117: 115 | D117: 6555 | E117: 246905 | F117: 6913340
A118: 117 | B118: 1 | C118: 116 | D118: 6670 | E118: 253460 | F118: 7160245
A119: 118 | B119: 1 | C119: 117 | D119: 6786 | E119: 260130 | F119: 7413705
A120: 119 | B120: 1 | C120: 118 | D120: 6903 | E120: 266916 | F120: 7673835
A121: 120 | B121: 1 | C121: 119 | D121: 7021 | E121: 273819 | F121: 7940751
A122: 121 | B122: 1 | C122: 120 | D122: 7140 | E122: 280840 | F122: 8214570
A123: 122 | B123: 1 | C123: 121 | D123: 7260 | E123: 287980 | F123: 8495410
A124: 123 | B124: 1 | C124: 122 | D124: 7381 | E124: 295240 | F124: 8783390
A125: 124 | B125: 1 | C125: 123 | D125: 7503 | E125: 302621 | F125: 9078630
A126: 125 | B126: 1 | C126: 124 | D126: 7626 | E126: 310124 | F126: 9381251
A127: 126 | B127: 1 | C127: 125 | D127: 7750 | E127: 317750 | F127: 9691375
A128: 127 | B128: 1 | C128: 126 | D128: 7875 | E128: 325500 | F128: 10009125
A129: 128 | B129: 1 | C129: 127 | D129: 8001 | E129: 333375 | F129: 10334625
A130: 129 | B130: 1 | C130: 128 | D130: 8128 | E130: 341376 | F130: 10668000
A131: 130 | B131: 1 | C131: 129 | D131: 8256 | E131: 349504 | F131: 11009376
A132: 131 | B132: 1 | C132: 130 | D132: 8385 | E132: 357760 | F132: 11358880
A133: 132 | B133: 1 | C133: 131 | D133: 8515 | E133: 366145 | F133: 11716640
A134: 133 | B134: 1 | C134: 132 | D134: 8646 | E134: 374660 | F134: 12082785
A135: 134 | B135: 1 | C135: 133 | D135: 8778 | E135: 383306 | F135: 12457445
A136: 135 | B136: 1 | C136: 134 | D136: 8911 | E136: 392084 | F136: 12840751
A137: 136 | B137: 1 | C137: 135 | D137: 9045 | E137: 400995 | F137: 13232835
A138: 137 | B138: 1 | C138: 136 | D138: 9180 | E138: 410040 | F138: 13633830
A139: 138 | B139: 1 | C139: 137 | D139: 9316 | E139: 419220 | F139: 14043870
A140: 139 | B140: 1 | C140: 138 | D140: 9453 | E140: 428536 | F140: 14463090
A141: 140 | B141: 1 | C141: 139 | D141: 9591 | E141: 437989 | F141: 14891626
A142: 141 | B142: 1 | C142: 140 | D142: 9730 | E142: 447580 | F142: 15329615
A143: 142 | B143: 1 | C143: 141 | D143: 9870 | E143: 457310 | F143: 15777195
A144: 143 | B144: 1 | C144: 142 | D144: 10011 | E144: 467180 | F144: 16234505
A145: 144 | B145: 1 | C145: 143 | D145: 10153 | E145: 477191 | F145: 16701685
A146: 145 | B146: 1 | C146: 144 | D146: 10296 | E146: 487344 | F146: 17178876
A147: 146 | B147: 1 | C147: 145 | D147: 10440 | E147: 497640 | F147: 17666220
A148: 147 | B148: 1 | C148: 146 | D148: 10585 | E148: 508080 | F148: 18163860
A149: 148 | B149: 1 | C149: 147 | D149: 10731 | E149: 518665 | F149: 18671940
A150: 149 | B150: 1 | C150: 148 | D150: 10878 | E150: 529396 | F150: 19190605
A151: 150 | B151: 1 | C151: 149 | D151: 11026 | E151: 540274 | F151: 19720001
A152: 151 | B152: 1 | C152: 150 | D152: 11175 | E152: 551300 | F152: 20260275
A153: 152 | B153: 1 | C153: 151 | D153: 11325 | E153: 562475 | F153: 20811575
A154: 153 | B154: 1 | C154: 152 | D154: 11476 | E154: 573800 | F154: 21374050
A155: 154 | B155: 1 | C155: 153 | D155: 11628 | E155: 585276 | F155: 21947850
A156: 155 | B156: 1 | C156: 154 | D156: 11781 | E156: 596904 | F156: 22533126
A157: 156 | B157: 1 | C157: 155 | D157: 11935 | E157: 608685 | F157: 23130030
A158: 157 | B158: 1 | C158: 156 | D158: 12090 | E158: 620620 | F158: 23738715
A159: 158 | B159: 1 | C159: 157 | D159: 12246 | E159: 632710 | F159: 24359335
A160: 159 | B160: 1 | C160: 158 | D160: 12403 | E160: 644956 | F160: 24992045
A161: 160 | B161: 1 | C161: 159 | D161: 12561 | E161: 657359 | F161: 25637001
A162: 161 | B162: 1 | C162: 160 | D162: 12720 | E162: 669920 | F162: 26294360
A163: 162 | B163: 1 | C163: 161 | D163: 12880 | E163: 682640 | F163: 26964280
A164: 163 | B164: 1 | C164: 162 | D164: 13041 | E164: 695520 | F164: 27646920
A165: 164 | B165: 1 | C165: 163 | D165: 13203 | E165: 708561 | F165: 28342440
A166: 165 | B166: 1 | C166: 164 | D166: 13366 | E166: 721764 | F166: 29051001
A167: 166 | B167: 1 | C167: 165 | D167: 13530 | E167: 735130 | F167: 29772765
A168: 167 | B168: 1 | C168: 166 | D168: 13695 | E168: 748660 | F168: 30507895
A169: 168 | B169: 1 | C169: 167 | D169: 13861 | E169: 762355 | F169: 31256555
A170: 169 | B170: 1 | C170: 168 | D170: 14028 | E170: 776216 | F170: 32018910
A171: 170 | B171: 1 | C171: 169 | D171: 14196 | E171: 790244 | F171: 32795126
A172: 171 | B172: 1 | C172: 170 | D172: 14365 | E172: 804440 | F172: 33585370
A173: 172 | B173: 1 | C173: 171 | D173: 14535 | E173: 818805 | F173: 34389810
A174: 173 | B174: 1 | C174: 172 | D174: 14706 | E174: 833340 | F174: 35208615
A175: 174 | B175: 1 | C175: 173 | D175: 14878 | E175: 848046 | F175: 36041955
A176: 175 | B176: 1 | C176: 174 | D176: 15051 | E176: 862924 | F176: 36890001
A177: 176 | B177: 1 | C177: 175 | D177: 15225 | E177: 877975 | F177: 37752925
A178: 177 | B178: 1 | C178: 176 | D178: 15400 | E178: 893200 | F178: 38630900
A179: 178 | B179: 1 | C179: 177 | D179: 15576 | E179: 908600 | F179: 39524100
A180: 179 | B180: 1 | C180: 178 | D180: 15753 | E180: 924176 | F180: 40432700
A181: 180 | B181: 1 | C181: 179 | D181: 15931 | E181: 939929 | F181: 41356876
A182: 181 | B182: 1 | C182: 180 | D182: 16110 | E182: 955860 | F182: 42296805
A183: 182 | B183: 1 | C183: 181 | D183: 16290 | E183: 971970 | F183: 43252665
A184: 183 | B184: 1 | C184: 182 | D184: 16471 | E184: 988260 | F184: 44224635
A185: 184 | B185: 1 | C185: 183 | D185: 16653 | E185: 1004731 | F185: 45212895
A186: 185 | B186: 1 | C186: 184 | D186: 16836 | E186: 1021384 | F186: 46217626
A187: 186 | B187: 1 | C187: 185 | D187: 17020 | E187: 1038220 | F187: 47239010
A188: 187 | B188: 1 | C188: 186 | D188: 17205 | E188: 1055240 | F188: 48277230
A189: 188 | B189: 1 | C189: 187 | D189: 17391 | E189: 1072445 | F189: 49332470
A190: 189 | B190: 1 | C190: 188 | D190: 17578 | E190: 1089836 | F190: 50404915
A191: 190 | B191: 1 | C191: 189 | D191: 17766 | E191: 1107414 | F191: 51494751
A192: 191 | B192: 1 | C192: 190 | D192: 17955 | E192: 1125180 | F192: 52602165
A193: 192 | B193: 1 | C193: 191 | D193: 18145 | E193: 1143135 | F193: 53727345
A194: 193 | B194: 1 | C194: 192 | D194: 18336 | E194: 1161280 | F194: 54870480
A195: 194 | B195: 1 | C195: 193 | D195: 18528 | E195: 1179616 | F195: 56031760
A196: 195 | B196: 1 | C196: 194 | D196: 18721 | E196: 1198144 | F196: 57211376
A197: 196 | B197: 1 | C197: 195 | D197: 18915 | E197: 1216865 | F197: 58409520
A198: 197 | B198: 1 | C198: 196 | D198: 19110 | E198: 1235780 | F198: 59626385
A199: 198 | B199: 1 | C199: 197 | D199: 19306 | E199: 1254890 | F199: 60862165
A200: 199 | B200: 1 | C200: 198 | D200: 19503 | E200: 1274196 | F200: 62117055
... 639 more rows

Sheet PivotSheet (hidden)
A1: Data | B1: Count of Data | D1: Pivot Index
A2: 2 | B2: 1 | D2: =IF(A2="","",1) -> 1
A3: 3 | B3: 2 | D3: =IF(A3="","",D2+1) -> 2
A4: 4 | B4: 1 | D4: =IF(A4="","",D3+1) -> 3
A5: 5 | B5: 1 | D5: 4
A6: 6 | B6: 1 | D6: 5
A7: 10 | B7: 2 | D7: 6
A8: 11 | B8: 1 | D8: 7
A9: 12 | B9: 1 | D9: 8
A10: 14 | B10: 1 | D10: 9
A11: 15 | B11: 1 | D11: 10
A12: 17 | B12: 1 | D12: 11
A13: 21 | B13: 1 | D13: 12
A14: 22 | B14: 1 | D14: 13
A15: 25 | B15: 1 | D15: 14
A16: 28 | B16: 1 | D16: 15
A17: 29 | B17: 3 | D17: 16
A18: 30 | B18: 2 | D18: 17
A19: 34 | B19: 1 | D19: 18
A20: 39 | B20: 2 | D20: 19
A21: 41 | B21: 1 | D21: 20
A22: 42 | B22: 1 | D22: 21
A23: 45 | B23: 2 | D23: 22
A24: 47 | B24: 1 | D24: 23
A25: 49 | B25: 1 | D25: 24
A26: 50 | B26: 1 | D26: 25
A27: 51 | B27: 1 | D27: 26
A28: 53 | B28: 1 | D28: 27
A29: 54 | B29: 1 | D29: 28
A30: 55 | B30: 1 | D30: 29
A31: 61 | B31: 1 | D31: 30
A32: 62 | B32: 2 | D32: 31
A33: 63 | B33: 1 | D33: 32
A34: 66 | B34: 1 | D34: 33
A35: 67 | B35: 1 | D35: 34
A36: 68 | B36: 1 | D36: 35
A37: 69 | B37: 2 | D37: 36
A38: 72 | B38: 1 | D38: 37
A39: 75 | B39: 2 | D39: 38
A40: 78 | B40: 1 | D40: 39
A41: 79 | B41: 2 | D41: 40
A42: 82 | B42: 3 | D42: 41
A43: 84 | B43: 1 | D43: 42
A44: 85 | B44: 2 | D44: 43
A45: 87 | B45: 2 | D45: 44
A46: 88 | B46: 2 | D46: 45
A47: 89 | B47: 3 | D47: 46
A48: 90 | B48: 1 | D48: 47
A49: 94 | B49: 1 | D49: 48
A50: 97 | B50: 1 | D50: 49
A51: 98 | B51: 1 | D51: 50
A52: 99 | B52: 1 | D52: 51
A53: 100 | B53: 1 | D53: 52
A54: 102 | B54: 2 | D54: 53
A55: 104 | B55: 2 | D55: 54
A56: 106 | B56: 3 | D56: 55
A57: 108 | B57: 1 | D57: 56
A58: 109 | B58: 1 | D58: 57
A59: 110 | B59: 1 | D59: 58
A60: 111 | B60: 1 | D60: 59
A61: 114 | B61: 1 | D61: 60
A62: 118 | B62: 1 | D62: 61
A63: 121 | B63: 1 | D63: 62
A64: 122 | B64: 2 | D64: 63
A65: 123 | B65: 3 | D65: 64
A66: 125 | B66: 2 | D66: 65
A67: 127 | B67: 1 | D67: 66
A68: 128 | B68: 1 | D68: =IF(A68="","",D67+1) -> 67
A69: 129 | B69: 1 | D69: 68
A70: 133 | B70: 1 | D70: 69
A71: 135 | B71: 1 | D71: 70
A72: 137 | B72: 3 | D72: 71
A73: 139 | B73: 1 | D73: 72
A74: 140 | B74: 1 | D74: 73
A75: 141 | B75: 2 | D75: 74
A76: 144 | B76: 1 | D76: 75
A77: 145 | B77: 2 | D77: 76
A78: 147 | B78: 1 | D78: 77
A79: 150 | B79: 1 | D79: 78
A80: 154 | B80: 1 | D80: 79
A81: 155 | B81: 2 | D81: 80
A82: 156 | B82: 3 | D82: 81
A83: 158 | B83: 1 | D83: 82
A84: 159 | B84: 1 | D84: 83
A85: 161 | B85: 2 | D85: 84
A86: 165 | B86: 1 | D86: 85
A87: 166 | B87: 2 | D87: 86
A88: 167 | B88: 1 | D88: 87
A89: 168 | B89: 1 | D89: 88
A90: 169 | B90: 1 | D90: 89
A91: 170 | B91: 1 | D91: 90
A92: 171 | B92: 3 | D92: 91
A93: 172 | B93: 2 | D93: 92
A94: 174 | B94: 1 | D94: 93
A95: 177 | B95: 1 | D95: 94
A96: 178 | B96: 2 | D96: 95
A97: 179 | B97: 2 | D97: 96
A98: 181 | B98: 3 | D98: 97
A99: 182 | B99: 1 | D99: 98
A100: 186 | B100: 2 | D100: 99
A101: 187 | B101: 2 | D101: 100
A102: 189 | B102: 1 | D102: 101
A103: 190 | B103: 2 | D103: 102
A104: 191 | B104: 2 | D104: 103
A105: 196 | B105: 1 | D105: 104
A106: 197 | B106: 1 | D106: 105
A107: 203 | B107: 1 | D107: 106
A108: 204 | B108: 1 | D108: 107
A109: 206 | B109: 1 | D109: 108
A110: 208 | B110: 1 | D110: 109
A111: 213 | B111: 3 | D111: 110
A112: 214 | B112: 1 | D112: 111
A113: 217 | B113: 1 | D113: 112
A114: 218 | B114: 2 | D114: 113
A115: 220 | B115: 1 | D115: 114
A116: 222 | B116: 1 | D116: 115
A117: 226 | B117: 1 | D117: 116
A118: 227 | B118: 1 | D118: 117
A119: 228 | B119: 1 | D119: 118
A120: 229 | B120: 2 | D120: 119
A121: 235 | B121: 1 | D121: 120
A122: 236 | B122: 1 | D122: 121
A123: 238 | B123: 1 | D123: 122
A124: 239 | B124: 2 | D124: 123
A125: 241 | B125: 2 | D125: 124
A126: 244 | B126: 1 | D126: 125
A127: 248 | B127: 1 | D127: 126
A128: 249 | B128: 3 | D128: 127
A129: 252 | B129: 2 | D129: 128
A130: 256 | B130: 1 | D130: 129
A131: 257 | B131: 1 | D131: 130
A132: 258 | B132: 1 | D132: =IF(A132="","",D131+1) -> 131
A133: 260 | B133: 1 | D133: 132
A134: 264 | B134: 1 | D134: 133
A135: 265 | B135: 1 | D135: 134
A136: 266 | B136: 1 | D136: 135
A137: 267 | B137: 2 | D137: 136
A138: 269 | B138: 2 | D138: 137
A139: 270 | B139: 1 | D139: 138
A140: 273 | B140: 1 | D140: 139
A141: 275 | B141: 1 | D141: 140
A142: 277 | B142: 1 | D142: 141
A143: 278 | B143: 1 | D143: 142
A144: 280 | B144: 1 | D144: 143
A145: 282 | B145: 1 | D145: 144
A146: 286 | B146: 1 | D146: 145
A147: 289 | B147: 2 | D147: 146
A148: 291 | B148: 1 | D148: 147
A149: 292 | B149: 3 | D149: 148
A150: 293 | B150: 1 | D150: 149
A151: 294 | B151: 1 | D151: 150
A152: 295 | B152: 4 | D152: 151
A153: 296 | B153: 1 | D153: 152
A154: 297 | B154: 2 | D154: 153
A155: 301 | B155: 1 | D155: 154
A156: 302 | B156: 1 | D156: 155
A157: 303 | B157: 1 | D157: 156
A158: 305 | B158: 1 | D158: 157
A159: 306 | B159: 1 | D159: 158
A160: 308 | B160: 1 | D160: 159
A161: 309 | B161: 1 | D161: 160
A162: 310 | B162: 1 | D162: 161
A163: 313 | B163: 1 | D163: 162
A164: 314 | B164: 1 | D164: 163
A165: 315 | B165: 1 | D165: 164
A166: 319 | B166: 1 | D166: 165
A167: 321 | B167: 1 | D167: 166
A168: 324 | B168: 1 | D168: 167
A169: 326 | B169: 2 | D169: 168
A170: 327 | B170: 1 | D170: 169
A171: 328 | B171: 2 | D171: 170
A172: 329 | B172: 2 | D172: 171
A173: 330 | B173: 1 | D173: 172
A174: 332 | B174: 3 | D174: 173
A175: 334 | B175: 1 | D175: 174
A176: 335 | B176: 1 | D176: 175
A177: 337 | B177: 2 | D177: 176
A178: 338 | B178: 1 | D178: 177
A179: 339 | B179: 2 | D179: 178
A180: 343 | B180: 1 | D180: 179
A181: 345 | B181: 2 | D181: 180
A182: 346 | B182: 2 | D182: 181
A183: 347 | B183: 1 | D183: 182
A184: 349 | B184: 1 | D184: 183
A185: 350 | B185: 1 | D185: 184
A186: 351 | B186: 1 | D186: 185
A187: 353 | B187: 1 | D187: 186
A188: 354 | B188: 1 | D188: 187
A189: 356 | B189: 2 | D189: 188
A190: 359 | B190: 1 | D190: 189
A191: 361 | B191: 1 | D191: 190
A192: 362 | B192: 3 | D192: 191
A193: 363 | B193: 1 | D193: 192
A194: 365 | B194: 1 | D194: 193
A195: 366 | B195: 1 | D195: 194
A196: 368 | B196: 1 | D196: =IF(A196="","",D195+1) -> 195
A197: 369 | B197: 2 | D197: 196
A198: 373 | B198: 1 | D198: 197
A199: 375 | B199: 1 | D199: 198
A200: 376 | B200: 1 | D200: 199
... 58 more rows

Sheet Jenks (hidden)
A1: Data | B1: Group | C1: Frequency | D1: Group 1 | E1: Group 2 | F1: Group 3 | G1: Group 4 | H1: Group 5 | I1: Cum. Freq
A2: =PivotSheet!A2 -> 2 | B2: a | C2: =PivotSheet!B2 -> 1 | D2: =IF(B2="a",1,NA()) -> 1 | E2: =IF(B2="b",1,NA()) ->  | F2: =IF(B2="c",1,NA()) ->  | G2: =IF(B2="d",1,NA()) ->  | H2: =IF(B2="e",1,NA()) ->  | I2: =C2/SUM($C$2:$C$10000) -> 0.00288184438 | J2: 2 levels of Intensity | T2: Group | V2: Std. Dev
A3: =PivotSheet!A3 -> 3 | B3: a | C3: =PivotSheet!B3 -> 2 | D3: =IF(B3="a",1,NA()) -> 1 | E3: =IF(B3="b",1,NA()) ->  | F3: =IF(B3="c",1,NA()) ->  | G3: =IF(B3="d",1,NA()) ->  | H3: =IF(B3="e",1,NA()) ->  | I3: =C3/SUM($C$2:$C$10000)+I2 -> 0.008645533141 | K3: Min Value | L3: Max Value | T3: a | U3: Min Value | V3: =INDEX($K$4:$L$26,MATCH(1,(Data!$F$2=$M$4:$M$26)*(T3=$N$4:$N$26),0),MATCH(U3,$K$3:$L$3,0)) -> 2
A4: =PivotSheet!A4 -> 4 | B4: a | C4: =PivotSheet!B4 -> 1 | D4: 1 | I4: =C4/SUM($C$2:$C$10000)+I3 -> 0.01152737752 | J4: A-Size | K4: =MIN(IF($B$2:$B$365="A",$A$2:$A$365)) -> 2 | L4: =MAX(IF($B$2:$B$365="A",$A$2:$A$365)) -> 161 | M4: 2 | N4: a | T4: a | U4: Max Value | V4: =INDEX($K$4:$L$26,MATCH(1,(Data!$F$2=$M$4:$M$26)*(T4=$N$4:$N$26),0),MATCH(U4,$K$3:$L$3,0)) -> 161
A5: =PivotSheet!A5 -> 5 | B5: a | C5: =PivotSheet!B5 -> 1 | D5: 1 | I5: 0.0144092219 | J5: B-Size | K5: =MIN(IF($B$2:$B$365="B",$A$2:$A$365)) -> 165 | L5: =MAX(IF($B$2:$B$365="B",$A$2:$A$365)) -> 321 | M5: 2 | N5: b | T5: b | U5: Min Value | V5: =INDEX($K$4:$L$26,MATCH(1,(Data!$F$2=$M$4:$M$26)*(T5=$N$4:$N$26),0),MATCH(U5,$K$3:$L$3,0)) -> 165
A6: =PivotSheet!A6 -> 6 | B6: a | C6: =PivotSheet!B6 -> 1 | D6: 1 | I6: 0.01729106628 | T6: b | U6: Max Value | V6: =INDEX($K$4:$L$26,MATCH(1,(Data!$F$2=$M$4:$M$26)*(T6=$N$4:$N$26),0),MATCH(U6,$K$3:$L$3,0)) -> 321
A7: =PivotSheet!A7 -> 10 | B7: a | C7: =PivotSheet!B7 -> 2 | D7: 1 | I7: 0.02305475504 | J7: 3 Levels of Intensity | T7: c | U7: Min Value | V7: =INDEX($K$4:$L$26,MATCH(1,(Data!$F$2=$M$4:$M$26)*(T7=$N$4:$N$26),0),MATCH(U7,$K$3:$L$3,0)) -> 324
A8: =PivotSheet!A8 -> 11 | B8: a | C8: =PivotSheet!B8 -> 1 | D8: 1 | I8: 0.02593659942 | T8: c | U8: Max Value | V8: =INDEX($K$4:$L$26,MATCH(1,(Data!$F$2=$M$4:$M$26)*(T8=$N$4:$N$26),0),MATCH(U8,$K$3:$L$3,0)) -> 498
A9: =PivotSheet!A9 -> 12 | B9: a | C9: =PivotSheet!B9 -> 1 | D9: 1 | I9: 0.0288184438 | J9: A-Size | K9: =MIN(IF($B$2:$B$365="A",$A$2:$A$365)) -> 2 | L9: =MAX(IF($B$2:$B$365="A",$A$2:$A$365)) -> 161 | M9: 3 | N9: a | T9: d | U9: Min Value | V9: =INDEX($K$4:$L$26,MATCH(1,(Data!$F$2=$M$4:$M$26)*(T9=$N$4:$N$26),0),MATCH(U9,$K$3:$L$3,0)) -> 
A10: =PivotSheet!A10 -> 14 | B10: a | C10: =PivotSheet!B10 -> 1 | D10: 1 | I10: 0.03170028818 | J10: B-Size | K10: =MIN(IF($B$2:$B$365="B",$A$2:$A$365)) -> 165 | L10: =MAX(IF($B$2:$B$365="B",$A$2:$A$365)) -> 321 | M10: 3 | N10: b | T10: d | U10: Max Value | V10: =INDEX($K$4:$L$26,MATCH(1,(Data!$F$2=$M$4:$M$26)*(T10=$N$4:$N$26),0),MATCH(U10,$K$3:$L$3,0)) -> 
A11: =PivotSheet!A11 -> 15 | B11: a | C11: =PivotSheet!B11 -> 1 | D11: 1 | I11: 0.03458213256 | J11: C-Size | K11: =MIN(IF($B$2:$B$365="C",$A$2:$A$365)) -> 324 | L11: =MAX(IF($B$2:$B$365="C",$A$2:$A$365)) -> 498 | M11: 3 | N11: c | T11: e | U11: Min Value | V11: =INDEX($K$4:$L$26,MATCH(1,(Data!$F$2=$M$4:$M$26)*(T11=$N$4:$N$26),0),MATCH(U11,$K$3:$L$3,0)) -> 
A12: =PivotSheet!A12 -> 17 | B12: a | C12: =PivotSheet!B12 -> 1 | D12: 1 | I12: 0.03746397695 | T12: e | U12: Max Value | V12: =INDEX($K$4:$L$26,MATCH(1,(Data!$F$2=$M$4:$M$26)*(T12=$N$4:$N$26),0),MATCH(U12,$K$3:$L$3,0)) -> 
A13: =PivotSheet!A13 -> 21 | B13: a | C13: =PivotSheet!B13 -> 1 | D13: 1 | I13: 0.04034582133 | J13: 4 Levels of Intensity
A14: =PivotSheet!A14 -> 22 | B14: a | C14: =PivotSheet!B14 -> 1 | D14: 1 | I14: 0.04322766571
A15: =PivotSheet!A15 -> 25 | B15: a | C15: =PivotSheet!B15 -> 1 | D15: 1 | I15: 0.04610951009 | J15: A-Size | K15: =MIN(IF($B$2:$B$365="A",$A$2:$A$365)) -> 2 | L15: =MAX(IF($B$2:$B$365="A",$A$2:$A$365)) -> 161 | M15: 4 | N15: a
A16: =PivotSheet!A16 -> 28 | B16: a | C16: =PivotSheet!B16 -> 1 | D16: 1 | I16: 0.04899135447 | J16: B-Size | K16: =MIN(IF($B$2:$B$365="B",$A$2:$A$365)) -> 165 | L16: =MAX(IF($B$2:$B$365="B",$A$2:$A$365)) -> 321 | M16: 4 | N16: b
A17: =PivotSheet!A17 -> 29 | B17: a | C17: =PivotSheet!B17 -> 3 | D17: 1 | I17: 0.05763688761 | J17: C-Size | K17: =MIN(IF($B$2:$B$365="C",$A$2:$A$365)) -> 324 | L17: =MAX(IF($B$2:$B$365="C",$A$2:$A$365)) -> 498 | M17: 4 | N17: c
A18: =PivotSheet!A18 -> 30 | B18: a | C18: =PivotSheet!B18 -> 2 | D18: 1 | I18: 0.06340057637 | J18: D-Size | K18: =MIN(IF($B$2:$B$365="D",$A$2:$A$365)) -> 0 | L18: =MAX(IF($B$2:$B$365="D",$A$2:$A$365)) -> 0 | M18: 4 | N18: d
A19: =PivotSheet!A19 -> 34 | B19: a | C19: =PivotSheet!B19 -> 1 | D19: 1 | I19: 0.06628242075
A20: =PivotSheet!A20 -> 39 | B20: a | C20: =PivotSheet!B20 -> 2 | D20: 1 | I20: 0.07204610951 | J20: 5 Levels of Intensity
A21: =PivotSheet!A21 -> 41 | B21: a | C21: =PivotSheet!B21 -> 1 | D21: 1 | I21: 0.07492795389
A22: =PivotSheet!A22 -> 42 | B22: a | C22: =PivotSheet!B22 -> 1 | D22: 1 | I22: 0.07780979827 | J22: A-Size | K22: =MIN(IF($B$2:$B$365="A",$A$2:$A$365)) -> 2 | L22: =MAX(IF($B$2:$B$365="A",$A$2:$A$365)) -> 161 | M22: 5 | N22: a
A23: =PivotSheet!A23 -> 45 | B23: a | C23: =PivotSheet!B23 -> 2 | D23: 1 | I23: 0.08357348703 | J23: B-Size | K23: =MIN(IF($B$2:$B$365="B",$A$2:$A$365)) -> 165 | L23: =MAX(IF($B$2:$B$365="B",$A$2:$A$365)) -> 321 | M23: 5 | N23: b
A24: =PivotSheet!A24 -> 47 | B24: a | C24: =PivotSheet!B24 -> 1 | D24: 1 | I24: 0.08645533141 | J24: C-Size | K24: =MIN(IF($B$2:$B$365="C",$A$2:$A$365)) -> 324 | L24: =MAX(IF($B$2:$B$365="C",$A$2:$A$365)) -> 498 | M24: 5 | N24: c
A25: =PivotSheet!A25 -> 49 | B25: a | C25: =PivotSheet!B25 -> 1 | D25: 1 | I25: 0.08933717579 | J25: D-Size | K25: =MIN(IF($B$2:$B$365="D",$A$2:$A$365)) -> 0 | L25: =MAX(IF($B$2:$B$365="D",$A$2:$A$365)) -> 0 | M25: 5 | N25: d
A26: =PivotSheet!A26 -> 50 | B26: a | C26: =PivotSheet!B26 -> 1 | D26: 1 | I26: 0.09221902017 | J26: E-size | K26: =MIN(IF($B$2:$B$365="E",$A$2:$A$365)) -> 0 | L26: =MAX(IF($B$2:$B$365="E",$A$2:$A$365)) -> 0 | M26: 5 | N26: e
A27: =PivotSheet!A27 -> 51 | B27: a | C27: =PivotSheet!B27 -> 1 | D27: 1 | I27: 0.09510086455
A28: =PivotSheet!A28 -> 53 | B28: a | C28: =PivotSheet!B28 -> 1 | D28: 1 | I28: 0.09798270893
A29: =PivotSheet!A29 -> 54 | B29: a | C29: =PivotSheet!B29 -> 1 | D29: 1 | I29: 0.1008645533
A30: =PivotSheet!A30 -> 55 | B30: a | C30: =PivotSheet!B30 -> 1 | D30: 1 | I30: 0.1037463977
A31: =PivotSheet!A31 -> 61 | B31: a | C31: =PivotSheet!B31 -> 1 | D31: 1 | I31: 0.1066282421
A32: =PivotSheet!A32 -> 62 | B32: a | C32: =PivotSheet!B32 -> 2 | D32: 1 | I32: 0.1123919308
A33: =PivotSheet!A33 -> 63 | B33: a | C33: =PivotSheet!B33 -> 1 | D33: 1 | I33: 0.1152737752
A34: =PivotSheet!A34 -> 66 | B34: a | C34: =PivotSheet!B34 -> 1 | D34: 1 | I34: 0.1181556196
A35: =PivotSheet!A35 -> 67 | B35: a | C35: =PivotSheet!B35 -> 1 | D35: 1 | I35: 0.121037464
A36: =PivotSheet!A36 -> 68 | B36: a | C36: =PivotSheet!B36 -> 1 | D36: 1 | I36: 0.1239193084
A37: =PivotSheet!A37 -> 69 | B37: a | C37: =PivotSheet!B37 -> 2 | D37: 1 | I37: 0.1296829971
A38: =PivotSheet!A38 -> 72 | B38: a | C38: =PivotSheet!B38 -> 1 | D38: 1 | I38: 0.1325648415
A39: =PivotSheet!A39 -> 75 | B39: a | C39: =PivotSheet!B39 -> 2 | D39: 1 | I39: 0.1383285303
A40: =PivotSheet!A40 -> 78 | B40: a | C40: =PivotSheet!B40 -> 1 | D40: 1 | I40: 0.1412103746
A41: =PivotSheet!A41 -> 79 | B41: a | C41: =PivotSheet!B41 -> 2 | D41: 1 | I41: 0.1469740634
A42: =PivotSheet!A42 -> 82 | B42: a | C42: =PivotSheet!B42 -> 3 | D42: 1 | I42: 0.1556195965
A43: =PivotSheet!A43 -> 84 | B43: a | C43: =PivotSheet!B43 -> 1 | D43: 1 | I43: 0.1585014409
A44: =PivotSheet!A44 -> 85 | B44: a | C44: =PivotSheet!B44 -> 2 | D44: 1 | I44: 0.1642651297
A45: =PivotSheet!A45 -> 87 | B45: a | C45: =PivotSheet!B45 -> 2 | D45: 1 | I45: 0.1700288184
A46: =PivotSheet!A46 -> 88 | B46: a | C46: =PivotSheet!B46 -> 2 | D46: 1 | I46: 0.1757925072
A47: =PivotSheet!A47 -> 89 | B47: a | C47: =PivotSheet!B47 -> 3 | D47: 1 | I47: 0.1844380403
A48: =PivotSheet!A48 -> 90 | B48: a | C48: =PivotSheet!B48 -> 1 | D48: 1 | I48: 0.1873198847
A49: =PivotSheet!A49 -> 94 | B49: a | C49: =PivotSheet!B49 -> 1 | D49: 1 | I49: 0.1902017291
A50: =PivotSheet!A50 -> 97 | B50: a | C50: =PivotSheet!B50 -> 1 | D50: 1 | I50: 0.1930835735
A51: =PivotSheet!A51 -> 98 | B51: a | C51: =PivotSheet!B51 -> 1 | D51: 1 | I51: 0.1959654179
A52: =PivotSheet!A52 -> 99 | B52: a | C52: =PivotSheet!B52 -> 1 | D52: 1 | I52: 0.1988472622
A53: =PivotSheet!A53 -> 100 | B53: a | C53: =PivotSheet!B53 -> 1 | D53: 1 | I53: 0.2017291066
A54: =PivotSheet!A54 -> 102 | B54: a | C54: =PivotSheet!B54 -> 2 | D54: 1 | I54: 0.2074927954
A55: =PivotSheet!A55 -> 104 | B55: a | C55: =PivotSheet!B55 -> 2 | D55: 1 | I55: 0.2132564841
A56: =PivotSheet!A56 -> 106 | B56: a | C56: =PivotSheet!B56 -> 3 | D56: 1 | I56: 0.2219020173
A57: =PivotSheet!A57 -> 108 | B57: a | C57: =PivotSheet!B57 -> 1 | D57: 1 | I57: 0.2247838617
A58: =PivotSheet!A58 -> 109 | B58: a | C58: =PivotSheet!B58 -> 1 | D58: 1 | I58: 0.2276657061
A59: =PivotSheet!A59 -> 110 | B59: a | C59: =PivotSheet!B59 -> 1 | D59: 1 | I59: 0.2305475504
A60: =PivotSheet!A60 -> 111 | B60: a | C60: =PivotSheet!B60 -> 1 | D60: 1 | I60: 0.2334293948
A61: =PivotSheet!A61 -> 114 | B61: a | C61: =PivotSheet!B61 -> 1 | D61: 1 | I61: 0.2363112392
A62: =PivotSheet!A62 -> 118 | B62: a | C62: =PivotSheet!B62 -> 1 | D62: 1 | I62: 0.2391930836
A63: =PivotSheet!A63 -> 121 | B63: a | C63: =PivotSheet!B63 -> 1 | D63: 1 | I63: 0.242074928
A64: =PivotSheet!A64 -> 122 | B64: a | C64: =PivotSheet!B64 -> 2 | D64: 1 | I64: 0.2478386167
A65: =PivotSheet!A65 -> 123 | B65: a | C65: =PivotSheet!B65 -> 3 | D65: 1 | I65: 0.2564841499
A66: =PivotSheet!A66 -> 125 | B66: a | C66: =PivotSheet!B66 -> 2 | D66: 1 | I66: 0.2622478386
A67: =PivotSheet!A67 -> 127 | B67: a | C67: =PivotSheet!B67 -> 1 | D67: =IF(B67="a",1,NA()) -> 1 | E67: =IF(B67="b",1,NA()) ->  | F67: =IF(B67="c",1,NA()) ->  | G67: =IF(B67="d",1,NA()) ->  | H67: =IF(B67="e",1,NA()) ->  | I67: 0.265129683
A68: =PivotSheet!A68 -> 128 | B68: a | C68: =PivotSheet!B68 -> 1 | D68: 1 | I68: =C68/SUM($C$2:$C$10000)+I67 -> 0.2680115274
A69: =PivotSheet!A69 -> 129 | B69: a | C69: =PivotSheet!B69 -> 1 | D69: 1 | I69: 0.2708933718
A70: =PivotSheet!A70 -> 133 | B70: a | C70: =PivotSheet!B70 -> 1 | D70: 1 | I70: 0.2737752161
A71: =PivotSheet!A71 -> 135 | B71: a | C71: =PivotSheet!B71 -> 1 | D71: 1 | I71: 0.2766570605
A72: =PivotSheet!A72 -> 137 | B72: a | C72: =PivotSheet!B72 -> 3 | D72: 1 | I72: 0.2853025937
A73: =PivotSheet!A73 -> 139 | B73: a | C73: =PivotSheet!B73 -> 1 | D73: 1 | I73: 0.288184438
A74: =PivotSheet!A74 -> 140 | B74: a | C74: =PivotSheet!B74 -> 1 | D74: 1 | I74: 0.2910662824
A75: =PivotSheet!A75 -> 141 | B75: a | C75: =PivotSheet!B75 -> 2 | D75: 1 | I75: 0.2968299712
A76: =PivotSheet!A76 -> 144 | B76: a | C76: =PivotSheet!B76 -> 1 | D76: 1 | I76: 0.2997118156
A77: =PivotSheet!A77 -> 145 | B77: a | C77: =PivotSheet!B77 -> 2 | D77: 1 | I77: 0.3054755043
A78: =PivotSheet!A78 -> 147 | B78: a | C78: =PivotSheet!B78 -> 1 | D78: 1 | I78: 0.3083573487
A79: =PivotSheet!A79 -> 150 | B79: a | C79: =PivotSheet!B79 -> 1 | D79: 1 | I79: 0.3112391931
A80: =PivotSheet!A80 -> 154 | B80: a | C80: =PivotSheet!B80 -> 1 | D80: 1 | I80: 0.3141210375
A81: =PivotSheet!A81 -> 155 | B81: a | C81: =PivotSheet!B81 -> 2 | D81: 1 | I81: 0.3198847262
A82: =PivotSheet!A82 -> 156 | B82: a | C82: =PivotSheet!B82 -> 3 | D82: 1 | I82: 0.3285302594
A83: =PivotSheet!A83 -> 158 | B83: a | C83: =PivotSheet!B83 -> 1 | D83: 1 | I83: 0.3314121037
A84: =PivotSheet!A84 -> 159 | B84: a | C84: =PivotSheet!B84 -> 1 | D84: 1 | I84: 0.3342939481
A85: =PivotSheet!A85 -> 161 | B85: a | C85: =PivotSheet!B85 -> 2 | D85: 1 | I85: 0.3400576369
A86: =PivotSheet!A86 -> 165 | B86: b | C86: =PivotSheet!B86 -> 1 | E86: 1 | I86: 0.3429394813
A87: =PivotSheet!A87 -> 166 | B87: b | C87: =PivotSheet!B87 -> 2 | E87: 1 | I87: 0.34870317
A88: =PivotSheet!A88 -> 167 | B88: b | C88: =PivotSheet!B88 -> 1 | E88: 1 | I88: 0.3515850144
A89: =PivotSheet!A89 -> 168 | B89: b | C89: =PivotSheet!B89 -> 1 | E89: 1 | I89: 0.3544668588
A90: =PivotSheet!A90 -> 169 | B90: b | C90: =PivotSheet!B90 -> 1 | E90: 1 | I90: 0.3573487032
A91: =PivotSheet!A91 -> 170 | B91: b | C91: =PivotSheet!B91 -> 1 | E91: 1 | I91: 0.3602305476
A92: =PivotSheet!A92 -> 171 | B92: b | C92: =PivotSheet!B92 -> 3 | E92: 1 | I92: 0.3688760807
A93: =PivotSheet!A93 -> 172 | B93: b | C93: =PivotSheet!B93 -> 2 | E93: 1 | I93: 0.3746397695
A94: =PivotSheet!A94 -> 174 | B94: b | C94: =PivotSheet!B94 -> 1 | E94: 1 | I94: 0.3775216138
A95: =PivotSheet!A95 -> 177 | B95: b | C95: =PivotSheet!B95 -> 1 | E95: 1 | I95: 0.3804034582
A96: =PivotSheet!A96 -> 178 | B96: b | C96: =PivotSheet!B96 -> 2 | E96: 1 | I96: 0.386167147
A97: =PivotSheet!A97 -> 179 | B97: b | C97: =PivotSheet!B97 -> 2 | E97: 1 | I97: 0.3919308357
A98: =PivotSheet!A98 -> 181 | B98: b | C98: =PivotSheet!B98 -> 3 | E98: 1 | I98: 0.4005763689
A99: =PivotSheet!A99 -> 182 | B99: b | C99: =PivotSheet!B99 -> 1 | E99: 1 | I99: 0.4034582133
A100: =PivotSheet!A100 -> 186 | B100: b | C100: =PivotSheet!B100 -> 2 | E100: 1 | I100: 0.409221902
A101: =PivotSheet!A101 -> 187 | B101: b | C101: =PivotSheet!B101 -> 2 | E101: 1 | I101: 0.4149855908
A102: =PivotSheet!A102 -> 189 | B102: b | C102: =PivotSheet!B102 -> 1 | E102: 1 | I102: 0.4178674352
A103: =PivotSheet!A103 -> 190 | B103: b | C103: =PivotSheet!B103 -> 2 | E103: 1 | I103: 0.4236311239
A104: =PivotSheet!A104 -> 191 | B104: b | C104: =PivotSheet!B104 -> 2 | E104: 1 | I104: 0.4293948127
A105: =PivotSheet!A105 -> 196 | B105: b | C105: =PivotSheet!B105 -> 1 | E105: 1 | I105: 0.4322766571
A106: =PivotSheet!A106 -> 197 | B106: b | C106: =PivotSheet!B106 -> 1 | E106: 1 | I106: 0.4351585014
A107: =PivotSheet!A107 -> 203 | B107: b | C107: =PivotSheet!B107 -> 1 | E107: 1 | I107: 0.4380403458
A108: =PivotSheet!A108 -> 204 | B108: b | C108: =PivotSheet!B108 -> 1 | E108: 1 | I108: 0.4409221902
A109: =PivotSheet!A109 -> 206 | B109: b | C109: =PivotSheet!B109 -> 1 | E109: 1 | I109: 0.4438040346
A110: =PivotSheet!A110 -> 208 | B110: b | C110: =PivotSheet!B110 -> 1 | E110: 1 | I110: 0.446685879
A111: =PivotSheet!A111 -> 213 | B111: b | C111: =PivotSheet!B111 -> 3 | E111: 1 | I111: 0.4553314121
A112: =PivotSheet!A112 -> 214 | B112: b | C112: =PivotSheet!B112 -> 1 | E112: 1 | I112: 0.4582132565
A113: =PivotSheet!A113 -> 217 | B113: b | C113: =PivotSheet!B113 -> 1 | E113: 1 | I113: 0.4610951009
A114: =PivotSheet!A114 -> 218 | B114: b | C114: =PivotSheet!B114 -> 2 | E114: 1 | I114: 0.4668587896
A115: =PivotSheet!A115 -> 220 | B115: b | C115: =PivotSheet!B115 -> 1 | E115: 1 | I115: 0.469740634
A116: =PivotSheet!A116 -> 222 | B116: b | C116: =PivotSheet!B116 -> 1 | E116: 1 | I116: 0.4726224784
A117: =PivotSheet!A117 -> 226 | B117: b | C117: =PivotSheet!B117 -> 1 | E117: 1 | I117: 0.4755043228
A118: =PivotSheet!A118 -> 227 | B118: b | C118: =PivotSheet!B118 -> 1 | E118: 1 | I118: 0.4783861671
A119: =PivotSheet!A119 -> 228 | B119: b | C119: =PivotSheet!B119 -> 1 | E119: 1 | I119: 0.4812680115
A120: =PivotSheet!A120 -> 229 | B120: b | C120: =PivotSheet!B120 -> 2 | E120: 1 | I120: 0.4870317003
A121: =PivotSheet!A121 -> 235 | B121: b | C121: =PivotSheet!B121 -> 1 | E121: 1 | I121: 0.4899135447
A122: =PivotSheet!A122 -> 236 | B122: b | C122: =PivotSheet!B122 -> 1 | E122: 1 | I122: 0.492795389
A123: =PivotSheet!A123 -> 238 | B123: b | C123: =PivotSheet!B123 -> 1 | E123: 1 | I123: 0.4956772334
A124: =PivotSheet!A124 -> 239 | B124: b | C124: =PivotSheet!B124 -> 2 | E124: 1 | I124: 0.5014409222
A125: =PivotSheet!A125 -> 241 | B125: b | C125: =PivotSheet!B125 -> 2 | E125: 1 | I125: 0.507204611
A126: =PivotSheet!A126 -> 244 | B126: b | C126: =PivotSheet!B126 -> 1 | E126: 1 | I126: 0.5100864553
A127: =PivotSheet!A127 -> 248 | B127: b | C127: =PivotSheet!B127 -> 1 | E127: 1 | I127: 0.5129682997
A128: =PivotSheet!A128 -> 249 | B128: b | C128: =PivotSheet!B128 -> 3 | E128: 1 | I128: 0.5216138329
A129: =PivotSheet!A129 -> 252 | B129: b | C129: =PivotSheet!B129 -> 2 | E129: 1 | I129: 0.5273775216
A130: =PivotSheet!A130 -> 256 | B130: b | C130: =PivotSheet!B130 -> 1 | E130: 1 | I130: 0.530259366
A131: =PivotSheet!A131 -> 257 | B131: b | C131: =PivotSheet!B131 -> 1 | D131: =IF(B131="a",1,NA()) ->  | E131: =IF(B131="b",1,NA()) -> 1 | F131: =IF(B131="c",1,NA()) ->  | G131: =IF(B131="d",1,NA()) ->  | H131: =IF(B131="e",1,NA()) ->  | I131: 0.5331412104
A132: =PivotSheet!A132 -> 258 | B132: b | C132: =PivotSheet!B132 -> 1 | E132: 1 | I132: =C132/SUM($C$2:$C$10000)+I131 -> 0.5360230548
A133: =PivotSheet!A133 -> 260 | B133: b | C133: =PivotSheet!B133 -> 1 | E133: 1 | I133: 0.5389048991
A134: =PivotSheet!A134 -> 264 | B134: b | C134: =PivotSheet!B134 -> 1 | E134: 1 | I134: 0.5417867435
A135: =PivotSheet!A135 -> 265 | B135: b | C135: =PivotSheet!B135 -> 1 | E135: 1 | I135: 0.5446685879
A136: =PivotSheet!A136 -> 266 | B136: b | C136: =PivotSheet!B136 -> 1 | E136: 1 | I136: 0.5475504323
A137: =PivotSheet!A137 -> 267 | B137: b | C137: =PivotSheet!B137 -> 2 | E137: 1 | I137: 0.553314121
A138: =PivotSheet!A138 -> 269 | B138: b | C138: =PivotSheet!B138 -> 2 | E138: 1 | I138: 0.5590778098
A139: =PivotSheet!A139 -> 270 | B139: b | C139: =PivotSheet!B139 -> 1 | E139: 1 | I139: 0.5619596542
A140: =PivotSheet!A140 -> 273 | B140: b | C140: =PivotSheet!B140 -> 1 | E140: 1 | I140: 0.5648414986
A141: =PivotSheet!A141 -> 275 | B141: b | C141: =PivotSheet!B141 -> 1 | E141: 1 | I141: 0.5677233429
A142: =PivotSheet!A142 -> 277 | B142: b | C142: =PivotSheet!B142 -> 1 | E142: 1 | I142: 0.5706051873
A143: =PivotSheet!A143 -> 278 | B143: b | C143: =PivotSheet!B143 -> 1 | E143: 1 | I143: 0.5734870317
A144: =PivotSheet!A144 -> 280 | B144: b | C144: =PivotSheet!B144 -> 1 | E144: 1 | I144: 0.5763688761
A145: =PivotSheet!A145 -> 282 | B145: b | C145: =PivotSheet!B145 -> 1 | E145: 1 | I145: 0.5792507205
A146: =PivotSheet!A146 -> 286 | B146: b | C146: =PivotSheet!B146 -> 1 | E146: 1 | I146: 0.5821325648
A147: =PivotSheet!A147 -> 289 | B147: b | C147: =PivotSheet!B147 -> 2 | E147: 1 | I147: 0.5878962536
A148: =PivotSheet!A148 -> 291 | B148: b | C148: =PivotSheet!B148 -> 1 | E148: 1 | I148: 0.590778098
A149: =PivotSheet!A149 -> 292 | B149: b | C149: =PivotSheet!B149 -> 3 | E149: 1 | I149: 0.5994236311
A150: =PivotSheet!A150 -> 293 | B150: b | C150: =PivotSheet!B150 -> 1 | E150: 1 | I150: 0.6023054755
A151: =PivotSheet!A151 -> 294 | B151: b | C151: =PivotSheet!B151 -> 1 | E151: 1 | I151: 0.6051873199
A152: =PivotSheet!A152 -> 295 | B152: b | C152: =PivotSheet!B152 -> 4 | E152: 1 | I152: 0.6167146974
A153: =PivotSheet!A153 -> 296 | B153: b | C153: =PivotSheet!B153 -> 1 | E153: 1 | I153: 0.6195965418
A154: =PivotSheet!A154 -> 297 | B154: b | C154: =PivotSheet!B154 -> 2 | E154: 1 | I154: 0.6253602305
A155: =PivotSheet!A155 -> 301 | B155: b | C155: =PivotSheet!B155 -> 1 | E155: 1 | I155: 0.6282420749
A156: =PivotSheet!A156 -> 302 | B156: b | C156: =PivotSheet!B156 -> 1 | E156: 1 | I156: 0.6311239193
A157: =PivotSheet!A157 -> 303 | B157: b | C157: =PivotSheet!B157 -> 1 | E157: 1 | I157: 0.6340057637
A158: =PivotSheet!A158 -> 305 | B158: b | C158: =PivotSheet!B158 -> 1 | E158: 1 | I158: 0.6368876081
A159: =PivotSheet!A159 -> 306 | B159: b | C159: =PivotSheet!B159 -> 1 | E159: 1 | I159: 0.6397694524
A160: =PivotSheet!A160 -> 308 | B160: b | C160: =PivotSheet!B160 -> 1 | E160: 1 | I160: 0.6426512968
A161: =PivotSheet!A161 -> 309 | B161: b | C161: =PivotSheet!B161 -> 1 | E161: 1 | I161: 0.6455331412
A162: =PivotSheet!A162 -> 310 | B162: b | C162: =PivotSheet!B162 -> 1 | E162: 1 | I162: 0.6484149856
A163: =PivotSheet!A163 -> 313 | B163: b | C163: =PivotSheet!B163 -> 1 | E163: 1 | I163: 0.65129683
A164: =PivotSheet!A164 -> 314 | B164: b | C164: =PivotSheet!B164 -> 1 | E164: 1 | I164: 0.6541786744
A165: =PivotSheet!A165 -> 315 | B165: b | C165: =PivotSheet!B165 -> 1 | E165: 1 | I165: 0.6570605187
A166: =PivotSheet!A166 -> 319 | B166: b | C166: =PivotSheet!B166 -> 1 | E166: 1 | I166: 0.6599423631
A167: =PivotSheet!A167 -> 321 | B167: b | C167: =PivotSheet!B167 -> 1 | E167: 1 | I167: 0.6628242075
A168: =PivotSheet!A168 -> 324 | B168: c | C168: =PivotSheet!B168 -> 1 | F168: 1 | I168: 0.6657060519
A169: =PivotSheet!A169 -> 326 | B169: c | C169: =PivotSheet!B169 -> 2 | F169: 1 | I169: 0.6714697406
A170: =PivotSheet!A170 -> 327 | B170: c | C170: =PivotSheet!B170 -> 1 | F170: 1 | I170: 0.674351585
A171: =PivotSheet!A171 -> 328 | B171: c | C171: =PivotSheet!B171 -> 2 | F171: 1 | I171: 0.6801152738
A172: =PivotSheet!A172 -> 329 | B172: c | C172: =PivotSheet!B172 -> 2 | F172: 1 | I172: 0.6858789625
A173: =PivotSheet!A173 -> 330 | B173: c | C173: =PivotSheet!B173 -> 1 | F173: 1 | I173: 0.6887608069
A174: =PivotSheet!A174 -> 332 | B174: c | C174: =PivotSheet!B174 -> 3 | F174: 1 | I174: 0.6974063401
A175: =PivotSheet!A175 -> 334 | B175: c | C175: =PivotSheet!B175 -> 1 | F175: 1 | I175: 0.7002881844
A176: =PivotSheet!A176 -> 335 | B176: c | C176: =PivotSheet!B176 -> 1 | F176: 1 | I176: 0.7031700288
A177: =PivotSheet!A177 -> 337 | B177: c | C177: =PivotSheet!B177 -> 2 | F177: 1 | I177: 0.7089337176
A178: =PivotSheet!A178 -> 338 | B178: c | C178: =PivotSheet!B178 -> 1 | F178: 1 | I178: 0.711815562
A179: =PivotSheet!A179 -> 339 | B179: c | C179: =PivotSheet!B179 -> 2 | F179: 1 | I179: 0.7175792507
A180: =PivotSheet!A180 -> 343 | B180: c | C180: =PivotSheet!B180 -> 1 | F180: 1 | I180: 0.7204610951
A181: =PivotSheet!A181 -> 345 | B181: c | C181: =PivotSheet!B181 -> 2 | F181: 1 | I181: 0.7262247839
A182: =PivotSheet!A182 -> 346 | B182: c | C182: =PivotSheet!B182 -> 2 | F182: 1 | I182: 0.7319884726
A183: =PivotSheet!A183 -> 347 | B183: c | C183: =PivotSheet!B183 -> 1 | F183: 1 | I183: 0.734870317
A184: =PivotSheet!A184 -> 349 | B184: c | C184: =PivotSheet!B184 -> 1 | F184: 1 | I184: 0.7377521614
A185: =PivotSheet!A185 -> 350 | B185: c | C185: =PivotSheet!B185 -> 1 | F185: 1 | I185: 0.7406340058
A186: =PivotSheet!A186 -> 351 | B186: c | C186: =PivotSheet!B186 -> 1 | F186: 1 | I186: 0.7435158501
A187: =PivotSheet!A187 -> 353 | B187: c | C187: =PivotSheet!B187 -> 1 | F187: 1 | I187: 0.7463976945
A188: =PivotSheet!A188 -> 354 | B188: c | C188: =PivotSheet!B188 -> 1 | F188: 1 | I188: 0.7492795389
A189: =PivotSheet!A189 -> 356 | B189: c | C189: =PivotSheet!B189 -> 2 | F189: 1 | I189: 0.7550432277
A190: =PivotSheet!A190 -> 359 | B190: c | C190: =PivotSheet!B190 -> 1 | F190: 1 | I190: 0.757925072
A191: =PivotSheet!A191 -> 361 | B191: c | C191: =PivotSheet!B191 -> 1 | F191: 1 | I191: 0.7608069164
A192: =PivotSheet!A192 -> 362 | B192: c | C192: =PivotSheet!B192 -> 3 | F192: 1 | I192: 0.7694524496
A193: =PivotSheet!A193 -> 363 | B193: c | C193: =PivotSheet!B193 -> 1 | F193: 1 | I193: 0.7723342939
A194: =PivotSheet!A194 -> 365 | B194: c | C194: =PivotSheet!B194 -> 1 | F194: 1 | I194: 0.7752161383
A195: =PivotSheet!A195 -> 366 | B195: c | C195: =PivotSheet!B195 -> 1 | D195: =IF(B195="a",1,NA()) ->  | E195: =IF(B195="b",1,NA()) ->  | F195: =IF(B195="c",1,NA()) -> 1 | G195: =IF(B195="d",1,NA()) ->  | H195: =IF(B195="e",1,NA()) ->  | I195: 0.7780979827
A196: =PivotSheet!A196 -> 368 | B196: c | C196: =PivotSheet!B196 -> 1 | F196: 1 | I196: =C196/SUM($C$2:$C$10000)+I195 -> 0.7809798271
A197: =PivotSheet!A197 -> 369 | B197: c | C197: =PivotSheet!B197 -> 2 | F197: 1 | I197: 0.7867435159
A198: =PivotSheet!A198 -> 373 | B198: c | C198: =PivotSheet!B198 -> 1 | F198: 1 | I198: 0.7896253602
A199: =PivotSheet!A199 -> 375 | B199: c | C199: =PivotSheet!B199 -> 1 | F199: 1 | I199: 0.7925072046
A200: =PivotSheet!A200 -> 376 | B200: c | C200: =PivotSheet!B200 -> 1 | F200: 1 | I200: 0.795389049
... 166 more rows

Sheet Std. Dev (hidden)
A1: Data | B1: Frequency | C1: Group | D1: Group 1 | E1: Group 2 | F1: Group 3 | G1: Group 4 | H1: Group 5 | I1: Cum. Freq
A2: =PivotSheet!A2 -> 2 | B2: =PivotSheet!B2 -> 1 | C2: =IF(A2<=$V$4,"a",IF(A2<=$V$6,"b",IF(A2<=$V$8,"c",IF(A2<=$V$10,"d",IF(A2<=$V$12,"e","ERROR"))))) -> a | D2: =IF(C2="a",1,NA()) -> 1 | E2: =IF(C2="b",1,NA()) ->  | F2: =IF(C2="c",1,NA()) ->  | G2: =IF(C2="d",1,NA()) ->  | H2: =IF(C2="e",1,NA()) ->  | I2: =B2/SUM($B$2:$B$10000) -> 0.00288184438 | J2: 2 levels of Intensity | T2: Group | V2: Std. Dev
A3: =PivotSheet!A3 -> 3 | B3: =PivotSheet!B3 -> 2 | C3: a | D3: =IF(C3="a",1,NA()) -> 1 | E3: =IF(C3="b",1,NA()) ->  | F3: =IF(C3="c",1,NA()) ->  | G3: =IF(C3="d",1,NA()) ->  | H3: =IF(C3="e",1,NA()) ->  | I3: =B3/SUM($B$2:$B$10000)+I2 -> 0.008645533141 | K3: Min Value | L3: Max Value | T3: a | U3: Min Value | V3: =INDEX($K$4:$L$26,MATCH(1,(Data!$F$2=$M$4:$M$26)*(T3=$N$4:$N$26),0),MATCH(U3,$K$3:$L$3,0)) -> 2
A4: =PivotSheet!A4 -> 4 | B4: =PivotSheet!B4 -> 1 | C4: a | D4: 1 | I4: =B4/SUM($B$2:$B$10000)+I3 -> 0.01152737752 | J4: A-Size | K4: =MIN([0]!Data_Plot) -> 2 | L4: =MAX(AVERAGE([0]!Data_Plot),K4) -> 241.8587896 | M4: 2 | N4: a | T4: a | U4: Max Value | V4: =INDEX($K$4:$L$26,MATCH(1,(Data!$F$2=$M$4:$M$26)*(T4=$N$4:$N$26),0),MATCH(U4,$K$3:$L$3,0)) -> 101.8161859
A5: =PivotSheet!A5 -> 5 | B5: =PivotSheet!B5 -> 1 | C5: a | D5: 1 | I5: 0.0144092219 | J5: B-Size | K5: =$L$4+1 -> 242.8587896 | L5: =MAX([0]!Data_Plot) -> 498 | M5: 2 | N5: b | T5: b | U5: Min Value | V5: =INDEX($K$4:$L$26,MATCH(1,(Data!$F$2=$M$4:$M$26)*(T5=$N$4:$N$26),0),MATCH(U5,$K$3:$L$3,0)) -> 102.8161859
A6: =PivotSheet!A6 -> 6 | B6: =PivotSheet!B6 -> 1 | C6: a | D6: 1 | I6: 0.01729106628 | T6: b | U6: Max Value | V6: =INDEX($K$4:$L$26,MATCH(1,(Data!$F$2=$M$4:$M$26)*(T6=$N$4:$N$26),0),MATCH(U6,$K$3:$L$3,0)) -> 381.9013934
A7: =PivotSheet!A7 -> 10 | B7: =PivotSheet!B7 -> 2 | C7: a | D7: 1 | I7: 0.02305475504 | J7: 3 Levels of Intensity | T7: c | U7: Min Value | V7: =INDEX($K$4:$L$26,MATCH(1,(Data!$F$2=$M$4:$M$26)*(T7=$N$4:$N$26),0),MATCH(U7,$K$3:$L$3,0)) -> 382.9013934
A8: =PivotSheet!A8 -> 11 | B8: =PivotSheet!B8 -> 1 | C8: a | D8: 1 | I8: 0.02593659942 | T8: c | U8: Max Value | V8: =INDEX($K$4:$L$26,MATCH(1,(Data!$F$2=$M$4:$M$26)*(T8=$N$4:$N$26),0),MATCH(U8,$K$3:$L$3,0)) -> 498
A9: =PivotSheet!A9 -> 12 | B9: =PivotSheet!B9 -> 1 | C9: a | D9: 1 | I9: 0.0288184438 | J9: A-Size | K9: =MIN([0]!Data_Plot) -> 2 | L9: =MAX(K9,AVERAGE([0]!Data_Plot)-(_xlfn.STDEV.S([0]!Data_Plot))) -> 101.8161859 | M9: 3 | N9: a | T9: d | U9: Min Value | V9: =INDEX($K$4:$L$26,MATCH(1,(Data!$F$2=$M$4:$M$26)*(T9=$N$4:$N$26),0),MATCH(U9,$K$3:$L$3,0)) -> 
A10: =PivotSheet!A10 -> 14 | B10: =PivotSheet!B10 -> 1 | C10: a | D10: 1 | I10: 0.03170028818 | J10: B-Size | K10: =$L$9+1 -> 102.8161859 | L10: =MAX(K10,AVERAGE([0]!Data_Plot)+(_xlfn.STDEV.S([0]!Data_Plot))) -> 381.9013934 | M10: 3 | N10: b | T10: d | U10: Max Value | V10: =INDEX($K$4:$L$26,MATCH(1,(Data!$F$2=$M$4:$M$26)*(T10=$N$4:$N$26),0),MATCH(U10,$K$3:$L$3,0)) -> 
A11: =PivotSheet!A11 -> 15 | B11: =PivotSheet!B11 -> 1 | C11: a | D11: 1 | I11: 0.03458213256 | J11: C-Size | K11: =$L$10+1 -> 382.9013934 | L11: =MAX([0]!Data_Plot) -> 498 | M11: 3 | N11: c | T11: e | U11: Min Value | V11: =INDEX($K$4:$L$26,MATCH(1,(Data!$F$2=$M$4:$M$26)*(T11=$N$4:$N$26),0),MATCH(U11,$K$3:$L$3,0)) -> 
A12: =PivotSheet!A12 -> 17 | B12: =PivotSheet!B12 -> 1 | C12: a | D12: 1 | I12: 0.03746397695 | T12: e | U12: Max Value | V12: =INDEX($K$4:$L$26,MATCH(1,(Data!$F$2=$M$4:$M$26)*(T12=$N$4:$N$26),0),MATCH(U12,$K$3:$L$3,0)) -> 
A13: =PivotSheet!A13 -> 21 | B13: =PivotSheet!B13 -> 1 | C13: a | D13: 1 | I13: 0.04034582133 | J13: 4 Levels of Intensity
A14: =PivotSheet!A14 -> 22 | B14: =PivotSheet!B14 -> 1 | C14: a | D14: 1 | I14: 0.04322766571
A15: =PivotSheet!A15 -> 25 | B15: =PivotSheet!B15 -> 1 | C15: a | D15: 1 | I15: 0.04610951009 | J15: A-Size | K15: =MIN([0]!Data_Plot) -> 2 | L15: =MAX(K15,AVERAGE([0]!Data_Plot)-(_xlfn.STDEV.S([0]!Data_Plot))) -> 101.8161859 | M15: 4 | N15: a
A16: =PivotSheet!A16 -> 28 | B16: =PivotSheet!B16 -> 1 | C16: a | D16: 1 | I16: 0.04899135447 | J16: B-Size | K16: =L15+1 -> 102.8161859 | L16: =MAX(K16,AVERAGE([0]!Data_Plot)) -> 241.8587896 | M16: 4 | N16: b
A17: =PivotSheet!A17 -> 29 | B17: =PivotSheet!B17 -> 3 | C17: a | D17: 1 | I17: 0.05763688761 | J17: C-Size | K17: =L16+1 -> 242.8587896 | L17: =MAX(K17,AVERAGE([0]!Data_Plot)+(_xlfn.STDEV.S([0]!Data_Plot))) -> 381.9013934 | M17: 4 | N17: c
A18: =PivotSheet!A18 -> 30 | B18: =PivotSheet!B18 -> 2 | C18: a | D18: 1 | I18: 0.06340057637 | J18: D-Size | K18: =L17+1 -> 382.9013934 | L18: =MAX([0]!Data_Plot) -> 498 | M18: 4 | N18: d
A19: =PivotSheet!A19 -> 34 | B19: =PivotSheet!B19 -> 1 | C19: a | D19: 1 | I19: 0.06628242075
A20: =PivotSheet!A20 -> 39 | B20: =PivotSheet!B20 -> 2 | C20: a | D20: 1 | I20: 0.07204610951 | J20: 5 Levels of Intensity
A21: =PivotSheet!A21 -> 41 | B21: =PivotSheet!B21 -> 1 | C21: a | D21: 1 | I21: 0.07492795389
A22: =PivotSheet!A22 -> 42 | B22: =PivotSheet!B22 -> 1 | C22: a | D22: 1 | I22: 0.07780979827 | J22: A-Size | K22: =MIN([0]!Data_Plot) -> 2 | L22: =MAX(K22,AVERAGE([0]!Data_Plot)-(_xlfn.STDEV.S([0]!Data_Plot))) -> 101.8161859 | M22: 5 | N22: a
A23: =PivotSheet!A23 -> 45 | B23: =PivotSheet!B23 -> 2 | C23: a | D23: 1 | I23: 0.08357348703 | J23: B-Size | K23: =L22+1 -> 102.8161859 | L23: =MAX(K23,AVERAGE([0]!Data_Plot)-0.5*(_xlfn.STDEV.S([0]!Data_Plot))) -> 171.8374877 | M23: 5 | N23: b
A24: =PivotSheet!A24 -> 47 | B24: =PivotSheet!B24 -> 1 | C24: a | D24: 1 | I24: 0.08645533141 | J24: C-Size | K24: =L23+1 -> 172.8374877 | L24: =MAX(K24,AVERAGE([0]!Data_Plot)+0.5*(_xlfn.STDEV.S([0]!Data_Plot))) -> 311.8800915 | M24: 5 | N24: c
A25: =PivotSheet!A25 -> 49 | B25: =PivotSheet!B25 -> 1 | C25: a | D25: 1 | I25: 0.08933717579 | J25: D-Size | K25: =L24+1 -> 312.8800915 | L25: =MAX(K25,AVERAGE([0]!Data_Plot)+(_xlfn.STDEV.S([0]!Data_Plot))) -> 381.9013934 | M25: 5 | N25: d
A26: =PivotSheet!A26 -> 50 | B26: =PivotSheet!B26 -> 1 | C26: a | D26: 1 | I26: 0.09221902017 | J26: E-size | K26: =L25+1 -> 382.9013934 | L26: =MAX([0]!Data_Plot) -> 498 | M26: 5 | N26: e
A27: =PivotSheet!A27 -> 51 | B27: =PivotSheet!B27 -> 1 | C27: a | D27: 1 | I27: 0.09510086455
A28: =PivotSheet!A28 -> 53 | B28: =PivotSheet!B28 -> 1 | C28: a | D28: 1 | I28: 0.09798270893
A29: =PivotSheet!A29 -> 54 | B29: =PivotSheet!B29 -> 1 | C29: a | D29: 1 | I29: 0.1008645533
A30: =PivotSheet!A30 -> 55 | B30: =PivotSheet!B30 -> 1 | C30: a | D30: 1 | I30: 0.1037463977
A31: =PivotSheet!A31 -> 61 | B31: =PivotSheet!B31 -> 1 | C31: a | D31: 1 | I31: 0.1066282421
A32: =PivotSheet!A32 -> 62 | B32: =PivotSheet!B32 -> 2 | C32: a | D32: 1 | I32: 0.1123919308
A33: =PivotSheet!A33 -> 63 | B33: =PivotSheet!B33 -> 1 | C33: a | D33: 1 | I33: 0.1152737752
A34: =PivotSheet!A34 -> 66 | B34: =PivotSheet!B34 -> 1 | C34: a | D34: 1 | I34: 0.1181556196
A35: =PivotSheet!A35 -> 67 | B35: =PivotSheet!B35 -> 1 | C35: a | D35: 1 | I35: 0.121037464
A36: =PivotSheet!A36 -> 68 | B36: =PivotSheet!B36 -> 1 | C36: a | D36: 1 | I36: 0.1239193084
A37: =PivotSheet!A37 -> 69 | B37: =PivotSheet!B37 -> 2 | C37: a | D37: 1 | I37: 0.1296829971
A38: =PivotSheet!A38 -> 72 | B38: =PivotSheet!B38 -> 1 | C38: a | D38: 1 | I38: 0.1325648415
A39: =PivotSheet!A39 -> 75 | B39: =PivotSheet!B39 -> 2 | C39: a | D39: 1 | I39: 0.1383285303
A40: =PivotSheet!A40 -> 78 | B40: =PivotSheet!B40 -> 1 | C40: a | D40: 1 | I40: 0.1412103746
A41: =PivotSheet!A41 -> 79 | B41: =PivotSheet!B41 -> 2 | C41: a | D41: 1 | I41: 0.1469740634
A42: =PivotSheet!A42 -> 82 | B42: =PivotSheet!B42 -> 3 | C42: a | D42: 1 | I42: 0.1556195965
A43: =PivotSheet!A43 -> 84 | B43: =PivotSheet!B43 -> 1 | C43: a | D43: 1 | I43: 0.1585014409
A44: =PivotSheet!A44 -> 85 | B44: =PivotSheet!B44 -> 2 | C44: a | D44: 1 | I44: 0.1642651297
A45: =PivotSheet!A45 -> 87 | B45: =PivotSheet!B45 -> 2 | C45: a | D45: 1 | I45: 0.1700288184
A46: =PivotSheet!A46 -> 88 | B46: =PivotSheet!B46 -> 2 | C46: a | D46: 1 | I46: 0.1757925072
A47: =PivotSheet!A47 -> 89 | B47: =PivotSheet!B47 -> 3 | C47: a | D47: 1 | I47: 0.1844380403
A48: =PivotSheet!A48 -> 90 | B48: =PivotSheet!B48 -> 1 | C48: a | D48: 1 | I48: 0.1873198847
A49: =PivotSheet!A49 -> 94 | B49: =PivotSheet!B49 -> 1 | C49: a | D49: 1 | I49: 0.1902017291
A50: =PivotSheet!A50 -> 97 | B50: =PivotSheet!B50 -> 1 | C50: a | D50: 1 | I50: 0.1930835735
A51: =PivotSheet!A51 -> 98 | B51: =PivotSheet!B51 -> 1 | C51: a | D51: 1 | I51: 0.1959654179
A52: =PivotSheet!A52 -> 99 | B52: =PivotSheet!B52 -> 1 | C52: a | D52: 1 | I52: 0.1988472622
A53: =PivotSheet!A53 -> 100 | B53: =PivotSheet!B53 -> 1 | C53: a | D53: 1 | I53: 0.2017291066
A54: =PivotSheet!A54 -> 102 | B54: =PivotSheet!B54 -> 2 | C54: b | E54: 1 | I54: 0.2074927954
A55: =PivotSheet!A55 -> 104 | B55: =PivotSheet!B55 -> 2 | C55: b | E55: 1 | I55: 0.2132564841
A56: =PivotSheet!A56 -> 106 | B56: =PivotSheet!B56 -> 3 | C56: b | E56: 1 | I56: 0.2219020173
A57: =PivotSheet!A57 -> 108 | B57: =PivotSheet!B57 -> 1 | C57: b | E57: 1 | I57: 0.2247838617
A58: =PivotSheet!A58 -> 109 | B58: =PivotSheet!B58 -> 1 | C58: b | E58: 1 | I58: 0.2276657061
A59: =PivotSheet!A59 -> 110 | B59: =PivotSheet!B59 -> 1 | C59: b | E59: 1 | I59: 0.2305475504
A60: =PivotSheet!A60 -> 111 | B60: =PivotSheet!B60 -> 1 | C60: b | E60: 1 | I60: 0.2334293948
A61: =PivotSheet!A61 -> 114 | B61: =PivotSheet!B61 -> 1 | C61: b | E61: 1 | I61: 0.2363112392
A62: =PivotSheet!A62 -> 118 | B62: =PivotSheet!B62 -> 1 | C62: b | E62: 1 | I62: 0.2391930836
A63: =PivotSheet!A63 -> 121 | B63: =PivotSheet!B63 -> 1 | C63: b | E63: 1 | I63: 0.242074928
A64: =PivotSheet!A64 -> 122 | B64: =PivotSheet!B64 -> 2 | C64: b | E64: 1 | I64: 0.2478386167
A65: =PivotSheet!A65 -> 123 | B65: =PivotSheet!B65 -> 3 | C65: b | E65: 1 | I65: 0.2564841499
A66: =PivotSheet!A66 -> 125 | B66: =PivotSheet!B66 -> 2 | C66: =IF(A66<=$V$4,"a",IF(A66<=$V$6,"b",IF(A66<=$V$8,"c",IF(A66<=$V$10,"d",IF(A66<=$V$12,"e","ERROR"))))) -> b | E66: 1 | I66: 0.2622478386
A67: =PivotSheet!A67 -> 127 | B67: =PivotSheet!B67 -> 1 | C67: b | D67: =IF(C67="a",1,NA()) ->  | E67: =IF(C67="b",1,NA()) -> 1 | F67: =IF(C67="c",1,NA()) ->  | G67: =IF(C67="d",1,NA()) ->  | H67: =IF(C67="e",1,NA()) ->  | I67: 0.265129683
A68: =PivotSheet!A68 -> 128 | B68: =PivotSheet!B68 -> 1 | C68: b | E68: 1 | I68: =B68/SUM($B$2:$B$10000)+I67 -> 0.2680115274
A69: =PivotSheet!A69 -> 129 | B69: =PivotSheet!B69 -> 1 | C69: b | E69: 1 | I69: 0.2708933718
A70: =PivotSheet!A70 -> 133 | B70: =PivotSheet!B70 -> 1 | C70: b | E70: 1 | I70: 0.2737752161
A71: =PivotSheet!A71 -> 135 | B71: =PivotSheet!B71 -> 1 | C71: b | E71: 1 | I71: 0.2766570605
A72: =PivotSheet!A72 -> 137 | B72: =PivotSheet!B72 -> 3 | C72: b | E72: 1 | I72: 0.2853025937
A73: =PivotSheet!A73 -> 139 | B73: =PivotSheet!B73 -> 1 | C73: b | E73: 1 | I73: 0.288184438
A74: =PivotSheet!A74 -> 140 | B74: =PivotSheet!B74 -> 1 | C74: b | E74: 1 | I74: 0.2910662824
A75: =PivotSheet!A75 -> 141 | B75: =PivotSheet!B75 -> 2 | C75: b | E75: 1 | I75: 0.2968299712
A76: =PivotSheet!A76 -> 144 | B76: =PivotSheet!B76 -> 1 | C76: b | E76: 1 | I76: 0.2997118156
A77: =PivotSheet!A77 -> 145 | B77: =PivotSheet!B77 -> 2 | C77: b | E77: 1 | I77: 0.3054755043
A78: =PivotSheet!A78 -> 147 | B78: =PivotSheet!B78 -> 1 | C78: b | E78: 1 | I78: 0.3083573487
A79: =PivotSheet!A79 -> 150 | B79: =PivotSheet!B79 -> 1 | C79: b | E79: 1 | I79: 0.3112391931
A80: =PivotSheet!A80 -> 154 | B80: =PivotSheet!B80 -> 1 | C80: b | E80: 1 | I80: 0.3141210375
A81: =PivotSheet!A81 -> 155 | B81: =PivotSheet!B81 -> 2 | C81: b | E81: 1 | I81: 0.3198847262
A82: =PivotSheet!A82 -> 156 | B82: =PivotSheet!B82 -> 3 | C82: b | E82: 1 | I82: 0.3285302594
A83: =PivotSheet!A83 -> 158 | B83: =PivotSheet!B83 -> 1 | C83: b | E83: 1 | I83: 0.3314121037
A84: =PivotSheet!A84 -> 159 | B84: =PivotSheet!B84 -> 1 | C84: b | E84: 1 | I84: 0.3342939481
A85: =PivotSheet!A85 -> 161 | B85: =PivotSheet!B85 -> 2 | C85: b | E85: 1 | I85: 0.3400576369
A86: =PivotSheet!A86 -> 165 | B86: =PivotSheet!B86 -> 1 | C86: b | E86: 1 | I86: 0.3429394813
A87: =PivotSheet!A87 -> 166 | B87: =PivotSheet!B87 -> 2 | C87: b | E87: 1 | I87: 0.34870317
A88: =PivotSheet!A88 -> 167 | B88: =PivotSheet!B88 -> 1 | C88: b | E88: 1 | I88: 0.3515850144
A89: =PivotSheet!A89 -> 168 | B89: =PivotSheet!B89 -> 1 | C89: b | E89: 1 | I89: 0.3544668588
A90: =PivotSheet!A90 -> 169 | B90: =PivotSheet!B90 -> 1 | C90: b | E90: 1 | I90: 0.3573487032
A91: =PivotSheet!A91 -> 170 | B91: =PivotSheet!B91 -> 1 | C91: b | E91: 1 | I91: 0.3602305476
A92: =PivotSheet!A92 -> 171 | B92: =PivotSheet!B92 -> 3 | C92: b | E92: 1 | I92: 0.3688760807
A93: =PivotSheet!A93 -> 172 | B93: =PivotSheet!B93 -> 2 | C93: b | E93: 1 | I93: 0.3746397695
A94: =PivotSheet!A94 -> 174 | B94: =PivotSheet!B94 -> 1 | C94: b | E94: 1 | I94: 0.3775216138
A95: =PivotSheet!A95 -> 177 | B95: =PivotSheet!B95 -> 1 | C95: b | E95: 1 | I95: 0.3804034582
A96: =PivotSheet!A96 -> 178 | B96: =PivotSheet!B96 -> 2 | C96: b | E96: 1 | I96: 0.386167147
A97: =PivotSheet!A97 -> 179 | B97: =PivotSheet!B97 -> 2 | C97: b | E97: 1 | I97: 0.3919308357
A98: =PivotSheet!A98 -> 181 | B98: =PivotSheet!B98 -> 3 | C98: b | E98: 1 | I98: 0.4005763689
A99: =PivotSheet!A99 -> 182 | B99: =PivotSheet!B99 -> 1 | C99: b | E99: 1 | I99: 0.4034582133
A100: =PivotSheet!A100 -> 186 | B100: =PivotSheet!B100 -> 2 | C100: b | E100: 1 | I100: 0.409221902
A101: =PivotSheet!A101 -> 187 | B101: =PivotSheet!B101 -> 2 | C101: b | E101: 1 | I101: 0.4149855908
A102: =PivotSheet!A102 -> 189 | B102: =PivotSheet!B102 -> 1 | C102: b | E102: 1 | I102: 0.4178674352
A103: =PivotSheet!A103 -> 190 | B103: =PivotSheet!B103 -> 2 | C103: b | E103: 1 | I103: 0.4236311239
A104: =PivotSheet!A104 -> 191 | B104: =PivotSheet!B104 -> 2 | C104: b | E104: 1 | I104: 0.4293948127
A105: =PivotSheet!A105 -> 196 | B105: =PivotSheet!B105 -> 1 | C105: b | E105: 1 | I105: 0.4322766571
A106: =PivotSheet!A106 -> 197 | B106: =PivotSheet!B106 -> 1 | C106: b | E106: 1 | I106: 0.4351585014
A107: =PivotSheet!A107 -> 203 | B107: =PivotSheet!B107 -> 1 | C107: b | E107: 1 | I107: 0.4380403458
A108: =PivotSheet!A108 -> 204 | B108: =PivotSheet!B108 -> 1 | C108: b | E108: 1 | I108: 0.4409221902
A109: =PivotSheet!A109 -> 206 | B109: =PivotSheet!B109 -> 1 | C109: b | E109: 1 | I109: 0.4438040346
A110: =PivotSheet!A110 -> 208 | B110: =PivotSheet!B110 -> 1 | C110: b | E110: 1 | I110: 0.446685879
A111: =PivotSheet!A111 -> 213 | B111: =PivotSheet!B111 -> 3 | C111: b | E111: 1 | I111: 0.4553314121
A112: =PivotSheet!A112 -> 214 | B112: =PivotSheet!B112 -> 1 | C112: b | E112: 1 | I112: 0.4582132565
A113: =PivotSheet!A113 -> 217 | B113: =PivotSheet!B113 -> 1 | C113: b | E113: 1 | I113: 0.4610951009
A114: =PivotSheet!A114 -> 218 | B114: =PivotSheet!B114 -> 2 | C114: b | E114: 1 | I114: 0.4668587896
A115: =PivotSheet!A115 -> 220 | B115: =PivotSheet!B115 -> 1 | C115: b | E115: 1 | I115: 0.469740634
A116: =PivotSheet!A116 -> 222 | B116: =PivotSheet!B116 -> 1 | C116: b | E116: 1 | I116: 0.4726224784
A117: =PivotSheet!A117 -> 226 | B117: =PivotSheet!B117 -> 1 | C117: b | E117: 1 | I117: 0.4755043228
A118: =PivotSheet!A118 -> 227 | B118: =PivotSheet!B118 -> 1 | C118: b | E118: 1 | I118: 0.4783861671
A119: =PivotSheet!A119 -> 228 | B119: =PivotSheet!B119 -> 1 | C119: b | E119: 1 | I119: 0.4812680115
A120: =PivotSheet!A120 -> 229 | B120: =PivotSheet!B120 -> 2 | C120: b | E120: 1 | I120: 0.4870317003
A121: =PivotSheet!A121 -> 235 | B121: =PivotSheet!B121 -> 1 | C121: b | E121: 1 | I121: 0.4899135447
A122: =PivotSheet!A122 -> 236 | B122: =PivotSheet!B122 -> 1 | C122: b | E122: 1 | I122: 0.492795389
A123: =PivotSheet!A123 -> 238 | B123: =PivotSheet!B123 -> 1 | C123: b | E123: 1 | I123: 0.4956772334
A124: =PivotSheet!A124 -> 239 | B124: =PivotSheet!B124 -> 2 | C124: b | E124: 1 | I124: 0.5014409222
A125: =PivotSheet!A125 -> 241 | B125: =PivotSheet!B125 -> 2 | C125: b | E125: 1 | I125: 0.507204611
A126: =PivotSheet!A126 -> 244 | B126: =PivotSheet!B126 -> 1 | C126: b | E126: 1 | I126: 0.5100864553
A127: =PivotSheet!A127 -> 248 | B127: =PivotSheet!B127 -> 1 | C127: b | E127: 1 | I127: 0.5129682997
A128: =PivotSheet!A128 -> 249 | B128: =PivotSheet!B128 -> 3 | C128: b | E128: 1 | I128: 0.5216138329
A129: =PivotSheet!A129 -> 252 | B129: =PivotSheet!B129 -> 2 | C129: b | E129: 1 | I129: 0.5273775216
A130: =PivotSheet!A130 -> 256 | B130: =PivotSheet!B130 -> 1 | C130: =IF(A130<=$V$4,"a",IF(A130<=$V$6,"b",IF(A130<=$V$8,"c",IF(A130<=$V$10,"d",IF(A130<=$V$12,"e","ERROR"))))) -> b | E130: 1 | I130: 0.530259366
A131: =PivotSheet!A131 -> 257 | B131: =PivotSheet!B131 -> 1 | C131: b | D131: =IF(C131="a",1,NA()) ->  | E131: =IF(C131="b",1,NA()) -> 1 | F131: =IF(C131="c",1,NA()) ->  | G131: =IF(C131="d",1,NA()) ->  | H131: =IF(C131="e",1,NA()) ->  | I131: 0.5331412104
A132: =PivotSheet!A132 -> 258 | B132: =PivotSheet!B132 -> 1 | C132: b | E132: 1 | I132: =B132/SUM($B$2:$B$10000)+I131 -> 0.5360230548
A133: =PivotSheet!A133 -> 260 | B133: =PivotSheet!B133 -> 1 | C133: b | E133: 1 | I133: 0.5389048991
A134: =PivotSheet!A134 -> 264 | B134: =PivotSheet!B134 -> 1 | C134: b | E134: 1 | I134: 0.5417867435
A135: =PivotSheet!A135 -> 265 | B135: =PivotSheet!B135 -> 1 | C135: b | E135: 1 | I135: 0.5446685879
A136: =PivotSheet!A136 -> 266 | B136: =PivotSheet!B136 -> 1 | C136: b | E136: 1 | I136: 0.5475504323
A137: =PivotSheet!A137 -> 267 | B137: =PivotSheet!B137 -> 2 | C137: b | E137: 1 | I137: 0.553314121
A138: =PivotSheet!A138 -> 269 | B138: =PivotSheet!B138 -> 2 | C138: b | E138: 1 | I138: 0.5590778098
A139: =PivotSheet!A139 -> 270 | B139: =PivotSheet!B139 -> 1 | C139: b | E139: 1 | I139: 0.5619596542
A140: =PivotSheet!A140 -> 273 | B140: =PivotSheet!B140 -> 1 | C140: b | E140: 1 | I140: 0.5648414986
A141: =PivotSheet!A141 -> 275 | B141: =PivotSheet!B141 -> 1 | C141: b | E141: 1 | I141: 0.5677233429
A142: =PivotSheet!A142 -> 277 | B142: =PivotSheet!B142 -> 1 | C142: b | E142: 1 | I142: 0.5706051873
A143: =PivotSheet!A143 -> 278 | B143: =PivotSheet!B143 -> 1 | C143: b | E143: 1 | I143: 0.5734870317
A144: =PivotSheet!A144 -> 280 | B144: =PivotSheet!B144 -> 1 | C144: b | E144: 1 | I144: 0.5763688761
A145: =PivotSheet!A145 -> 282 | B145: =PivotSheet!B145 -> 1 | C145: b | E145: 1 | I145: 0.5792507205
A146: =PivotSheet!A146 -> 286 | B146: =PivotSheet!B146 -> 1 | C146: b | E146: 1 | I146: 0.5821325648
A147: =PivotSheet!A147 -> 289 | B147: =PivotSheet!B147 -> 2 | C147: b | E147: 1 | I147: 0.5878962536
A148: =PivotSheet!A148 -> 291 | B148: =PivotSheet!B148 -> 1 | C148: b | E148: 1 | I148: 0.590778098
A149: =PivotSheet!A149 -> 292 | B149: =PivotSheet!B149 -> 3 | C149: b | E149: 1 | I149: 0.5994236311
A150: =PivotSheet!A150 -> 293 | B150: =PivotSheet!B150 -> 1 | C150: b | E150: 1 | I150: 0.6023054755
A151: =PivotSheet!A151 -> 294 | B151: =PivotSheet!B151 -> 1 | C151: b | E151: 1 | I151: 0.6051873199
A152: =PivotSheet!A152 -> 295 | B152: =PivotSheet!B152 -> 4 | C152: b | E152: 1 | I152: 0.6167146974
A153: =PivotSheet!A153 -> 296 | B153: =PivotSheet!B153 -> 1 | C153: b | E153: 1 | I153: 0.6195965418
A154: =PivotSheet!A154 -> 297 | B154: =PivotSheet!B154 -> 2 | C154: b | E154: 1 | I154: 0.6253602305
A155: =PivotSheet!A155 -> 301 | B155: =PivotSheet!B155 -> 1 | C155: b | E155: 1 | I155: 0.6282420749
A156: =PivotSheet!A156 -> 302 | B156: =PivotSheet!B156 -> 1 | C156: b | E156: 1 | I156: 0.6311239193
A157: =PivotSheet!A157 -> 303 | B157: =PivotSheet!B157 -> 1 | C157: b | E157: 1 | I157: 0.6340057637
A158: =PivotSheet!A158 -> 305 | B158: =PivotSheet!B158 -> 1 | C158: b | E158: 1 | I158: 0.6368876081
A159: =PivotSheet!A159 -> 306 | B159: =PivotSheet!B159 -> 1 | C159: b | E159: 1 | I159: 0.6397694524
A160: =PivotSheet!A160 -> 308 | B160: =PivotSheet!B160 -> 1 | C160: b | E160: 1 | I160: 0.6426512968
A161: =PivotSheet!A161 -> 309 | B161: =PivotSheet!B161 -> 1 | C161: b | E161: 1 | I161: 0.6455331412
A162: =PivotSheet!A162 -> 310 | B162: =PivotSheet!B162 -> 1 | C162: b | E162: 1 | I162: 0.6484149856
A163: =PivotSheet!A163 -> 313 | B163: =PivotSheet!B163 -> 1 | C163: b | E163: 1 | I163: 0.65129683
A164: =PivotSheet!A164 -> 314 | B164: =PivotSheet!B164 -> 1 | C164: b | E164: 1 | I164: 0.6541786744
A165: =PivotSheet!A165 -> 315 | B165: =PivotSheet!B165 -> 1 | C165: b | E165: 1 | I165: 0.6570605187
A166: =PivotSheet!A166 -> 319 | B166: =PivotSheet!B166 -> 1 | C166: b | E166: 1 | I166: 0.6599423631
A167: =PivotSheet!A167 -> 321 | B167: =PivotSheet!B167 -> 1 | C167: b | E167: 1 | I167: 0.6628242075
A168: =PivotSheet!A168 -> 324 | B168: =PivotSheet!B168 -> 1 | C168: b | E168: 1 | I168: 0.6657060519
A169: =PivotSheet!A169 -> 326 | B169: =PivotSheet!B169 -> 2 | C169: b | E169: 1 | I169: 0.6714697406
A170: =PivotSheet!A170 -> 327 | B170: =PivotSheet!B170 -> 1 | C170: b | E170: 1 | I170: 0.674351585
A171: =PivotSheet!A171 -> 328 | B171: =PivotSheet!B171 -> 2 | C171: b | E171: 1 | I171: 0.6801152738
A172: =PivotSheet!A172 -> 329 | B172: =PivotSheet!B172 -> 2 | C172: b | E172: 1 | I172: 0.6858789625
A173: =PivotSheet!A173 -> 330 | B173: =PivotSheet!B173 -> 1 | C173: b | E173: 1 | I173: 0.6887608069
A174: =PivotSheet!A174 -> 332 | B174: =PivotSheet!B174 -> 3 | C174: b | E174: 1 | I174: 0.6974063401
A175: =PivotSheet!A175 -> 334 | B175: =PivotSheet!B175 -> 1 | C175: b | E175: 1 | I175: 0.7002881844
A176: =PivotSheet!A176 -> 335 | B176: =PivotSheet!B176 -> 1 | C176: b | E176: 1 | I176: 0.7031700288
A177: =PivotSheet!A177 -> 337 | B177: =PivotSheet!B177 -> 2 | C177: b | E177: 1 | I177: 0.7089337176
A178: =PivotSheet!A178 -> 338 | B178: =PivotSheet!B178 -> 1 | C178: b | E178: 1 | I178: 0.711815562
A179: =PivotSheet!A179 -> 339 | B179: =PivotSheet!B179 -> 2 | C179: b | E179: 1 | I179: 0.7175792507
A180: =PivotSheet!A180 -> 343 | B180: =PivotSheet!B180 -> 1 | C180: b | E180: 1 | I180: 0.7204610951
A181: =PivotSheet!A181 -> 345 | B181: =PivotSheet!B181 -> 2 | C181: b | E181: 1 | I181: 0.7262247839
A182: =PivotSheet!A182 -> 346 | B182: =PivotSheet!B182 -> 2 | C182: b | E182: 1 | I182: 0.7319884726
A183: =PivotSheet!A183 -> 347 | B183: =PivotSheet!B183 -> 1 | C183: b | E183: 1 | I183: 0.734870317
A184: =PivotSheet!A184 -> 349 | B184: =PivotSheet!B184 -> 1 | C184: b | E184: 1 | I184: 0.7377521614
A185: =PivotSheet!A185 -> 350 | B185: =PivotSheet!B185 -> 1 | C185: b | E185: 1 | I185: 0.7406340058
A186: =PivotSheet!A186 -> 351 | B186: =PivotSheet!B186 -> 1 | C186: b | E186: 1 | I186: 0.7435158501
A187: =PivotSheet!A187 -> 353 | B187: =PivotSheet!B187 -> 1 | C187: b | E187: 1 | I187: 0.7463976945
A188: =PivotSheet!A188 -> 354 | B188: =PivotSheet!B188 -> 1 | C188: b | E188: 1 | I188: 0.7492795389
A189: =PivotSheet!A189 -> 356 | B189: =PivotSheet!B189 -> 2 | C189: b | E189: 1 | I189: 0.7550432277
A190: =PivotSheet!A190 -> 359 | B190: =PivotSheet!B190 -> 1 | C190: b | E190: 1 | I190: 0.757925072
A191: =PivotSheet!A191 -> 361 | B191: =PivotSheet!B191 -> 1 | C191: b | E191: 1 | I191: 0.7608069164
A192: =PivotSheet!A192 -> 362 | B192: =PivotSheet!B192 -> 3 | C192: b | E192: 1 | I192: 0.7694524496
A193: =PivotSheet!A193 -> 363 | B193: =PivotSheet!B193 -> 1 | C193: b | E193: 1 | I193: 0.7723342939
A194: =PivotSheet!A194 -> 365 | B194: =PivotSheet!B194 -> 1 | C194: =IF(A194<=$V$4,"a",IF(A194<=$V$6,"b",IF(A194<=$V$8,"c",IF(A194<=$V$10,"d",IF(A194<=$V$12,"e","ERROR"))))) -> b | E194: 1 | I194: 0.7752161383
A195: =PivotSheet!A195 -> 366 | B195: =PivotSheet!B195 -> 1 | C195: b | D195: =IF(C195="a",1,NA()) ->  | E195: =IF(C195="b",1,NA()) -> 1 | F195: =IF(C195="c",1,NA()) ->  | G195: =IF(C195="d",1,NA()) ->  | H195: =IF(C195="e",1,NA()) ->  | I195: 0.7780979827
A196: =PivotSheet!A196 -> 368 | B196: =PivotSheet!B196 -> 1 | C196: b | E196: 1 | I196: =B196/SUM($B$2:$B$10000)+I195 -> 0.7809798271
A197: =PivotSheet!A197 -> 369 | B197: =PivotSheet!B197 -> 2 | C197: b | E197: 1 | I197: 0.7867435159
A198: =PivotSheet!A198 -> 373 | B198: =PivotSheet!B198 -> 1 | C198: b | E198: 1 | I198: 0.7896253602
A199: =PivotSheet!A199 -> 375 | B199: =PivotSheet!B199 -> 1 | C199: b | E199: 1 | I199: 0.7925072046
A200: =PivotSheet!A200 -> 376 | B200: =PivotSheet!B200 -> 1 | C200: b | E200: 1 | I200: 0.795389049
... 165 more rows

Sheet Quantiles (hidden)
A1: Data | B1: Frequency | C1: Group | D1: Group 1 | E1: Group 2 | F1: Group 3 | G1: Group 4 | H1: Group 5 | I1: Cum. Freq
A2: =PivotSheet!A2 -> 2 | B2: =PivotSheet!B2 -> 1 | C2: =IF(A2<=$V$4,"a",IF(A2<=$V$6,"b",IF(A2<=$V$8,"c",IF(A2<=$V$10,"d",IF(A2<=$V$12,"e","ERROR"))))) -> a | D2: =IF($C2="a",1,NA()) -> 1 | E2: =IF($C2="b",1,NA()) ->  | F2: =IF($C2="c",1,NA()) ->  | G2: =IF($C2="d",1,NA()) ->  | H2: =IF($C2="e",1,NA()) ->  | I2: =B2/SUM($B$2:$B$10000) -> 0.00288184438 | J2: 2 levels of Intensity | T2: Group | V2: Quantiles
A3: =PivotSheet!A3 -> 3 | B3: =PivotSheet!B3 -> 2 | C3: =IF(A3<=$V$4,"a",IF(A3<=$V$6,"b",IF(A3<=$V$8,"c",IF(A3<=$V$10,"d",IF(A3<=$V$12,"e","ERROR"))))) -> a | D3: =IF(C3="a",1,NA()) -> 1 | E3: =IF($C3="b",1,NA()) ->  | F3: =IF($C3="c",1,NA()) ->  | G3: =IF($C3="d",1,NA()) ->  | H3: =IF($C3="e",1,NA()) ->  | I3: =B3/SUM($B$2:$B$10000)+I2 -> 0.008645533141 | K3: Min Value | L3: Max Value | T3: a | U3: Min Value | V3: =INDEX(Quantiles!$K$4:$L$26,MATCH(1,(Data!$F$2=Quantiles!$M$4:$M$26)*(T3=Quantiles!$N$4:$N$26),0),MATCH(U3,Quantiles!$K$3:$L$3,0)) -> 2
A4: =PivotSheet!A4 -> 4 | B4: =PivotSheet!B4 -> 1 | C4: a | D4: 1 | I4: =B4/SUM($B$2:$B$10000)+I3 -> 0.01152737752 | J4: A-Size | K4: =MIN([0]!Data_Plot) -> 2 | L4: =MEDIAN([0]!Data_Plot) -> 239 | M4: 2 | N4: a | T4: a | U4: Max Value | V4: =INDEX(Quantiles!$K$4:$L$26,MATCH(1,(Data!$F$2=Quantiles!$M$4:$M$26)*(T4=Quantiles!$N$4:$N$26),0),MATCH(U4,Quantiles!$K$3:$L$3,0)) -> 158.18
A5: =PivotSheet!A5 -> 5 | B5: =PivotSheet!B5 -> 1 | C5: a | D5: 1 | I5: 0.0144092219 | J5: B-Size | K5: =$L$4+1 -> 240 | L5: =MAX([0]!Data_Plot) -> 498 | M5: 2 | N5: b | T5: b | U5: Min Value | V5: =INDEX(Quantiles!$K$4:$L$26,MATCH(1,(Data!$F$2=Quantiles!$M$4:$M$26)*(T5=Quantiles!$N$4:$N$26),0),MATCH(U5,Quantiles!$K$3:$L$3,0)) -> 159.18
A6: =PivotSheet!A6 -> 6 | B6: =PivotSheet!B6 -> 1 | C6: a | D6: 1 | I6: 0.01729106628 | T6: b | U6: Max Value | V6: =INDEX(Quantiles!$K$4:$L$26,MATCH(1,(Data!$F$2=Quantiles!$M$4:$M$26)*(T6=Quantiles!$N$4:$N$26),0),MATCH(U6,Quantiles!$K$3:$L$3,0)) -> 319.72
A7: =PivotSheet!A7 -> 10 | B7: =PivotSheet!B7 -> 2 | C7: a | D7: 1 | I7: 0.02305475504 | J7: 3 Levels of Intensity | T7: c | U7: Min Value | V7: =INDEX(Quantiles!$K$4:$L$26,MATCH(1,(Data!$F$2=Quantiles!$M$4:$M$26)*(T7=Quantiles!$N$4:$N$26),0),MATCH(U7,Quantiles!$K$3:$L$3,0)) -> 320.72
A8: =PivotSheet!A8 -> 11 | B8: =PivotSheet!B8 -> 1 | C8: a | D8: 1 | I8: 0.02593659942 | T8: c | U8: Max Value | V8: =INDEX(Quantiles!$K$4:$L$26,MATCH(1,(Data!$F$2=Quantiles!$M$4:$M$26)*(T8=Quantiles!$N$4:$N$26),0),MATCH(U8,Quantiles!$K$3:$L$3,0)) -> 498
A9: =PivotSheet!A9 -> 12 | B9: =PivotSheet!B9 -> 1 | C9: a | D9: 1 | I9: 0.0288184438 | J9: A-Size | K9: =MIN([0]!Data_Plot) -> 2 | L9: =PERCENTILE([0]!Data_Plot,0.33) -> 158.18 | M9: 3 | N9: a | T9: d | U9: Min Value | V9: =INDEX(Quantiles!$K$4:$L$26,MATCH(1,(Data!$F$2=Quantiles!$M$4:$M$26)*(T9=Quantiles!$N$4:$N$26),0),MATCH(U9,Quantiles!$K$3:$L$3,0)) -> 
A10: =PivotSheet!A10 -> 14 | B10: =PivotSheet!B10 -> 1 | C10: a | D10: 1 | I10: 0.03170028818 | J10: B-Size | K10: =$L$9+1 -> 159.18 | L10: =PERCENTILE([0]!Data_Plot,0.66) -> 319.72 | M10: 3 | N10: b | T10: d | U10: Max Value | V10: =INDEX(Quantiles!$K$4:$L$26,MATCH(1,(Data!$F$2=Quantiles!$M$4:$M$26)*(T10=Quantiles!$N$4:$N$26),0),MATCH(U10,Quantiles!$K$3:$L$3,0)) -> 
A11: =PivotSheet!A11 -> 15 | B11: =PivotSheet!B11 -> 1 | C11: a | D11: 1 | I11: 0.03458213256 | J11: C-Size | K11: =$L$10+1 -> 320.72 | L11: =MAX([0]!Data_Plot) -> 498 | M11: 3 | N11: c | T11: e | U11: Min Value | V11: =INDEX(Quantiles!$K$4:$L$26,MATCH(1,(Data!$F$2=Quantiles!$M$4:$M$26)*(T11=Quantiles!$N$4:$N$26),0),MATCH(U11,Quantiles!$K$3:$L$3,0)) -> 
A12: =PivotSheet!A12 -> 17 | B12: =PivotSheet!B12 -> 1 | C12: a | D12: 1 | I12: 0.03746397695 | T12: e | U12: Max Value | V12: =INDEX(Quantiles!$K$4:$L$26,MATCH(1,(Data!$F$2=Quantiles!$M$4:$M$26)*(T12=Quantiles!$N$4:$N$26),0),MATCH(U12,Quantiles!$K$3:$L$3,0)) -> 
A13: =PivotSheet!A13 -> 21 | B13: =PivotSheet!B13 -> 1 | C13: a | D13: 1 | I13: 0.04034582133 | J13: 4 Levels of Intensity
A14: =PivotSheet!A14 -> 22 | B14: =PivotSheet!B14 -> 1 | C14: a | D14: 1 | I14: 0.04322766571
A15: =PivotSheet!A15 -> 25 | B15: =PivotSheet!B15 -> 1 | C15: a | D15: 1 | I15: 0.04610951009 | J15: A-Size | K15: =MIN([0]!Data_Plot) -> 2 | L15: =PERCENTILE([0]!Data_Plot,0.25) -> 123 | M15: 4 | N15: a
A16: =PivotSheet!A16 -> 28 | B16: =PivotSheet!B16 -> 1 | C16: a | D16: 1 | I16: 0.04899135447 | J16: B-Size | K16: =L15+1 -> 124 | L16: =MEDIAN([0]!Data_Plot) -> 239 | M16: 4 | N16: b
A17: =PivotSheet!A17 -> 29 | B17: =PivotSheet!B17 -> 3 | C17: a | D17: 1 | I17: 0.05763688761 | J17: C-Size | K17: =L16+1 -> 240 | L17: =PERCENTILE([0]!Data_Plot,0.75) -> 355 | M17: 4 | N17: c
A18: =PivotSheet!A18 -> 30 | B18: =PivotSheet!B18 -> 2 | C18: a | D18: 1 | I18: 0.06340057637 | J18: D-Size | K18: =L17+1 -> 356 | L18: =MAX([0]!Data_Plot) -> 498 | M18: 4 | N18: d
A19: =PivotSheet!A19 -> 34 | B19: =PivotSheet!B19 -> 1 | C19: a | D19: 1 | I19: 0.06628242075
A20: =PivotSheet!A20 -> 39 | B20: =PivotSheet!B20 -> 2 | C20: a | D20: 1 | I20: 0.07204610951 | J20: 5 Levels of Intensity
A21: =PivotSheet!A21 -> 41 | B21: =PivotSheet!B21 -> 1 | C21: a | D21: 1 | I21: 0.07492795389
A22: =PivotSheet!A22 -> 42 | B22: =PivotSheet!B22 -> 1 | C22: a | D22: 1 | I22: 0.07780979827 | J22: A-Size | K22: =MIN([0]!Data_Plot) -> 2 | L22: =PERCENTILE([0]!Data_Plot,0.2) -> 100.4 | M22: 5 | N22: a
A23: =PivotSheet!A23 -> 45 | B23: =PivotSheet!B23 -> 2 | C23: a | D23: 1 | I23: 0.08357348703 | J23: B-Size | K23: =L22+1 -> 101.4 | L23: =PERCENTILE([0]!Data_Plot,0.4) -> 181.4 | M23: 5 | N23: b
A24: =PivotSheet!A24 -> 47 | B24: =PivotSheet!B24 -> 1 | C24: a | D24: 1 | I24: 0.08645533141 | J24: C-Size | K24: =L23+1 -> 182.4 | L24: =PERCENTILE([0]!Data_Plot,0.6) -> 292.6 | M24: 5 | N24: c
A25: =PivotSheet!A25 -> 49 | B25: =PivotSheet!B25 -> 1 | C25: a | D25: 1 | I25: 0.08933717579 | J25: D-Size | K25: =L24+1 -> 293.6 | L25: =PERCENTILE([0]!Data_Plot,0.8) -> 379.6 | M25: 5 | N25: d
A26: =PivotSheet!A26 -> 50 | B26: =PivotSheet!B26 -> 1 | C26: a | D26: 1 | I26: 0.09221902017 | J26: E-size | K26: =L25+1 -> 380.6 | L26: =MAX([0]!Data_Plot) -> 498 | M26: 5 | N26: e
A27: =PivotSheet!A27 -> 51 | B27: =PivotSheet!B27 -> 1 | C27: a | D27: 1 | I27: 0.09510086455
A28: =PivotSheet!A28 -> 53 | B28: =PivotSheet!B28 -> 1 | C28: a | D28: 1 | I28: 0.09798270893
A29: =PivotSheet!A29 -> 54 | B29: =PivotSheet!B29 -> 1 | C29: a | D29: 1 | I29: 0.1008645533
A30: =PivotSheet!A30 -> 55 | B30: =PivotSheet!B30 -> 1 | C30: a | D30: 1 | I30: 0.1037463977
A31: =PivotSheet!A31 -> 61 | B31: =PivotSheet!B31 -> 1 | C31: a | D31: 1 | I31: 0.1066282421
A32: =PivotSheet!A32 -> 62 | B32: =PivotSheet!B32 -> 2 | C32: a | D32: 1 | I32: 0.1123919308
A33: =PivotSheet!A33 -> 63 | B33: =PivotSheet!B33 -> 1 | C33: a | D33: 1 | I33: 0.1152737752
A34: =PivotSheet!A34 -> 66 | B34: =PivotSheet!B34 -> 1 | C34: a | D34: 1 | I34: 0.1181556196
A35: =PivotSheet!A35 -> 67 | B35: =PivotSheet!B35 -> 1 | C35: a | D35: 1 | I35: 0.121037464
A36: =PivotSheet!A36 -> 68 | B36: =PivotSheet!B36 -> 1 | C36: a | D36: 1 | I36: 0.1239193084
A37: =PivotSheet!A37 -> 69 | B37: =PivotSheet!B37 -> 2 | C37: a | D37: 1 | I37: 0.1296829971
A38: =PivotSheet!A38 -> 72 | B38: =PivotSheet!B38 -> 1 | C38: a | D38: 1 | I38: 0.1325648415
A39: =PivotSheet!A39 -> 75 | B39: =PivotSheet!B39 -> 2 | C39: a | D39: 1 | I39: 0.1383285303
A40: =PivotSheet!A40 -> 78 | B40: =PivotSheet!B40 -> 1 | C40: a | D40: 1 | I40: 0.1412103746
A41: =PivotSheet!A41 -> 79 | B41: =PivotSheet!B41 -> 2 | C41: a | D41: 1 | I41: 0.1469740634
A42: =PivotSheet!A42 -> 82 | B42: =PivotSheet!B42 -> 3 | C42: a | D42: 1 | I42: 0.1556195965
A43: =PivotSheet!A43 -> 84 | B43: =PivotSheet!B43 -> 1 | C43: a | D43: 1 | I43: 0.1585014409
A44: =PivotSheet!A44 -> 85 | B44: =PivotSheet!B44 -> 2 | C44: a | D44: 1 | I44: 0.1642651297
A45: =PivotSheet!A45 -> 87 | B45: =PivotSheet!B45 -> 2 | C45: a | D45: 1 | I45: 0.1700288184
A46: =PivotSheet!A46 -> 88 | B46: =PivotSheet!B46 -> 2 | C46: a | D46: 1 | I46: 0.1757925072
A47: =PivotSheet!A47 -> 89 | B47: =PivotSheet!B47 -> 3 | C47: a | D47: 1 | I47: 0.1844380403
A48: =PivotSheet!A48 -> 90 | B48: =PivotSheet!B48 -> 1 | C48: a | D48: 1 | I48: 0.1873198847
A49: =PivotSheet!A49 -> 94 | B49: =PivotSheet!B49 -> 1 | C49: a | D49: 1 | I49: 0.1902017291
A50: =PivotSheet!A50 -> 97 | B50: =PivotSheet!B50 -> 1 | C50: a | D50: 1 | I50: 0.1930835735
A51: =PivotSheet!A51 -> 98 | B51: =PivotSheet!B51 -> 1 | C51: a | D51: 1 | I51: 0.1959654179
A52: =PivotSheet!A52 -> 99 | B52: =PivotSheet!B52 -> 1 | C52: a | D52: 1 | I52: 0.1988472622
A53: =PivotSheet!A53 -> 100 | B53: =PivotSheet!B53 -> 1 | C53: a | D53: 1 | I53: 0.2017291066
A54: =PivotSheet!A54 -> 102 | B54: =PivotSheet!B54 -> 2 | C54: a | D54: 1 | I54: 0.2074927954
A55: =PivotSheet!A55 -> 104 | B55: =PivotSheet!B55 -> 2 | C55: a | D55: 1 | I55: 0.2132564841
A56: =PivotSheet!A56 -> 106 | B56: =PivotSheet!B56 -> 3 | C56: a | D56: 1 | I56: 0.2219020173
A57: =PivotSheet!A57 -> 108 | B57: =PivotSheet!B57 -> 1 | C57: a | D57: 1 | I57: 0.2247838617
A58: =PivotSheet!A58 -> 109 | B58: =PivotSheet!B58 -> 1 | C58: a | D58: 1 | I58: 0.2276657061
A59: =PivotSheet!A59 -> 110 | B59: =PivotSheet!B59 -> 1 | C59: a | D59: 1 | I59: 0.2305475504
A60: =PivotSheet!A60 -> 111 | B60: =PivotSheet!B60 -> 1 | C60: a | D60: 1 | I60: 0.2334293948
A61: =PivotSheet!A61 -> 114 | B61: =PivotSheet!B61 -> 1 | C61: a | D61: 1 | I61: 0.2363112392
A62: =PivotSheet!A62 -> 118 | B62: =PivotSheet!B62 -> 1 | C62: a | D62: 1 | I62: 0.2391930836
A63: =PivotSheet!A63 -> 121 | B63: =PivotSheet!B63 -> 1 | C63: a | D63: 1 | I63: 0.242074928
A64: =PivotSheet!A64 -> 122 | B64: =PivotSheet!B64 -> 2 | C64: a | D64: 1 | I64: 0.2478386167
A65: =PivotSheet!A65 -> 123 | B65: =PivotSheet!B65 -> 3 | C65: a | D65: 1 | I65: 0.2564841499
A66: =PivotSheet!A66 -> 125 | B66: =PivotSheet!B66 -> 2 | C66: a | D66: 1 | I66: 0.2622478386
A67: =PivotSheet!A67 -> 127 | B67: =PivotSheet!B67 -> 1 | C67: =IF(A67<=$V$4,"a",IF(A67<=$V$6,"b",IF(A67<=$V$8,"c",IF(A67<=$V$10,"d",IF(A67<=$V$12,"e","ERROR"))))) -> a | D67: =IF(C67="a",1,NA()) -> 1 | E67: =IF($C67="b",1,NA()) ->  | F67: =IF($C67="c",1,NA()) ->  | G67: =IF($C67="d",1,NA()) ->  | H67: =IF($C67="e",1,NA()) ->  | I67: 0.265129683
A68: =PivotSheet!A68 -> 128 | B68: =PivotSheet!B68 -> 1 | C68: a | D68: 1 | I68: =B68/SUM($B$2:$B$10000)+I67 -> 0.2680115274
A69: =PivotSheet!A69 -> 129 | B69: =PivotSheet!B69 -> 1 | C69: a | D69: 1 | I69: 0.2708933718
A70: =PivotSheet!A70 -> 133 | B70: =PivotSheet!B70 -> 1 | C70: a | D70: 1 | I70: 0.2737752161
A71: =PivotSheet!A71 -> 135 | B71: =PivotSheet!B71 -> 1 | C71: a | D71: 1 | I71: 0.2766570605
A72: =PivotSheet!A72 -> 137 | B72: =PivotSheet!B72 -> 3 | C72: a | D72: 1 | I72: 0.2853025937
A73: =PivotSheet!A73 -> 139 | B73: =PivotSheet!B73 -> 1 | C73: a | D73: 1 | I73: 0.288184438
A74: =PivotSheet!A74 -> 140 | B74: =PivotSheet!B74 -> 1 | C74: a | D74: 1 | I74: 0.2910662824
A75: =PivotSheet!A75 -> 141 | B75: =PivotSheet!B75 -> 2 | C75: a | D75: 1 | I75: 0.2968299712
A76: =PivotSheet!A76 -> 144 | B76: =PivotSheet!B76 -> 1 | C76: a | D76: 1 | I76: 0.2997118156
A77: =PivotSheet!A77 -> 145 | B77: =PivotSheet!B77 -> 2 | C77: a | D77: 1 | I77: 0.3054755043
A78: =PivotSheet!A78 -> 147 | B78: =PivotSheet!B78 -> 1 | C78: a | D78: 1 | I78: 0.3083573487
A79: =PivotSheet!A79 -> 150 | B79: =PivotSheet!B79 -> 1 | C79: a | D79: 1 | I79: 0.3112391931
A80: =PivotSheet!A80 -> 154 | B80: =PivotSheet!B80 -> 1 | C80: a | D80: 1 | I80: 0.3141210375
A81: =PivotSheet!A81 -> 155 | B81: =PivotSheet!B81 -> 2 | C81: a | D81: 1 | I81: 0.3198847262
A82: =PivotSheet!A82 -> 156 | B82: =PivotSheet!B82 -> 3 | C82: a | D82: 1 | I82: 0.3285302594
A83: =PivotSheet!A83 -> 158 | B83: =PivotSheet!B83 -> 1 | C83: a | D83: 1 | I83: 0.3314121037
A84: =PivotSheet!A84 -> 159 | B84: =PivotSheet!B84 -> 1 | C84: b | E84: 1 | I84: 0.3342939481
A85: =PivotSheet!A85 -> 161 | B85: =PivotSheet!B85 -> 2 | C85: b | E85: 1 | I85: 0.3400576369
A86: =PivotSheet!A86 -> 165 | B86: =PivotSheet!B86 -> 1 | C86: b | E86: 1 | I86: 0.3429394813
A87: =PivotSheet!A87 -> 166 | B87: =PivotSheet!B87 -> 2 | C87: b | E87: 1 | I87: 0.34870317
A88: =PivotSheet!A88 -> 167 | B88: =PivotSheet!B88 -> 1 | C88: b | E88: 1 | I88: 0.3515850144
A89: =PivotSheet!A89 -> 168 | B89: =PivotSheet!B89 -> 1 | C89: b | E89: 1 | I89: 0.3544668588
A90: =PivotSheet!A90 -> 169 | B90: =PivotSheet!B90 -> 1 | C90: b | E90: 1 | I90: 0.3573487032
A91: =PivotSheet!A91 -> 170 | B91: =PivotSheet!B91 -> 1 | C91: b | E91: 1 | I91: 0.3602305476
A92: =PivotSheet!A92 -> 171 | B92: =PivotSheet!B92 -> 3 | C92: b | E92: 1 | I92: 0.3688760807
A93: =PivotSheet!A93 -> 172 | B93: =PivotSheet!B93 -> 2 | C93: b | E93: 1 | I93: 0.3746397695
A94: =PivotSheet!A94 -> 174 | B94: =PivotSheet!B94 -> 1 | C94: b | E94: 1 | I94: 0.3775216138
A95: =PivotSheet!A95 -> 177 | B95: =PivotSheet!B95 -> 1 | C95: b | E95: 1 | I95: 0.3804034582
A96: =PivotSheet!A96 -> 178 | B96: =PivotSheet!B96 -> 2 | C96: b | E96: 1 | I96: 0.386167147
A97: =PivotSheet!A97 -> 179 | B97: =PivotSheet!B97 -> 2 | C97: b | E97: 1 | I97: 0.3919308357
A98: =PivotSheet!A98 -> 181 | B98: =PivotSheet!B98 -> 3 | C98: b | E98: 1 | I98: 0.4005763689
A99: =PivotSheet!A99 -> 182 | B99: =PivotSheet!B99 -> 1 | C99: b | E99: 1 | I99: 0.4034582133
A100: =PivotSheet!A100 -> 186 | B100: =PivotSheet!B100 -> 2 | C100: b | E100: 1 | I100: 0.409221902
A101: =PivotSheet!A101 -> 187 | B101: =PivotSheet!B101 -> 2 | C101: b | E101: 1 | I101: 0.4149855908
A102: =PivotSheet!A102 -> 189 | B102: =PivotSheet!B102 -> 1 | C102: b | E102: 1 | I102: 0.4178674352
A103: =PivotSheet!A103 -> 190 | B103: =PivotSheet!B103 -> 2 | C103: b | E103: 1 | I103: 0.4236311239
A104: =PivotSheet!A104 -> 191 | B104: =PivotSheet!B104 -> 2 | C104: b | E104: 1 | I104: 0.4293948127
A105: =PivotSheet!A105 -> 196 | B105: =PivotSheet!B105 -> 1 | C105: b | E105: 1 | I105: 0.4322766571
A106: =PivotSheet!A106 -> 197 | B106: =PivotSheet!B106 -> 1 | C106: b | E106: 1 | I106: 0.4351585014
A107: =PivotSheet!A107 -> 203 | B107: =PivotSheet!B107 -> 1 | C107: b | E107: 1 | I107: 0.4380403458
A108: =PivotSheet!A108 -> 204 | B108: =PivotSheet!B108 -> 1 | C108: b | E108: 1 | I108: 0.4409221902
A109: =PivotSheet!A109 -> 206 | B109: =PivotSheet!B109 -> 1 | C109: b | E109: 1 | I109: 0.4438040346
A110: =PivotSheet!A110 -> 208 | B110: =PivotSheet!B110 -> 1 | C110: b | E110: 1 | I110: 0.446685879
A111: =PivotSheet!A111 -> 213 | B111: =PivotSheet!B111 -> 3 | C111: b | E111: 1 | I111: 0.4553314121
A112: =PivotSheet!A112 -> 214 | B112: =PivotSheet!B112 -> 1 | C112: b | E112: 1 | I112: 0.4582132565
A113: =PivotSheet!A113 -> 217 | B113: =PivotSheet!B113 -> 1 | C113: b | E113: 1 | I113: 0.4610951009
A114: =PivotSheet!A114 -> 218 | B114: =PivotSheet!B114 -> 2 | C114: b | E114: 1 | I114: 0.4668587896
A115: =PivotSheet!A115 -> 220 | B115: =PivotSheet!B115 -> 1 | C115: b | E115: 1 | I115: 0.469740634
A116: =PivotSheet!A116 -> 222 | B116: =PivotSheet!B116 -> 1 | C116: b | E116: 1 | I116: 0.4726224784
A117: =PivotSheet!A117 -> 226 | B117: =PivotSheet!B117 -> 1 | C117: b | E117: 1 | I117: 0.4755043228
A118: =PivotSheet!A118 -> 227 | B118: =PivotSheet!B118 -> 1 | C118: b | E118: 1 | I118: 0.4783861671
A119: =PivotSheet!A119 -> 228 | B119: =PivotSheet!B119 -> 1 | C119: b | E119: 1 | I119: 0.4812680115
A120: =PivotSheet!A120 -> 229 | B120: =PivotSheet!B120 -> 2 | C120: b | E120: 1 | I120: 0.4870317003
A121: =PivotSheet!A121 -> 235 | B121: =PivotSheet!B121 -> 1 | C121: b | E121: 1 | I121: 0.4899135447
A122: =PivotSheet!A122 -> 236 | B122: =PivotSheet!B122 -> 1 | C122: b | E122: 1 | I122: 0.492795389
A123: =PivotSheet!A123 -> 238 | B123: =PivotSheet!B123 -> 1 | C123: b | E123: 1 | I123: 0.4956772334
A124: =PivotSheet!A124 -> 239 | B124: =PivotSheet!B124 -> 2 | C124: b | E124: 1 | I124: 0.5014409222
A125: =PivotSheet!A125 -> 241 | B125: =PivotSheet!B125 -> 2 | C125: b | E125: 1 | I125: 0.507204611
A126: =PivotSheet!A126 -> 244 | B126: =PivotSheet!B126 -> 1 | C126: b | E126: 1 | I126: 0.5100864553
A127: =PivotSheet!A127 -> 248 | B127: =PivotSheet!B127 -> 1 | C127: b | E127: 1 | I127: 0.5129682997
A128: =PivotSheet!A128 -> 249 | B128: =PivotSheet!B128 -> 3 | C128: b | E128: 1 | I128: 0.5216138329
A129: =PivotSheet!A129 -> 252 | B129: =PivotSheet!B129 -> 2 | C129: b | E129: 1 | I129: 0.5273775216
A130: =PivotSheet!A130 -> 256 | B130: =PivotSheet!B130 -> 1 | C130: b | E130: 1 | I130: 0.530259366
A131: =PivotSheet!A131 -> 257 | B131: =PivotSheet!B131 -> 1 | C131: =IF(A131<=$V$4,"a",IF(A131<=$V$6,"b",IF(A131<=$V$8,"c",IF(A131<=$V$10,"d",IF(A131<=$V$12,"e","ERROR"))))) -> b | D131: =IF(C131="a",1,NA()) ->  | E131: =IF($C131="b",1,NA()) -> 1 | F131: =IF($C131="c",1,NA()) ->  | G131: =IF($C131="d",1,NA()) ->  | H131: =IF($C131="e",1,NA()) ->  | I131: 0.5331412104
A132: =PivotSheet!A132 -> 258 | B132: =PivotSheet!B132 -> 1 | C132: b | E132: 1 | I132: =B132/SUM($B$2:$B$10000)+I131 -> 0.5360230548
A133: =PivotSheet!A133 -> 260 | B133: =PivotSheet!B133 -> 1 | C133: b | E133: 1 | I133: 0.5389048991
A134: =PivotSheet!A134 -> 264 | B134: =PivotSheet!B134 -> 1 | C134: b | E134: 1 | I134: 0.5417867435
A135: =PivotSheet!A135 -> 265 | B135: =PivotSheet!B135 -> 1 | C135: b | E135: 1 | I135: 0.5446685879
A136: =PivotSheet!A136 -> 266 | B136: =PivotSheet!B136 -> 1 | C136: b | E136: 1 | I136: 0.5475504323
A137: =PivotSheet!A137 -> 267 | B137: =PivotSheet!B137 -> 2 | C137: b | E137: 1 | I137: 0.553314121
A138: =PivotSheet!A138 -> 269 | B138: =PivotSheet!B138 -> 2 | C138: b | E138: 1 | I138: 0.5590778098
A139: =PivotSheet!A139 -> 270 | B139: =PivotSheet!B139 -> 1 | C139: b | E139: 1 | I139: 0.5619596542
A140: =PivotSheet!A140 -> 273 | B140: =PivotSheet!B140 -> 1 | C140: b | E140: 1 | I140: 0.5648414986
A141: =PivotSheet!A141 -> 275 | B141: =PivotSheet!B141 -> 1 | C141: b | E141: 1 | I141: 0.5677233429
A142: =PivotSheet!A142 -> 277 | B142: =PivotSheet!B142 -> 1 | C142: b | E142: 1 | I142: 0.5706051873
A143: =PivotSheet!A143 -> 278 | B143: =PivotSheet!B143 -> 1 | C143: b | E143: 1 | I143: 0.5734870317
A144: =PivotSheet!A144 -> 280 | B144: =PivotSheet!B144 -> 1 | C144: b | E144: 1 | I144: 0.5763688761
A145: =PivotSheet!A145 -> 282 | B145: =PivotSheet!B145 -> 1 | C145: b | E145: 1 | I145: 0.5792507205
A146: =PivotSheet!A146 -> 286 | B146: =PivotSheet!B146 -> 1 | C146: b | E146: 1 | I146: 0.5821325648
A147: =PivotSheet!A147 -> 289 | B147: =PivotSheet!B147 -> 2 | C147: b | E147: 1 | I147: 0.5878962536
A148: =PivotSheet!A148 -> 291 | B148: =PivotSheet!B148 -> 1 | C148: b | E148: 1 | I148: 0.590778098
A149: =PivotSheet!A149 -> 292 | B149: =PivotSheet!B149 -> 3 | C149: b | E149: 1 | I149: 0.5994236311
A150: =PivotSheet!A150 -> 293 | B150: =PivotSheet!B150 -> 1 | C150: b | E150: 1 | I150: 0.6023054755
A151: =PivotSheet!A151 -> 294 | B151: =PivotSheet!B151 -> 1 | C151: b | E151: 1 | I151: 0.6051873199
A152: =PivotSheet!A152 -> 295 | B152: =PivotSheet!B152 -> 4 | C152: b | E152: 1 | I152: 0.6167146974
A153: =PivotSheet!A153 -> 296 | B153: =PivotSheet!B153 -> 1 | C153: b | E153: 1 | I153: 0.6195965418
A154: =PivotSheet!A154 -> 297 | B154: =PivotSheet!B154 -> 2 | C154: b | E154: 1 | I154: 0.6253602305
A155: =PivotSheet!A155 -> 301 | B155: =PivotSheet!B155 -> 1 | C155: b | E155: 1 | I155: 0.6282420749
A156: =PivotSheet!A156 -> 302 | B156: =PivotSheet!B156 -> 1 | C156: b | E156: 1 | I156: 0.6311239193
A157: =PivotSheet!A157 -> 303 | B157: =PivotSheet!B157 -> 1 | C157: b | E157: 1 | I157: 0.6340057637
A158: =PivotSheet!A158 -> 305 | B158: =PivotSheet!B158 -> 1 | C158: b | E158: 1 | I158: 0.6368876081
A159: =PivotSheet!A159 -> 306 | B159: =PivotSheet!B159 -> 1 | C159: b | E159: 1 | I159: 0.6397694524
A160: =PivotSheet!A160 -> 308 | B160: =PivotSheet!B160 -> 1 | C160: b | E160: 1 | I160: 0.6426512968
A161: =PivotSheet!A161 -> 309 | B161: =PivotSheet!B161 -> 1 | C161: b | E161: 1 | I161: 0.6455331412
A162: =PivotSheet!A162 -> 310 | B162: =PivotSheet!B162 -> 1 | C162: b | E162: 1 | I162: 0.6484149856
A163: =PivotSheet!A163 -> 313 | B163: =PivotSheet!B163 -> 1 | C163: b | E163: 1 | I163: 0.65129683
A164: =PivotSheet!A164 -> 314 | B164: =PivotSheet!B164 -> 1 | C164: b | E164: 1 | I164: 0.6541786744
A165: =PivotSheet!A165 -> 315 | B165: =PivotSheet!B165 -> 1 | C165: b | E165: 1 | I165: 0.6570605187
A166: =PivotSheet!A166 -> 319 | B166: =PivotSheet!B166 -> 1 | C166: b | E166: 1 | I166: 0.6599423631
A167: =PivotSheet!A167 -> 321 | B167: =PivotSheet!B167 -> 1 | C167: c | F167: 1 | I167: 0.6628242075
A168: =PivotSheet!A168 -> 324 | B168: =PivotSheet!B168 -> 1 | C168: c | F168: 1 | I168: 0.6657060519
A169: =PivotSheet!A169 -> 326 | B169: =PivotSheet!B169 -> 2 | C169: c | F169: 1 | I169: 0.6714697406
A170: =PivotSheet!A170 -> 327 | B170: =PivotSheet!B170 -> 1 | C170: c | F170: 1 | I170: 0.674351585
A171: =PivotSheet!A171 -> 328 | B171: =PivotSheet!B171 -> 2 | C171: c | F171: 1 | I171: 0.6801152738
A172: =PivotSheet!A172 -> 329 | B172: =PivotSheet!B172 -> 2 | C172: c | F172: 1 | I172: 0.6858789625
A173: =PivotSheet!A173 -> 330 | B173: =PivotSheet!B173 -> 1 | C173: c | F173: 1 | I173: 0.6887608069
A174: =PivotSheet!A174 -> 332 | B174: =PivotSheet!B174 -> 3 | C174: c | F174: 1 | I174: 0.6974063401
A175: =PivotSheet!A175 -> 334 | B175: =PivotSheet!B175 -> 1 | C175: c | F175: 1 | I175: 0.7002881844
A176: =PivotSheet!A176 -> 335 | B176: =PivotSheet!B176 -> 1 | C176: c | F176: 1 | I176: 0.7031700288
A177: =PivotSheet!A177 -> 337 | B177: =PivotSheet!B177 -> 2 | C177: c | F177: 1 | I177: 0.7089337176
A178: =PivotSheet!A178 -> 338 | B178: =PivotSheet!B178 -> 1 | C178: c | F178: 1 | I178: 0.711815562
A179: =PivotSheet!A179 -> 339 | B179: =PivotSheet!B179 -> 2 | C179: c | F179: 1 | I179: 0.7175792507
A180: =PivotSheet!A180 -> 343 | B180: =PivotSheet!B180 -> 1 | C180: c | F180: 1 | I180: 0.7204610951
A181: =PivotSheet!A181 -> 345 | B181: =PivotSheet!B181 -> 2 | C181: c | F181: 1 | I181: 0.7262247839
A182: =PivotSheet!A182 -> 346 | B182: =PivotSheet!B182 -> 2 | C182: c | F182: 1 | I182: 0.7319884726
A183: =PivotSheet!A183 -> 347 | B183: =PivotSheet!B183 -> 1 | C183: c | F183: 1 | I183: 0.734870317
A184: =PivotSheet!A184 -> 349 | B184: =PivotSheet!B184 -> 1 | C184: c | F184: 1 | I184: 0.7377521614
A185: =PivotSheet!A185 -> 350 | B185: =PivotSheet!B185 -> 1 | C185: c | F185: 1 | I185: 0.7406340058
A186: =PivotSheet!A186 -> 351 | B186: =PivotSheet!B186 -> 1 | C186: c | F186: 1 | I186: 0.7435158501
A187: =PivotSheet!A187 -> 353 | B187: =PivotSheet!B187 -> 1 | C187: c | F187: 1 | I187: 0.7463976945
A188: =PivotSheet!A188 -> 354 | B188: =PivotSheet!B188 -> 1 | C188: c | F188: 1 | I188: 0.7492795389
A189: =PivotSheet!A189 -> 356 | B189: =PivotSheet!B189 -> 2 | C189: c | F189: 1 | I189: 0.7550432277
A190: =PivotSheet!A190 -> 359 | B190: =PivotSheet!B190 -> 1 | C190: c | F190: 1 | I190: 0.757925072
A191: =PivotSheet!A191 -> 361 | B191: =PivotSheet!B191 -> 1 | C191: c | F191: 1 | I191: 0.7608069164
A192: =PivotSheet!A192 -> 362 | B192: =PivotSheet!B192 -> 3 | C192: c | F192: 1 | I192: 0.7694524496
A193: =PivotSheet!A193 -> 363 | B193: =PivotSheet!B193 -> 1 | C193: c | F193: 1 | I193: 0.7723342939
A194: =PivotSheet!A194 -> 365 | B194: =PivotSheet!B194 -> 1 | C194: c | F194: 1 | I194: 0.7752161383
A195: =PivotSheet!A195 -> 366 | B195: =PivotSheet!B195 -> 1 | C195: =IF(A195<=$V$4,"a",IF(A195<=$V$6,"b",IF(A195<=$V$8,"c",IF(A195<=$V$10,"d",IF(A195<=$V$12,"e","ERROR"))))) -> c | D195: =IF(C195="a",1,NA()) ->  | E195: =IF($C195="b",1,NA()) ->  | F195: =IF($C195="c",1,NA()) -> 1 | G195: =IF($C195="d",1,NA()) ->  | H195: =IF($C195="e",1,NA()) ->  | I195: 0.7780979827
A196: =PivotSheet!A196 -> 368 | B196: =PivotSheet!B196 -> 1 | C196: c | F196: 1 | I196: =B196/SUM($B$2:$B$10000)+I195 -> 0.7809798271
A197: =PivotSheet!A197 -> 369 | B197: =PivotSheet!B197 -> 2 | C197: c | F197: 1 | I197: 0.7867435159
A198: =PivotSheet!A198 -> 373 | B198: =PivotSheet!B198 -> 1 | C198: c | F198: 1 | I198: 0.7896253602
A199: =PivotSheet!A199 -> 375 | B199: =PivotSheet!B199 -> 1 | C199: c | F199: 1 | I199: 0.7925072046
A200: =PivotSheet!A200 -> 376 | B200: =PivotSheet!B200 -> 1 | C200: c | F200: 1 | I200: 0.795389049
... 164 more rows

Sheet Equal Interval (hidden)
A1: Data | B1: Frequency | C1: Group | D1: Group 1 | E1: Group 2 | F1: Group 3 | G1: Group 4 | H1: Group 5 | I1: Cum. Freq
A2: =PivotSheet!A2 -> 2 | B2: =PivotSheet!B2 -> 1 | C2: =IF(A2<=$V$4,"a",IF(A2<=$V$6,"b",IF(A2<=$V$8,"c",IF(A2<=$V$10,"d",IF(A2<=$V$12,"e","ERROR"))))) -> a | D2: =IF($C2="a",1,NA()) -> 1 | E2: =IF($C2="b",1,NA()) ->  | F2: =IF($C2="c",1,NA()) ->  | G2: =IF($C2="d",1,NA()) ->  | H2: =IF($C2="e",1,NA()) ->  | I2: =B2/SUM($B$2:$B$1000) -> 0.00288184438 | J2: 2 levels of Intensity | T2: Group | V2: Equal Interval
A3: =PivotSheet!A3 -> 3 | B3: =PivotSheet!B3 -> 2 | C3: =IF(A3<=$V$4,"a",IF(A3<=$V$6,"b",IF(A3<=$V$8,"c",IF(A3<=$V$10,"d",IF(A3<=$V$12,"e","ERROR"))))) -> a | D3: =IF($C3="a",1,NA()) -> 1 | E3: =IF($C3="b",1,NA()) ->  | F3: =IF($C3="c",1,NA()) ->  | G3: =IF($C3="d",1,NA()) ->  | H3: =IF($C3="e",1,NA()) ->  | I3: =B3/SUM($B$2:$B$1000)+I2 -> 0.008645533141 | K3: Min Value | L3: Max Value | T3: a | U3: Min Value | V3: =INDEX('Equal Interval'!$K$4:$L$26,MATCH(1,(Data!$F$2='Equal Interval'!$M$4:$M$26)*(T3='Equal Interval'!$N$4:$N$26),0),MATCH(U3,'Equal Interval'!$K$3:$L$3,0)) -> 2
A4: =PivotSheet!A4 -> 4 | B4: =PivotSheet!B4 -> 1 | C4: a | D4: 1 | I4: =B4/SUM($B$2:$B$1000)+I3 -> 0.01152737752 | J4: A-Size | K4: =MIN([0]!Data_Plot) -> 2 | L4: =K4+ (L5 - K4)/2 -> 250 | M4: 2 | N4: a | T4: a | U4: Max Value | V4: =INDEX('Equal Interval'!$K$4:$L$26,MATCH(1,(Data!$F$2='Equal Interval'!$M$4:$M$26)*(T4='Equal Interval'!$N$4:$N$26),0),MATCH(U4,'Equal Interval'!$K$3:$L$3,0)) -> 167.3333333
A5: =PivotSheet!A5 -> 5 | B5: =PivotSheet!B5 -> 1 | C5: a | D5: 1 | I5: 0.0144092219 | J5: B-Size | K5: =$L$4+1 -> 251 | L5: =MAX([0]!Data_Plot) -> 498 | M5: 2 | N5: b | T5: b | U5: Min Value | V5: =INDEX('Equal Interval'!$K$4:$L$26,MATCH(1,(Data!$F$2='Equal Interval'!$M$4:$M$26)*(T5='Equal Interval'!$N$4:$N$26),0),MATCH(U5,'Equal Interval'!$K$3:$L$3,0)) -> 168.3333333
A6: =PivotSheet!A6 -> 6 | B6: =PivotSheet!B6 -> 1 | C6: a | D6: 1 | I6: 0.01729106628 | T6: b | U6: Max Value | V6: =INDEX('Equal Interval'!$K$4:$L$26,MATCH(1,(Data!$F$2='Equal Interval'!$M$4:$M$26)*(T6='Equal Interval'!$N$4:$N$26),0),MATCH(U6,'Equal Interval'!$K$3:$L$3,0)) -> 332.6666667
A7: =PivotSheet!A7 -> 10 | B7: =PivotSheet!B7 -> 2 | C7: a | D7: 1 | I7: 0.02305475504 | J7: 3 Levels of Intensity | T7: c | U7: Min Value | V7: =INDEX('Equal Interval'!$K$4:$L$26,MATCH(1,(Data!$F$2='Equal Interval'!$M$4:$M$26)*(T7='Equal Interval'!$N$4:$N$26),0),MATCH(U7,'Equal Interval'!$K$3:$L$3,0)) -> 333.6666667
A8: =PivotSheet!A8 -> 11 | B8: =PivotSheet!B8 -> 1 | C8: a | D8: 1 | I8: 0.02593659942 | T8: c | U8: Max Value | V8: =INDEX('Equal Interval'!$K$4:$L$26,MATCH(1,(Data!$F$2='Equal Interval'!$M$4:$M$26)*(T8='Equal Interval'!$N$4:$N$26),0),MATCH(U8,'Equal Interval'!$K$3:$L$3,0)) -> 498
A9: =PivotSheet!A9 -> 12 | B9: =PivotSheet!B9 -> 1 | C9: a | D9: 1 | I9: 0.0288184438 | J9: A-Size | K9: =MIN([0]!Data_Plot) -> 2 | L9: =K9+ (L11 - K9)/3 -> 167.3333333 | M9: 3 | N9: a | T9: d | U9: Min Value | V9: =INDEX('Equal Interval'!$K$4:$L$26,MATCH(1,(Data!$F$2='Equal Interval'!$M$4:$M$26)*(T9='Equal Interval'!$N$4:$N$26),0),MATCH(U9,'Equal Interval'!$K$3:$L$3,0)) -> 
A10: =PivotSheet!A10 -> 14 | B10: =PivotSheet!B10 -> 1 | C10: a | D10: 1 | I10: 0.03170028818 | J10: B-Size | K10: =$L$9+1 -> 168.3333333 | L10: =K9+2* (L11 - K9)/3 -> 332.6666667 | M10: 3 | N10: b | T10: d | U10: Max Value | V10: =INDEX('Equal Interval'!$K$4:$L$26,MATCH(1,(Data!$F$2='Equal Interval'!$M$4:$M$26)*(T10='Equal Interval'!$N$4:$N$26),0),MATCH(U10,'Equal Interval'!$K$3:$L$3,0)) -> 
A11: =PivotSheet!A11 -> 15 | B11: =PivotSheet!B11 -> 1 | C11: a | D11: 1 | I11: 0.03458213256 | J11: C-Size | K11: =$L$10+1 -> 333.6666667 | L11: =MAX([0]!Data_Plot) -> 498 | M11: 3 | N11: c | T11: e | U11: Min Value | V11: =INDEX('Equal Interval'!$K$4:$L$26,MATCH(1,(Data!$F$2='Equal Interval'!$M$4:$M$26)*(T11='Equal Interval'!$N$4:$N$26),0),MATCH(U11,'Equal Interval'!$K$3:$L$3,0)) -> 
A12: =PivotSheet!A12 -> 17 | B12: =PivotSheet!B12 -> 1 | C12: a | D12: 1 | I12: 0.03746397695 | T12: e | U12: Max Value | V12: =INDEX('Equal Interval'!$K$4:$L$26,MATCH(1,(Data!$F$2='Equal Interval'!$M$4:$M$26)*(T12='Equal Interval'!$N$4:$N$26),0),MATCH(U12,'Equal Interval'!$K$3:$L$3,0)) -> 
A13: =PivotSheet!A13 -> 21 | B13: =PivotSheet!B13 -> 1 | C13: a | D13: 1 | I13: 0.04034582133 | J13: 4 Levels of Intensity
A14: =PivotSheet!A14 -> 22 | B14: =PivotSheet!B14 -> 1 | C14: a | D14: 1 | I14: 0.04322766571
A15: =PivotSheet!A15 -> 25 | B15: =PivotSheet!B15 -> 1 | C15: a | D15: 1 | I15: 0.04610951009 | J15: A-Size | K15: =MIN([0]!Data_Plot) -> 2 | L15: =K15+ (L18 - K15)/4 -> 126 | M15: 4 | N15: a
A16: =PivotSheet!A16 -> 28 | B16: =PivotSheet!B16 -> 1 | C16: a | D16: 1 | I16: 0.04899135447 | J16: B-Size | K16: =L15+1 -> 127 | L16: =K15+ (L18 - K15)/2 -> 250 | M16: 4 | N16: b
A17: =PivotSheet!A17 -> 29 | B17: =PivotSheet!B17 -> 3 | C17: a | D17: 1 | I17: 0.05763688761 | J17: C-Size | K17: =L16+1 -> 251 | L17: =K15+3* (L18 - K15)/4 -> 374 | M17: 4 | N17: c
A18: =PivotSheet!A18 -> 30 | B18: =PivotSheet!B18 -> 2 | C18: a | D18: 1 | I18: 0.06340057637 | J18: D-Size | K18: =L17+1 -> 375 | L18: =MAX([0]!Data_Plot) -> 498 | M18: 4 | N18: d
A19: =PivotSheet!A19 -> 34 | B19: =PivotSheet!B19 -> 1 | C19: a | D19: 1 | I19: 0.06628242075
A20: =PivotSheet!A20 -> 39 | B20: =PivotSheet!B20 -> 2 | C20: a | D20: 1 | I20: 0.07204610951 | J20: 5 Levels of Intensity
A21: =PivotSheet!A21 -> 41 | B21: =PivotSheet!B21 -> 1 | C21: a | D21: 1 | I21: 0.07492795389
A22: =PivotSheet!A22 -> 42 | B22: =PivotSheet!B22 -> 1 | C22: a | D22: 1 | I22: 0.07780979827 | J22: A-Size | K22: =MIN([0]!Data_Plot) -> 2 | L22: =K22+ (L26 - K22)/5 -> 101.2 | M22: 5 | N22: a
A23: =PivotSheet!A23 -> 45 | B23: =PivotSheet!B23 -> 2 | C23: a | D23: 1 | I23: 0.08357348703 | J23: B-Size | K23: =L22+1 -> 102.2 | L23: =K22+ 2*(L26 - K22)/5 -> 200.4 | M23: 5 | N23: b
A24: =PivotSheet!A24 -> 47 | B24: =PivotSheet!B24 -> 1 | C24: a | D24: 1 | I24: 0.08645533141 | J24: C-Size | K24: =L23+1 -> 201.4 | L24: =K22+ 3*(L26 - K22)/5 -> 299.6 | M24: 5 | N24: c
A25: =PivotSheet!A25 -> 49 | B25: =PivotSheet!B25 -> 1 | C25: a | D25: 1 | I25: 0.08933717579 | J25: D-Size | K25: =L24+1 -> 300.6 | L25: =K22+ 4*(L26 - K22)/5 -> 398.8 | M25: 5 | N25: d
A26: =PivotSheet!A26 -> 50 | B26: =PivotSheet!B26 -> 1 | C26: a | D26: 1 | I26: 0.09221902017 | J26: E-size | K26: =L25+1 -> 399.8 | L26: =MAX([0]!Data_Plot) -> 498 | M26: 5 | N26: e
A27: =PivotSheet!A27 -> 51 | B27: =PivotSheet!B27 -> 1 | C27: a | D27: 1 | I27: 0.09510086455
A28: =PivotSheet!A28 -> 53 | B28: =PivotSheet!B28 -> 1 | C28: a | D28: 1 | I28: 0.09798270893
A29: =PivotSheet!A29 -> 54 | B29: =PivotSheet!B29 -> 1 | C29: a | D29: 1 | I29: 0.1008645533
A30: =PivotSheet!A30 -> 55 | B30: =PivotSheet!B30 -> 1 | C30: a | D30: 1 | I30: 0.1037463977
A31: =PivotSheet!A31 -> 61 | B31: =PivotSheet!B31 -> 1 | C31: a | D31: 1 | I31: 0.1066282421
A32: =PivotSheet!A32 -> 62 | B32: =PivotSheet!B32 -> 2 | C32: a | D32: 1 | I32: 0.1123919308
A33: =PivotSheet!A33 -> 63 | B33: =PivotSheet!B33 -> 1 | C33: a | D33: 1 | I33: 0.1152737752
A34: =PivotSheet!A34 -> 66 | B34: =PivotSheet!B34 -> 1 | C34: a | D34: 1 | I34: 0.1181556196
A35: =PivotSheet!A35 -> 67 | B35: =PivotSheet!B35 -> 1 | C35: a | D35: 1 | I35: 0.121037464
A36: =PivotSheet!A36 -> 68 | B36: =PivotSheet!B36 -> 1 | C36: a | D36: 1 | I36: 0.1239193084
A37: =PivotSheet!A37 -> 69 | B37: =PivotSheet!B37 -> 2 | C37: a | D37: 1 | I37: 0.1296829971
A38: =PivotSheet!A38 -> 72 | B38: =PivotSheet!B38 -> 1 | C38: a | D38: 1 | I38: 0.1325648415
A39: =PivotSheet!A39 -> 75 | B39: =PivotSheet!B39 -> 2 | C39: a | D39: 1 | I39: 0.1383285303
A40: =PivotSheet!A40 -> 78 | B40: =PivotSheet!B40 -> 1 | C40: a | D40: 1 | I40: 0.1412103746
A41: =PivotSheet!A41 -> 79 | B41: =PivotSheet!B41 -> 2 | C41: a | D41: 1 | I41: 0.1469740634
A42: =PivotSheet!A42 -> 82 | B42: =PivotSheet!B42 -> 3 | C42: a | D42: 1 | I42: 0.1556195965
A43: =PivotSheet!A43 -> 84 | B43: =PivotSheet!B43 -> 1 | C43: a | D43: 1 | I43: 0.1585014409
A44: =PivotSheet!A44 -> 85 | B44: =PivotSheet!B44 -> 2 | C44: a | D44: 1 | I44: 0.1642651297
A45: =PivotSheet!A45 -> 87 | B45: =PivotSheet!B45 -> 2 | C45: a | D45: 1 | I45: 0.1700288184
A46: =PivotSheet!A46 -> 88 | B46: =PivotSheet!B46 -> 2 | C46: a | D46: 1 | I46: 0.1757925072
A47: =PivotSheet!A47 -> 89 | B47: =PivotSheet!B47 -> 3 | C47: a | D47: 1 | I47: 0.1844380403
A48: =PivotSheet!A48 -> 90 | B48: =PivotSheet!B48 -> 1 | C48: a | D48: 1 | I48: 0.1873198847
A49: =PivotSheet!A49 -> 94 | B49: =PivotSheet!B49 -> 1 | C49: a | D49: 1 | I49: 0.1902017291
A50: =PivotSheet!A50 -> 97 | B50: =PivotSheet!B50 -> 1 | C50: a | D50: 1 | I50: 0.1930835735
A51: =PivotSheet!A51 -> 98 | B51: =PivotSheet!B51 -> 1 | C51: a | D51: 1 | I51: 0.1959654179
A52: =PivotSheet!A52 -> 99 | B52: =PivotSheet!B52 -> 1 | C52: a | D52: 1 | I52: 0.1988472622
A53: =PivotSheet!A53 -> 100 | B53: =PivotSheet!B53 -> 1 | C53: a | D53: 1 | I53: 0.2017291066
A54: =PivotSheet!A54 -> 102 | B54: =PivotSheet!B54 -> 2 | C54: a | D54: 1 | I54: 0.2074927954
A55: =PivotSheet!A55 -> 104 | B55: =PivotSheet!B55 -> 2 | C55: a | D55: 1 | I55: 0.2132564841
A56: =PivotSheet!A56 -> 106 | B56: =PivotSheet!B56 -> 3 | C56: a | D56: 1 | I56: 0.2219020173
A57: =PivotSheet!A57 -> 108 | B57: =PivotSheet!B57 -> 1 | C57: a | D57: 1 | I57: 0.2247838617
A58: =PivotSheet!A58 -> 109 | B58: =PivotSheet!B58 -> 1 | C58: a | D58: 1 | I58: 0.2276657061
A59: =PivotSheet!A59 -> 110 | B59: =PivotSheet!B59 -> 1 | C59: a | D59: 1 | I59: 0.2305475504
A60: =PivotSheet!A60 -> 111 | B60: =PivotSheet!B60 -> 1 | C60: a | D60: 1 | I60: 0.2334293948
A61: =PivotSheet!A61 -> 114 | B61: =PivotSheet!B61 -> 1 | C61: a | D61: 1 | I61: 0.2363112392
A62: =PivotSheet!A62 -> 118 | B62: =PivotSheet!B62 -> 1 | C62: a | D62: 1 | I62: 0.2391930836
A63: =PivotSheet!A63 -> 121 | B63: =PivotSheet!B63 -> 1 | C63: a | D63: 1 | I63: 0.242074928
A64: =PivotSheet!A64 -> 122 | B64: =PivotSheet!B64 -> 2 | C64: a | D64: 1 | I64: 0.2478386167
A65: =PivotSheet!A65 -> 123 | B65: =PivotSheet!B65 -> 3 | C65: a | D65: 1 | I65: 0.2564841499
A66: =PivotSheet!A66 -> 125 | B66: =PivotSheet!B66 -> 2 | C66: a | D66: 1 | I66: 0.2622478386
A67: =PivotSheet!A67 -> 127 | B67: =PivotSheet!B67 -> 1 | C67: =IF(A67<=$V$4,"a",IF(A67<=$V$6,"b",IF(A67<=$V$8,"c",IF(A67<=$V$10,"d",IF(A67<=$V$12,"e","ERROR"))))) -> a | D67: =IF($C67="a",1,NA()) -> 1 | E67: =IF($C67="b",1,NA()) ->  | F67: =IF($C67="c",1,NA()) ->  | G67: =IF($C67="d",1,NA()) ->  | H67: =IF($C67="e",1,NA()) ->  | I67: 0.265129683
A68: =PivotSheet!A68 -> 128 | B68: =PivotSheet!B68 -> 1 | C68: a | D68: 1 | I68: =B68/SUM($B$2:$B$1000)+I67 -> 0.2680115274
A69: =PivotSheet!A69 -> 129 | B69: =PivotSheet!B69 -> 1 | C69: a | D69: 1 | I69: 0.2708933718
A70: =PivotSheet!A70 -> 133 | B70: =PivotSheet!B70 -> 1 | C70: a | D70: 1 | I70: 0.2737752161
A71: =PivotSheet!A71 -> 135 | B71: =PivotSheet!B71 -> 1 | C71: a | D71: 1 | I71: 0.2766570605
A72: =PivotSheet!A72 -> 137 | B72: =PivotSheet!B72 -> 3 | C72: a | D72: 1 | I72: 0.2853025937
A73: =PivotSheet!A73 -> 139 | B73: =PivotSheet!B73 -> 1 | C73: a | D73: 1 | I73: 0.288184438
A74: =PivotSheet!A74 -> 140 | B74: =PivotSheet!B74 -> 1 | C74: a | D74: 1 | I74: 0.2910662824
A75: =PivotSheet!A75 -> 141 | B75: =PivotSheet!B75 -> 2 | C75: a | D75: 1 | I75: 0.2968299712
A76: =PivotSheet!A76 -> 144 | B76: =PivotSheet!B76 -> 1 | C76: a | D76: 1 | I76: 0.2997118156
A77: =PivotSheet!A77 -> 145 | B77: =PivotSheet!B77 -> 2 | C77: a | D77: 1 | I77: 0.3054755043
A78: =PivotSheet!A78 -> 147 | B78: =PivotSheet!B78 -> 1 | C78: a | D78: 1 | I78: 0.3083573487
A79: =PivotSheet!A79 -> 150 | B79: =PivotSheet!B79 -> 1 | C79: a | D79: 1 | I79: 0.3112391931
A80: =PivotSheet!A80 -> 154 | B80: =PivotSheet!B80 -> 1 | C80: a | D80: 1 | I80: 0.3141210375
A81: =PivotSheet!A81 -> 155 | B81: =PivotSheet!B81 -> 2 | C81: a | D81: 1 | I81: 0.3198847262
A82: =PivotSheet!A82 -> 156 | B82: =PivotSheet!B82 -> 3 | C82: a | D82: 1 | I82: 0.3285302594
A83: =PivotSheet!A83 -> 158 | B83: =PivotSheet!B83 -> 1 | C83: a | D83: 1 | I83: 0.3314121037
A84: =PivotSheet!A84 -> 159 | B84: =PivotSheet!B84 -> 1 | C84: a | D84: 1 | I84: 0.3342939481
A85: =PivotSheet!A85 -> 161 | B85: =PivotSheet!B85 -> 2 | C85: a | D85: 1 | I85: 0.3400576369
A86: =PivotSheet!A86 -> 165 | B86: =PivotSheet!B86 -> 1 | C86: a | D86: 1 | I86: 0.3429394813
A87: =PivotSheet!A87 -> 166 | B87: =PivotSheet!B87 -> 2 | C87: a | D87: 1 | I87: 0.34870317
A88: =PivotSheet!A88 -> 167 | B88: =PivotSheet!B88 -> 1 | C88: a | D88: 1 | I88: 0.3515850144
A89: =PivotSheet!A89 -> 168 | B89: =PivotSheet!B89 -> 1 | C89: b | E89: 1 | I89: 0.3544668588
A90: =PivotSheet!A90 -> 169 | B90: =PivotSheet!B90 -> 1 | C90: b | E90: 1 | I90: 0.3573487032
A91: =PivotSheet!A91 -> 170 | B91: =PivotSheet!B91 -> 1 | C91: b | E91: 1 | I91: 0.3602305476
A92: =PivotSheet!A92 -> 171 | B92: =PivotSheet!B92 -> 3 | C92: b | E92: 1 | I92: 0.3688760807
A93: =PivotSheet!A93 -> 172 | B93: =PivotSheet!B93 -> 2 | C93: b | E93: 1 | I93: 0.3746397695
A94: =PivotSheet!A94 -> 174 | B94: =PivotSheet!B94 -> 1 | C94: b | E94: 1 | I94: 0.3775216138
A95: =PivotSheet!A95 -> 177 | B95: =PivotSheet!B95 -> 1 | C95: b | E95: 1 | I95: 0.3804034582
A96: =PivotSheet!A96 -> 178 | B96: =PivotSheet!B96 -> 2 | C96: b | E96: 1 | I96: 0.386167147
A97: =PivotSheet!A97 -> 179 | B97: =PivotSheet!B97 -> 2 | C97: b | E97: 1 | I97: 0.3919308357
A98: =PivotSheet!A98 -> 181 | B98: =PivotSheet!B98 -> 3 | C98: b | E98: 1 | I98: 0.4005763689
A99: =PivotSheet!A99 -> 182 | B99: =PivotSheet!B99 -> 1 | C99: b | E99: 1 | I99: 0.4034582133
A100: =PivotSheet!A100 -> 186 | B100: =PivotSheet!B100 -> 2 | C100: b | E100: 1 | I100: 0.409221902
A101: =PivotSheet!A101 -> 187 | B101: =PivotSheet!B101 -> 2 | C101: b | E101: 1 | I101: 0.4149855908
A102: =PivotSheet!A102 -> 189 | B102: =PivotSheet!B102 -> 1 | C102: b | E102: 1 | I102: 0.4178674352
A103: =PivotSheet!A103 -> 190 | B103: =PivotSheet!B103 -> 2 | C103: b | E103: 1 | I103: 0.4236311239
A104: =PivotSheet!A104 -> 191 | B104: =PivotSheet!B104 -> 2 | C104: b | E104: 1 | I104: 0.4293948127
A105: =PivotSheet!A105 -> 196 | B105: =PivotSheet!B105 -> 1 | C105: b | E105: 1 | I105: 0.4322766571
A106: =PivotSheet!A106 -> 197 | B106: =PivotSheet!B106 -> 1 | C106: b | E106: 1 | I106: 0.4351585014
A107: =PivotSheet!A107 -> 203 | B107: =PivotSheet!B107 -> 1 | C107: b | E107: 1 | I107: 0.4380403458
A108: =PivotSheet!A108 -> 204 | B108: =PivotSheet!B108 -> 1 | C108: b | E108: 1 | I108: 0.4409221902
A109: =PivotSheet!A109 -> 206 | B109: =PivotSheet!B109 -> 1 | C109: b | E109: 1 | I109: 0.4438040346
A110: =PivotSheet!A110 -> 208 | B110: =PivotSheet!B110 -> 1 | C110: b | E110: 1 | I110: 0.446685879
A111: =PivotSheet!A111 -> 213 | B111: =PivotSheet!B111 -> 3 | C111: b | E111: 1 | I111: 0.4553314121
A112: =PivotSheet!A112 -> 214 | B112: =PivotSheet!B112 -> 1 | C112: b | E112: 1 | I112: 0.4582132565
A113: =PivotSheet!A113 -> 217 | B113: =PivotSheet!B113 -> 1 | C113: b | E113: 1 | I113: 0.4610951009
A114: =PivotSheet!A114 -> 218 | B114: =PivotSheet!B114 -> 2 | C114: b | E114: 1 | I114: 0.4668587896
A115: =PivotSheet!A115 -> 220 | B115: =PivotSheet!B115 -> 1 | C115: b | E115: 1 | I115: 0.469740634
A116: =PivotSheet!A116 -> 222 | B116: =PivotSheet!B116 -> 1 | C116: b | E116: 1 | I116: 0.4726224784
A117: =PivotSheet!A117 -> 226 | B117: =PivotSheet!B117 -> 1 | C117: b | E117: 1 | I117: 0.4755043228
A118: =PivotSheet!A118 -> 227 | B118: =PivotSheet!B118 -> 1 | C118: b | E118: 1 | I118: 0.4783861671
A119: =PivotSheet!A119 -> 228 | B119: =PivotSheet!B119 -> 1 | C119: b | E119: 1 | I119: 0.4812680115
A120: =PivotSheet!A120 -> 229 | B120: =PivotSheet!B120 -> 2 | C120: b | E120: 1 | I120: 0.4870317003
A121: =PivotSheet!A121 -> 235 | B121: =PivotSheet!B121 -> 1 | C121: b | E121: 1 | I121: 0.4899135447
A122: =PivotSheet!A122 -> 236 | B122: =PivotSheet!B122 -> 1 | C122: b | E122: 1 | I122: 0.492795389
A123: =PivotSheet!A123 -> 238 | B123: =PivotSheet!B123 -> 1 | C123: b | E123: 1 | I123: 0.4956772334
A124: =PivotSheet!A124 -> 239 | B124: =PivotSheet!B124 -> 2 | C124: b | E124: 1 | I124: 0.5014409222
A125: =PivotSheet!A125 -> 241 | B125: =PivotSheet!B125 -> 2 | C125: b | E125: 1 | I125: 0.507204611
A126: =PivotSheet!A126 -> 244 | B126: =PivotSheet!B126 -> 1 | C126: b | E126: 1 | I126: 0.5100864553
A127: =PivotSheet!A127 -> 248 | B127: =PivotSheet!B127 -> 1 | C127: b | E127: 1 | I127: 0.5129682997
A128: =PivotSheet!A128 -> 249 | B128: =PivotSheet!B128 -> 3 | C128: b | E128: 1 | I128: 0.5216138329
A129: =PivotSheet!A129 -> 252 | B129: =PivotSheet!B129 -> 2 | C129: b | E129: 1 | I129: 0.5273775216
A130: =PivotSheet!A130 -> 256 | B130: =PivotSheet!B130 -> 1 | C130: b | E130: 1 | I130: 0.530259366
A131: =PivotSheet!A131 -> 257 | B131: =PivotSheet!B131 -> 1 | C131: =IF(A131<=$V$4,"a",IF(A131<=$V$6,"b",IF(A131<=$V$8,"c",IF(A131<=$V$10,"d",IF(A131<=$V$12,"e","ERROR"))))) -> b | D131: =IF($C131="a",1,NA()) ->  | E131: =IF($C131="b",1,NA()) -> 1 | F131: =IF($C131="c",1,NA()) ->  | G131: =IF($C131="d",1,NA()) ->  | H131: =IF($C131="e",1,NA()) ->  | I131: 0.5331412104
A132: =PivotSheet!A132 -> 258 | B132: =PivotSheet!B132 -> 1 | C132: b | E132: 1 | I132: =B132/SUM($B$2:$B$1000)+I131 -> 0.5360230548
A133: =PivotSheet!A133 -> 260 | B133: =PivotSheet!B133 -> 1 | C133: b | E133: 1 | I133: 0.5389048991
A134: =PivotSheet!A134 -> 264 | B134: =PivotSheet!B134 -> 1 | C134: b | E134: 1 | I134: 0.5417867435
A135: =PivotSheet!A135 -> 265 | B135: =PivotSheet!B135 -> 1 | C135: b | E135: 1 | I135: 0.5446685879
A136: =PivotSheet!A136 -> 266 | B136: =PivotSheet!B136 -> 1 | C136: b | E136: 1 | I136: 0.5475504323
A137: =PivotSheet!A137 -> 267 | B137: =PivotSheet!B137 -> 2 | C137: b | E137: 1 | I137: 0.553314121
A138: =PivotSheet!A138 -> 269 | B138: =PivotSheet!B138 -> 2 | C138: b | E138: 1 | I138: 0.5590778098
A139: =PivotSheet!A139 -> 270 | B139: =PivotSheet!B139 -> 1 | C139: b | E139: 1 | I139: 0.5619596542
A140: =PivotSheet!A140 -> 273 | B140: =PivotSheet!B140 -> 1 | C140: b | E140: 1 | I140: 0.5648414986
A141: =PivotSheet!A141 -> 275 | B141: =PivotSheet!B141 -> 1 | C141: b | E141: 1 | I141: 0.5677233429
A142: =PivotSheet!A142 -> 277 | B142: =PivotSheet!B142 -> 1 | C142: b | E142: 1 | I142: 0.5706051873
A143: =PivotSheet!A143 -> 278 | B143: =PivotSheet!B143 -> 1 | C143: b | E143: 1 | I143: 0.5734870317
A144: =PivotSheet!A144 -> 280 | B144: =PivotSheet!B144 -> 1 | C144: b | E144: 1 | I144: 0.5763688761
A145: =PivotSheet!A145 -> 282 | B145: =PivotSheet!B145 -> 1 | C145: b | E145: 1 | I145: 0.5792507205
A146: =PivotSheet!A146 -> 286 | B146: =PivotSheet!B146 -> 1 | C146: b | E146: 1 | I146: 0.5821325648
A147: =PivotSheet!A147 -> 289 | B147: =PivotSheet!B147 -> 2 | C147: b | E147: 1 | I147: 0.5878962536
A148: =PivotSheet!A148 -> 291 | B148: =PivotSheet!B148 -> 1 | C148: b | E148: 1 | I148: 0.590778098
A149: =PivotSheet!A149 -> 292 | B149: =PivotSheet!B149 -> 3 | C149: b | E149: 1 | I149: 0.5994236311
A150: =PivotSheet!A150 -> 293 | B150: =PivotSheet!B150 -> 1 | C150: b | E150: 1 | I150: 0.6023054755
A151: =PivotSheet!A151 -> 294 | B151: =PivotSheet!B151 -> 1 | C151: b | E151: 1 | I151: 0.6051873199
A152: =PivotSheet!A152 -> 295 | B152: =PivotSheet!B152 -> 4 | C152: b | E152: 1 | I152: 0.6167146974
A153: =PivotSheet!A153 -> 296 | B153: =PivotSheet!B153 -> 1 | C153: b | E153: 1 | I153: 0.6195965418
A154: =PivotSheet!A154 -> 297 | B154: =PivotSheet!B154 -> 2 | C154: b | E154: 1 | I154: 0.6253602305
A155: =PivotSheet!A155 -> 301 | B155: =PivotSheet!B155 -> 1 | C155: b | E155: 1 | I155: 0.6282420749
A156: =PivotSheet!A156 -> 302 | B156: =PivotSheet!B156 -> 1 | C156: b | E156: 1 | I156: 0.6311239193
A157: =PivotSheet!A157 -> 303 | B157: =PivotSheet!B157 -> 1 | C157: b | E157: 1 | I157: 0.6340057637
A158: =PivotSheet!A158 -> 305 | B158: =PivotSheet!B158 -> 1 | C158: b | E158: 1 | I158: 0.6368876081
A159: =PivotSheet!A159 -> 306 | B159: =PivotSheet!B159 -> 1 | C159: b | E159: 1 | I159: 0.6397694524
A160: =PivotSheet!A160 -> 308 | B160: =PivotSheet!B160 -> 1 | C160: b | E160: 1 | I160: 0.6426512968
A161: =PivotSheet!A161 -> 309 | B161: =PivotSheet!B161 -> 1 | C161: b | E161: 1 | I161: 0.6455331412
A162: =PivotSheet!A162 -> 310 | B162: =PivotSheet!B162 -> 1 | C162: b | E162: 1 | I162: 0.6484149856
A163: =PivotSheet!A163 -> 313 | B163: =PivotSheet!B163 -> 1 | C163: b | E163: 1 | I163: 0.65129683
A164: =PivotSheet!A164 -> 314 | B164: =PivotSheet!B164 -> 1 | C164: b | E164: 1 | I164: 0.6541786744
A165: =PivotSheet!A165 -> 315 | B165: =PivotSheet!B165 -> 1 | C165: b | E165: 1 | I165: 0.6570605187
A166: =PivotSheet!A166 -> 319 | B166: =PivotSheet!B166 -> 1 | C166: b | E166: 1 | I166: 0.6599423631
A167: =PivotSheet!A167 -> 321 | B167: =PivotSheet!B167 -> 1 | C167: b | E167: 1 | I167: 0.6628242075
A168: =PivotSheet!A168 -> 324 | B168: =PivotSheet!B168 -> 1 | C168: b | E168: 1 | I168: 0.6657060519
A169: =PivotSheet!A169 -> 326 | B169: =PivotSheet!B169 -> 2 | C169: b | E169: 1 | I169: 0.6714697406
A170: =PivotSheet!A170 -> 327 | B170: =PivotSheet!B170 -> 1 | C170: b | E170: 1 | I170: 0.674351585
A171: =PivotSheet!A171 -> 328 | B171: =PivotSheet!B171 -> 2 | C171: b | E171: 1 | I171: 0.6801152738
A172: =PivotSheet!A172 -> 329 | B172: =PivotSheet!B172 -> 2 | C172: b | E172: 1 | I172: 0.6858789625
A173: =PivotSheet!A173 -> 330 | B173: =PivotSheet!B173 -> 1 | C173: b | E173: 1 | I173: 0.6887608069
A174: =PivotSheet!A174 -> 332 | B174: =PivotSheet!B174 -> 3 | C174: b | E174: 1 | I174: 0.6974063401
A175: =PivotSheet!A175 -> 334 | B175: =PivotSheet!B175 -> 1 | C175: c | F175: 1 | I175: 0.7002881844
A176: =PivotSheet!A176 -> 335 | B176: =PivotSheet!B176 -> 1 | C176: c | F176: 1 | I176: 0.7031700288
A177: =PivotSheet!A177 -> 337 | B177: =PivotSheet!B177 -> 2 | C177: c | F177: 1 | I177: 0.7089337176
A178: =PivotSheet!A178 -> 338 | B178: =PivotSheet!B178 -> 1 | C178: c | F178: 1 | I178: 0.711815562
A179: =PivotSheet!A179 -> 339 | B179: =PivotSheet!B179 -> 2 | C179: c | F179: 1 | I179: 0.7175792507
A180: =PivotSheet!A180 -> 343 | B180: =PivotSheet!B180 -> 1 | C180: c | F180: 1 | I180: 0.7204610951
A181: =PivotSheet!A181 -> 345 | B181: =PivotSheet!B181 -> 2 | C181: c | F181: 1 | I181: 0.7262247839
A182: =PivotSheet!A182 -> 346 | B182: =PivotSheet!B182 -> 2 | C182: c | F182: 1 | I182: 0.7319884726
A183: =PivotSheet!A183 -> 347 | B183: =PivotSheet!B183 -> 1 | C183: c | F183: 1 | I183: 0.734870317
A184: =PivotSheet!A184 -> 349 | B184: =PivotSheet!B184 -> 1 | C184: c | F184: 1 | I184: 0.7377521614
A185: =PivotSheet!A185 -> 350 | B185: =PivotSheet!B185 -> 1 | C185: c | F185: 1 | I185: 0.7406340058
A186: =PivotSheet!A186 -> 351 | B186: =PivotSheet!B186 -> 1 | C186: c | F186: 1 | I186: 0.7435158501
A187: =PivotSheet!A187 -> 353 | B187: =PivotSheet!B187 -> 1 | C187: c | F187: 1 | I187: 0.7463976945
A188: =PivotSheet!A188 -> 354 | B188: =PivotSheet!B188 -> 1 | C188: c | F188: 1 | I188: 0.7492795389
A189: =PivotSheet!A189 -> 356 | B189: =PivotSheet!B189 -> 2 | C189: c | F189: 1 | I189: 0.7550432277
A190: =PivotSheet!A190 -> 359 | B190: =PivotSheet!B190 -> 1 | C190: c | F190: 1 | I190: 0.757925072
A191: =PivotSheet!A191 -> 361 | B191: =PivotSheet!B191 -> 1 | C191: c | F191: 1 | I191: 0.7608069164
A192: =PivotSheet!A192 -> 362 | B192: =PivotSheet!B192 -> 3 | C192: c | F192: 1 | I192: 0.7694524496
A193: =PivotSheet!A193 -> 363 | B193: =PivotSheet!B193 -> 1 | C193: c | F193: 1 | I193: 0.7723342939
A194: =PivotSheet!A194 -> 365 | B194: =PivotSheet!B194 -> 1 | C194: c | F194: 1 | I194: 0.7752161383
A195: =PivotSheet!A195 -> 366 | B195: =PivotSheet!B195 -> 1 | C195: =IF(A195<=$V$4,"a",IF(A195<=$V$6,"b",IF(A195<=$V$8,"c",IF(A195<=$V$10,"d",IF(A195<=$V$12,"e","ERROR"))))) -> c | D195: =IF($C195="a",1,NA()) ->  | E195: =IF($C195="b",1,NA()) ->  | F195: =IF($C195="c",1,NA()) -> 1 | G195: =IF($C195="d",1,NA()) ->  | H195: =IF($C195="e",1,NA()) ->  | I195: 0.7780979827
A196: =PivotSheet!A196 -> 368 | B196: =PivotSheet!B196 -> 1 | C196: c | F196: 1 | I196: =B196/SUM($B$2:$B$1000)+I195 -> 0.7809798271
A197: =PivotSheet!A197 -> 369 | B197: =PivotSheet!B197 -> 2 | C197: c | F197: 1 | I197: 0.7867435159
A198: =PivotSheet!A198 -> 373 | B198: =PivotSheet!B198 -> 1 | C198: c | F198: 1 | I198: 0.7896253602
A199: =PivotSheet!A199 -> 375 | B199: =PivotSheet!B199 -> 1 | C199: c | F199: 1 | I199: 0.7925072046
A200: =PivotSheet!A200 -> 376 | B200: =PivotSheet!B200 -> 1 | C200: c | F200: 1 | I200: 0.795389049
... 165 more rows
